Workbook

Sheet FICHA
B1: SEGUIMIENTO AL CUMPLIMIENTO DE REGLAS FISCALES DE LOS GOBIERNOS REGIONALES Y GOBIERNOS LOCALES 3T2018 1/
B3: DEPARTAMENTO
B4: PROVINCIA
B5: ENTIDAD
B7: R1: Regla Fiscal de Saldo de Deuda Total | D7: =IFERROR( VLOOKUP($C$19,REGLAS!$A$1:$S$1901,14,FALSE)," ") ->  | E7: R2: Regla Fiscal de Ahorro en Cuenta Corriente | G7: =IFERROR( VLOOKUP($C$19,REGLAS!$A$1:$S$1901,19,FALSE)," ") -> 
B8: Saldo de Deuda Total | C8: =IFERROR( VLOOKUP($C$19,REGLAS!$A$1:$S$1901,6,FALSE), " ") ->  | D8: Miles | E8: Ingreso Corriente Total - ICT | F8: =IFERROR( VLOOKUP($C$19,REGLAS!$A$1:$S$1901,16,FALSE), " " ) ->  | G8: Miles
B9: Prom. ICT | C9: =IFERROR( VLOOKUP($C$19,REGLAS!$A$1:$S$1901,8,FALSE), " ") ->  | D9: Miles | E9: Gasto Corriente Total - GCT | F9: =IFERROR( VLOOKUP($C$19,REGLAS!$A$1:$S$1901,17,FALSE), " " ) ->  | G9: Miles
B10: Límite Ley N° 29230 2/ | C10: =IFERROR( VLOOKUP($C$19,REGLAS!$A$1:$S$1901,9,FALSE), " ") ->  | D10: Miles | E10: Ahorro en Cuenta Corriente - ACC | F10: =IFERROR( VLOOKUP($C$19,REGLAS!$A$1:$S$1901,18,FALSE), " ") ->  | G10: Miles
B12: SDT/Prom. ICT | C12: =IFERROR( VLOOKUP($C$19,REGLAS!$A$1:$S$1901,12,FALSE), " ") ->  | D12: Porcentaje
L20: Zona de riesgo
L21: limite1 | M21: limite2 | N21: valor | P21: ICT | Q21: =IFERROR( VLOOKUP($C$19,REGLAS!$A$1:$S$1901,15,FALSE), " " ) -> 
L22: 0.8 | M22: 0.8 | N22: 0.8 | P22: GCT | Q22: =IFERROR( VLOOKUP($C$19,REGLAS!$A$1:$S$1901,16,FALSE), " " ) -> 
L23: 1 | M23: 1 | N23: 1 | P23: ACC | Q23: =IFERROR( VLOOKUP($C$19,REGLAS!$A$1:$S$1901,17,FALSE), " ") -> 
M24: =C12/100 -> 
P25: ICT | Q25: GCT | R25: ACC
P26: 0 | Q26: 0 | R26: 0 | S26: 0
P27: 0 | Q27: 0 | R27: 0
P28: =IFERROR( VLOOKUP($C$19,REGLAS!$A$1:$S$1901,16,FALSE), " " ) ->  | Q28: =IFERROR( VLOOKUP($C$19,REGLAS!$A$1:$S$1901,17,FALSE), " " ) ->  | R28: =IFERROR( VLOOKUP($C$19,REGLAS!$A$1:$S$1901,18,FALSE), " ") -> 
B30: 1/ El Decreto Legislativo 1275, que aprueba el Marco de la Responsabilidad y Transparencia Fiscal de los Gobiernos Regionales y Gobiernos Locales, deroga la Ley N° 30099, dejando sin efecto las reglas fiscales establecidas en el literal a) y b) del artículo 7°, así como las medidas correctivas establecidas en el numeral 8.4 del artículo 8° de la LFRTF y las metas de convergencia en adelante se aplicará lo establecido en el artículo 6° de dicho Decreto Legislativo.
B31: 2/ Corresponde a la suma de los flujos transferidos por concepto de Recursos Determinados provenientes de Canon, Sobrecanon, Regalías, Renta de Aduanas y Participaciones de los años 2016 y 2017, más el tope presupuestal por el mismo concepto incluido en el Presupuesto Institucional de Apertura 2018, aprobado mediante Ley N° 30693 – Ley de Presupuesto del Sector Público para el Año Fiscal 2018, informado a través de Memorando N° 179-2018-EF/50.03 por la Dirección General de Política de Presupuesto Público del Ministerio de Economía y Finanzas.
B33: Nota: En el caso de saldo de pasivos la información disponible es al 2do trimestre de 2018, deuda exigible al 3er trimestre de 2018 y deuda real a julio de 2018.
B34: Fuente: SICON-MEF, SIAF-MEF, SUNAT, SBS y AFP.

Sheet REGLAS (hidden)
A1: BUSQUEDA | B1: NRO | C1: Ubigeo | D1: Departamento | E1: Entidad | F1: SDT | G1: B01 | H1: PROM_ICT | I1: LIMITE_LEY | J1: Espacio Total | K1: B02 | L1: STD_PROM_ICT | M1: B03 | N1: Cumple_R1 | O1: B04 | P1: ICT | Q1: GCT | R1: ACC | S1: Cumple_R2
A2: 010000 : GOBIERNO REGIONAL DE AMAZONAS | B2: 1 | C2: 010000 | D2: AMAZONAS | E2: GOBIERNO REGIONAL AMAZONAS | F2: =VLOOKUP(C2,'Anexo_GR '!$C$9:$E$34,3,FALSE) -> 448252.6431 | H2: =VLOOKUP(C2,'Anexo_GR '!$C$9:$I$34,4,FALSE) -> 533622.7484 | I2: =VLOOKUP(C2,'Anexo_GR '!$C$9:$I$34,5,FALSE) -> 4.56198 | L2: =VLOOKUP(C2,'Anexo_GR '!$C$9:$I$34,6,FALSE) -> 84.00178674 | N2: =VLOOKUP(C2,'Anexo_GR '!$C$9:$I$34,7,FALSE) -> Cumple | P2: =VLOOKUP(C2,'Anexo_GR '!$C$9:$N$34,9,FALSE) -> 462771.6736 | Q2: =VLOOKUP(C2,'Anexo_GR '!$C$9:$N$34,10,FALSE) -> 444609.3496 | R2: =VLOOKUP(C2,'Anexo_GR '!$C$9:$N$34,11,FALSE) -> 18162.32406 | S2: =VLOOKUP(C2,'Anexo_GR '!$C$9:$N$34,12,FALSE) -> Cumple
A3: 020000 : GOBIERNO REGIONAL DE ANCASH | B3: 2 | C3: 020000 | D3: ANCASH | E3: GOBIERNO REGIONAL ANCASH | F3: =VLOOKUP(C3,'Anexo_GR '!$C$9:$E$34,3,FALSE) -> 457110.6689 | H3: =VLOOKUP(C3,'Anexo_GR '!$C$9:$I$34,4,FALSE) -> 1316894.211 | I3: =VLOOKUP(C3,'Anexo_GR '!$C$9:$I$34,5,FALSE) -> 324314.3632 | L3: =VLOOKUP(C3,'Anexo_GR '!$C$9:$I$34,6,FALSE) -> 34.71126725 | N3: =VLOOKUP(C3,'Anexo_GR '!$C$9:$I$34,7,FALSE) -> Cumple | P3: =VLOOKUP(C3,'Anexo_GR '!$C$9:$N$34,9,FALSE) -> 1243107.175 | Q3: =VLOOKUP(C3,'Anexo_GR '!$C$9:$N$34,10,FALSE) -> 971429.7775 | R3: =VLOOKUP(C3,'Anexo_GR '!$C$9:$N$34,11,FALSE) -> 271677.3975 | S3: =VLOOKUP(C3,'Anexo_GR '!$C$9:$N$34,12,FALSE) -> Cumple
A4: 030000 : GOBIERNO REGIONAL DE APURIMAC | B4: 3 | C4: 030000 | D4: APURIMAC | E4: GOBIERNO REGIONAL APURIMAC | F4: =VLOOKUP(C4,'Anexo_GR '!$C$9:$E$34,3,FALSE) -> 554494.3644 | H4: =VLOOKUP(C4,'Anexo_GR '!$C$9:$I$34,4,FALSE) -> 680098.7637 | I4: =VLOOKUP(C4,'Anexo_GR '!$C$9:$I$34,5,FALSE) -> 64571.57428 | L4: =VLOOKUP(C4,'Anexo_GR '!$C$9:$I$34,6,FALSE) -> 81.5314472 | N4: =VLOOKUP(C4,'Anexo_GR '!$C$9:$I$34,7,FALSE) -> Cumple | P4: =VLOOKUP(C4,'Anexo_GR '!$C$9:$N$34,9,FALSE) -> 577539.4486 | Q4: =VLOOKUP(C4,'Anexo_GR '!$C$9:$N$34,10,FALSE) -> 535060.2028 | R4: =VLOOKUP(C4,'Anexo_GR '!$C$9:$N$34,11,FALSE) -> 42479.24583 | S4: =VLOOKUP(C4,'Anexo_GR '!$C$9:$N$34,12,FALSE) -> Cumple
A5: 040000 : GOBIERNO REGIONAL DE AREQUIPA | B5: 4 | C5: 040000 | D5: AREQUIPA | E5: GOBIERNO REGIONAL AREQUIPA | F5: =VLOOKUP(C5,'Anexo_GR '!$C$9:$E$34,3,FALSE) -> 1337498.362 | H5: =VLOOKUP(C5,'Anexo_GR '!$C$9:$I$34,4,FALSE) -> 1232405.415 | I5: =VLOOKUP(C5,'Anexo_GR '!$C$9:$I$34,5,FALSE) -> 243356.3318 | L5: =VLOOKUP(C5,'Anexo_GR '!$C$9:$I$34,6,FALSE) -> 108.5274655 | N5: =VLOOKUP(C5,'Anexo_GR '!$C$9:$I$34,7,FALSE) -> No Cumple | P5: =VLOOKUP(C5,'Anexo_GR '!$C$9:$N$34,9,FALSE) -> 1125277.704 | Q5: =VLOOKUP(C5,'Anexo_GR '!$C$9:$N$34,10,FALSE) -> 922150.5832 | R5: =VLOOKUP(C5,'Anexo_GR '!$C$9:$N$34,11,FALSE) -> 203127.1206 | S5: =VLOOKUP(C5,'Anexo_GR '!$C$9:$N$34,12,FALSE) -> Cumple
A6: 050000 : GOBIERNO REGIONAL DE AYACUCHO | B6: 5 | C6: 050000 | D6: AYACUCHO | E6: GOBIERNO REGIONAL AYACUCHO | F6: =VLOOKUP(C6,'Anexo_GR '!$C$9:$E$34,3,FALSE) -> 565735.8989 | H6: =VLOOKUP(C6,'Anexo_GR '!$C$9:$I$34,4,FALSE) -> 954626.2014 | I6: =VLOOKUP(C6,'Anexo_GR '!$C$9:$I$34,5,FALSE) -> 78543.27508 | L6: =VLOOKUP(C6,'Anexo_GR '!$C$9:$I$34,6,FALSE) -> 59.26255723 | N6: =VLOOKUP(C6,'Anexo_GR '!$C$9:$I$34,7,FALSE) -> Cumple | P6: =VLOOKUP(C6,'Anexo_GR '!$C$9:$N$34,9,FALSE) -> 808482.2286 | Q6: =VLOOKUP(C6,'Anexo_GR '!$C$9:$N$34,10,FALSE) -> 751255.0008 | R6: =VLOOKUP(C6,'Anexo_GR '!$C$9:$N$34,11,FALSE) -> 57227.22777 | S6: =VLOOKUP(C6,'Anexo_GR '!$C$9:$N$34,12,FALSE) -> Cumple
A7: 060000 : GOBIERNO REGIONAL DE CAJAMARCA | B7: 6 | C7: 060000 | D7: CAJAMARCA | E7: GOBIERNO REGIONAL CAJAMARCA | F7: =VLOOKUP(C7,'Anexo_GR '!$C$9:$E$34,3,FALSE) -> 1421251.421 | H7: =VLOOKUP(C7,'Anexo_GR '!$C$9:$I$34,4,FALSE) -> 1509803.575 | I7: =VLOOKUP(C7,'Anexo_GR '!$C$9:$I$34,5,FALSE) -> 136385.8685 | L7: =VLOOKUP(C7,'Anexo_GR '!$C$9:$I$34,6,FALSE) -> 94.13485598 | N7: =VLOOKUP(C7,'Anexo_GR '!$C$9:$I$34,7,FALSE) -> Cumple | P7: =VLOOKUP(C7,'Anexo_GR '!$C$9:$N$34,9,FALSE) -> 1286433.141 | Q7: =VLOOKUP(C7,'Anexo_GR '!$C$9:$N$34,10,FALSE) -> 1214636.873 | R7: =VLOOKUP(C7,'Anexo_GR '!$C$9:$N$34,11,FALSE) -> 71796.26791 | S7: =VLOOKUP(C7,'Anexo_GR '!$C$9:$N$34,12,FALSE) -> Cumple
A8: 070000 : GOBIERNO REGIONAL DEL CALLAO | B8: 7 | C8: 070000 | D8: CALLAO | E8: GOBIERNO REGIONAL CALLAO | F8: =VLOOKUP(C8,'Anexo_GR '!$C$9:$E$34,3,FALSE) -> 533673.7137 | H8: =VLOOKUP(C8,'Anexo_GR '!$C$9:$I$34,4,FALSE) -> 899764.0148 | I8: =VLOOKUP(C8,'Anexo_GR '!$C$9:$I$34,5,FALSE) -> 683824.6884 | L8: =VLOOKUP(C8,'Anexo_GR '!$C$9:$I$34,6,FALSE) -> 59.31263142 | N8: =VLOOKUP(C8,'Anexo_GR '!$C$9:$I$34,7,FALSE) -> Cumple | P8: =VLOOKUP(C8,'Anexo_GR '!$C$9:$N$34,9,FALSE) -> 745005.156 | Q8: =VLOOKUP(C8,'Anexo_GR '!$C$9:$N$34,10,FALSE) -> 664211.8929 | R8: =VLOOKUP(C8,'Anexo_GR '!$C$9:$N$34,11,FALSE) -> 80793.2631 | S8: =VLOOKUP(C8,'Anexo_GR '!$C$9:$N$34,12,FALSE) -> Cumple
A9: 080000 : GOBIERNO REGIONAL DE CUSCO | B9: 8 | C9: 080000 | D9: CUSCO | E9: GOBIERNO REGIONAL CUSCO | F9: =VLOOKUP(C9,'Anexo_GR '!$C$9:$E$34,3,FALSE) -> 1104262.764 | H9: =VLOOKUP(C9,'Anexo_GR '!$C$9:$I$34,4,FALSE) -> 1585531.853 | I9: =VLOOKUP(C9,'Anexo_GR '!$C$9:$I$34,5,FALSE) -> 880874.3049 | L9: =VLOOKUP(C9,'Anexo_GR '!$C$9:$I$34,6,FALSE) -> 69.64620495 | N9: =VLOOKUP(C9,'Anexo_GR '!$C$9:$I$34,7,FALSE) -> Cumple | P9: =VLOOKUP(C9,'Anexo_GR '!$C$9:$N$34,9,FALSE) -> 1337381.18 | Q9: =VLOOKUP(C9,'Anexo_GR '!$C$9:$N$34,10,FALSE) -> 1008284.82 | R9: =VLOOKUP(C9,'Anexo_GR '!$C$9:$N$34,11,FALSE) -> 329096.3608 | S9: =VLOOKUP(C9,'Anexo_GR '!$C$9:$N$34,12,FALSE) -> Cumple
A10: 090000 : GOBIERNO REGIONAL DE HUANCAVELICA | B10: 9 | C10: 090000 | D10: HUANCAVELICA | E10: GOBIERNO REGIONAL HUANCAVELICA | F10: =VLOOKUP(C10,'Anexo_GR '!$C$9:$E$34,3,FALSE) -> 240418.1601 | H10: =VLOOKUP(C10,'Anexo_GR '!$C$9:$I$34,4,FALSE) -> 714724.7944 | I10: =VLOOKUP(C10,'Anexo_GR '!$C$9:$I$34,5,FALSE) -> 93945.67433 | L10: =VLOOKUP(C10,'Anexo_GR '!$C$9:$I$34,6,FALSE) -> 33.6378648 | N10: =VLOOKUP(C10,'Anexo_GR '!$C$9:$I$34,7,FALSE) -> Cumple | P10: =VLOOKUP(C10,'Anexo_GR '!$C$9:$N$34,9,FALSE) -> 594079.0899 | Q10: =VLOOKUP(C10,'Anexo_GR '!$C$9:$N$34,10,FALSE) -> 558556.2729 | R10: =VLOOKUP(C10,'Anexo_GR '!$C$9:$N$34,11,FALSE) -> 35522.81703 | S10: =VLOOKUP(C10,'Anexo_GR '!$C$9:$N$34,12,FALSE) -> Cumple
A11: 100000 : GOBIERNO REGIONAL DE HUANUCO | B11: 10 | C11: 100000 | D11: HUANUCO | E11: GOBIERNO REGIONAL HUANUCO | F11: =VLOOKUP(C11,'Anexo_GR '!$C$9:$E$34,3,FALSE) -> 226543.3086 | H11: =VLOOKUP(C11,'Anexo_GR '!$C$9:$I$34,4,FALSE) -> 783099.1466 | I11: =VLOOKUP(C11,'Anexo_GR '!$C$9:$I$34,5,FALSE) -> 2148.02378 | L11: =VLOOKUP(C11,'Anexo_GR '!$C$9:$I$34,6,FALSE) -> 28.92907106 | N11: =VLOOKUP(C11,'Anexo_GR '!$C$9:$I$34,7,FALSE) -> Cumple | P11: =VLOOKUP(C11,'Anexo_GR '!$C$9:$N$34,9,FALSE) -> 674529.6972 | Q11: =VLOOKUP(C11,'Anexo_GR '!$C$9:$N$34,10,FALSE) -> 653217.4588 | R11: =VLOOKUP(C11,'Anexo_GR '!$C$9:$N$34,11,FALSE) -> 21312.23843 | S11: =VLOOKUP(C11,'Anexo_GR '!$C$9:$N$34,12,FALSE) -> Cumple
A12: 110000 : GOBIERNO REGIONAL DE ICA | B12: 11 | C12: 110000 | D12: ICA | E12: GOBIERNO REGIONAL ICA | F12: =VLOOKUP(C12,'Anexo_GR '!$C$9:$E$34,3,FALSE) -> 221197.4945 | H12: =VLOOKUP(C12,'Anexo_GR '!$C$9:$I$34,4,FALSE) -> 810804.9631 | I12: =VLOOKUP(C12,'Anexo_GR '!$C$9:$I$34,5,FALSE) -> 111349.0152 | L12: =VLOOKUP(C12,'Anexo_GR '!$C$9:$I$34,6,FALSE) -> 27.28122108 | N12: =VLOOKUP(C12,'Anexo_GR '!$C$9:$I$34,7,FALSE) -> Cumple | P12: =VLOOKUP(C12,'Anexo_GR '!$C$9:$N$34,9,FALSE) -> 691733.2933 | Q12: =VLOOKUP(C12,'Anexo_GR '!$C$9:$N$34,10,FALSE) -> 620614.7775 | R12: =VLOOKUP(C12,'Anexo_GR '!$C$9:$N$34,11,FALSE) -> 71118.51577 | S12: =VLOOKUP(C12,'Anexo_GR '!$C$9:$N$34,12,FALSE) -> Cumple
A13: 120000 : GOBIERNO REGIONAL DE JUNIN | B13: 12 | C13: 120000 | D13: JUNIN | E13: GOBIERNO REGIONAL JUNIN | F13: =VLOOKUP(C13,'Anexo_GR '!$C$9:$E$34,3,FALSE) -> 747643.7642 | H13: =VLOOKUP(C13,'Anexo_GR '!$C$9:$I$34,4,FALSE) -> 1233507.446 | I13: =VLOOKUP(C13,'Anexo_GR '!$C$9:$I$34,5,FALSE) -> 44458.64268 | L13: =VLOOKUP(C13,'Anexo_GR '!$C$9:$I$34,6,FALSE) -> 60.61120805 | N13: =VLOOKUP(C13,'Anexo_GR '!$C$9:$I$34,7,FALSE) -> Cumple | P13: =VLOOKUP(C13,'Anexo_GR '!$C$9:$N$34,9,FALSE) -> 1093095.08 | Q13: =VLOOKUP(C13,'Anexo_GR '!$C$9:$N$34,10,FALSE) -> 1014447.976 | R13: =VLOOKUP(C13,'Anexo_GR '!$C$9:$N$34,11,FALSE) -> 78647.10455 | S13: =VLOOKUP(C13,'Anexo_GR '!$C$9:$N$34,12,FALSE) -> Cumple
A14: 130000 : GOBIERNO REGIONAL DE LA LIBERTAD | B14: 13 | C14: 130000 | D14: LA LIBERTAD | E14: GOBIERNO REGIONAL LA LIBERTAD | F14: =VLOOKUP(C14,'Anexo_GR '!$C$9:$E$34,3,FALSE) -> 1479021.525 | H14: =VLOOKUP(C14,'Anexo_GR '!$C$9:$I$34,4,FALSE) -> 1498845.989 | I14: =VLOOKUP(C14,'Anexo_GR '!$C$9:$I$34,5,FALSE) -> 163627.1163 | L14: =VLOOKUP(C14,'Anexo_GR '!$C$9:$I$34,6,FALSE) -> 98.67735149 | N14: =VLOOKUP(C14,'Anexo_GR '!$C$9:$I$34,7,FALSE) -> Cumple | P14: =VLOOKUP(C14,'Anexo_GR '!$C$9:$N$34,9,FALSE) -> 1300211.126 | Q14: =VLOOKUP(C14,'Anexo_GR '!$C$9:$N$34,10,FALSE) -> 1154751.388 | R14: =VLOOKUP(C14,'Anexo_GR '!$C$9:$N$34,11,FALSE) -> 145459.7375 | S14: =VLOOKUP(C14,'Anexo_GR '!$C$9:$N$34,12,FALSE) -> Cumple
A15: 140000 : GOBIERNO REGIONAL DE LAMBAYEQUE | B15: 14 | C15: 140000 | D15: LAMBAYEQUE | E15: GOBIERNO REGIONAL LAMBAYEQUE | F15: =VLOOKUP(C15,'Anexo_GR '!$C$9:$E$34,3,FALSE) -> 518527.6783 | H15: =VLOOKUP(C15,'Anexo_GR '!$C$9:$I$34,4,FALSE) -> 897782.1079 | I15: =VLOOKUP(C15,'Anexo_GR '!$C$9:$I$34,5,FALSE) -> 7.75708 | L15: =VLOOKUP(C15,'Anexo_GR '!$C$9:$I$34,6,FALSE) -> 57.75651728 | N15: =VLOOKUP(C15,'Anexo_GR '!$C$9:$I$34,7,FALSE) -> Cumple | P15: =VLOOKUP(C15,'Anexo_GR '!$C$9:$N$34,9,FALSE) -> 760326.0619 | Q15: =VLOOKUP(C15,'Anexo_GR '!$C$9:$N$34,10,FALSE) -> 706596.5158 | R15: =VLOOKUP(C15,'Anexo_GR '!$C$9:$N$34,11,FALSE) -> 53729.54611 | S15: =VLOOKUP(C15,'Anexo_GR '!$C$9:$N$34,12,FALSE) -> Cumple
A16: 150000 : GOBIERNO REGIONAL DE LIMA | B16: 15 | C16: 150000 | D16: LIMA | E16: GOBIERNO REGIONAL LIMA | F16: =VLOOKUP(C16,'Anexo_GR '!$C$9:$E$34,3,FALSE) -> 163659.884 | H16: =VLOOKUP(C16,'Anexo_GR '!$C$9:$I$34,4,FALSE) -> 999171.0988 | I16: =VLOOKUP(C16,'Anexo_GR '!$C$9:$I$34,5,FALSE) -> 123361.3261 | L16: =VLOOKUP(C16,'Anexo_GR '!$C$9:$I$34,6,FALSE) -> 16.37956544 | N16: =VLOOKUP(C16,'Anexo_GR '!$C$9:$I$34,7,FALSE) -> Cumple | P16: =VLOOKUP(C16,'Anexo_GR '!$C$9:$N$34,9,FALSE) -> 810097.5305 | Q16: =VLOOKUP(C16,'Anexo_GR '!$C$9:$N$34,10,FALSE) -> 786738.5919 | R16: =VLOOKUP(C16,'Anexo_GR '!$C$9:$N$34,11,FALSE) -> 23358.93858 | S16: =VLOOKUP(C16,'Anexo_GR '!$C$9:$N$34,12,FALSE) -> Cumple
A17: 160000 : GOBIERNO REGIONAL DE LORETO | B17: 16 | C17: 160000 | D17: LORETO | E17: GOBIERNO REGIONAL LORETO | F17: =VLOOKUP(C17,'Anexo_GR '!$C$9:$E$34,3,FALSE) -> 496715.0225 | H17: =VLOOKUP(C17,'Anexo_GR '!$C$9:$I$34,4,FALSE) -> 1219055.481 | I17: =VLOOKUP(C17,'Anexo_GR '!$C$9:$I$34,5,FALSE) -> 68078.28517 | L17: =VLOOKUP(C17,'Anexo_GR '!$C$9:$I$34,6,FALSE) -> 40.7458914 | N17: =VLOOKUP(C17,'Anexo_GR '!$C$9:$I$34,7,FALSE) -> Cumple | P17: =VLOOKUP(C17,'Anexo_GR '!$C$9:$N$34,9,FALSE) -> 1094786.683 | Q17: =VLOOKUP(C17,'Anexo_GR '!$C$9:$N$34,10,FALSE) -> 1056068.93 | R17: =VLOOKUP(C17,'Anexo_GR '!$C$9:$N$34,11,FALSE) -> 38717.75333 | S17: =VLOOKUP(C17,'Anexo_GR '!$C$9:$N$34,12,FALSE) -> Cumple
A18: 170000 : GOBIERNO REGIONAL DE MADRE DE DIOS | B18: 17 | C18: 170000 | D18: MADRE DE DIOS | E18: GOBIERNO REGIONAL MADRE DE DIOS | F18: =VLOOKUP(C18,'Anexo_GR '!$C$9:$E$34,3,FALSE) -> 113143.7377 | H18: =VLOOKUP(C18,'Anexo_GR '!$C$9:$I$34,4,FALSE) -> 199271.7988 | I18: =VLOOKUP(C18,'Anexo_GR '!$C$9:$I$34,5,FALSE) -> 461.36884 | L18: =VLOOKUP(C18,'Anexo_GR '!$C$9:$I$34,6,FALSE) -> 56.77860006 | N18: =VLOOKUP(C18,'Anexo_GR '!$C$9:$I$34,7,FALSE) -> Cumple | P18: =VLOOKUP(C18,'Anexo_GR '!$C$9:$N$34,9,FALSE) -> 168379.1287 | Q18: =VLOOKUP(C18,'Anexo_GR '!$C$9:$N$34,10,FALSE) -> 160062.607 | R18: =VLOOKUP(C18,'Anexo_GR '!$C$9:$N$34,11,FALSE) -> 8316.52168 | S18: =VLOOKUP(C18,'Anexo_GR '!$C$9:$N$34,12,FALSE) -> Cumple
A19: 180000 : GOBIERNO REGIONAL DE MOQUEGUA | B19: 18 | C19: 180000 | D19: MOQUEGUA | E19: GOBIERNO REGIONAL MOQUEGUA | F19: =VLOOKUP(C19,'Anexo_GR '!$C$9:$E$34,3,FALSE) -> 398717.6896 | H19: =VLOOKUP(C19,'Anexo_GR '!$C$9:$I$34,4,FALSE) -> 306277.6638 | I19: =VLOOKUP(C19,'Anexo_GR '!$C$9:$I$34,5,FALSE) -> 90747.22613 | L19: =VLOOKUP(C19,'Anexo_GR '!$C$9:$I$34,6,FALSE) -> 130.1817719 | N19: =VLOOKUP(C19,'Anexo_GR '!$C$9:$I$34,7,FALSE) -> No Cumple | P19: =VLOOKUP(C19,'Anexo_GR '!$C$9:$N$34,9,FALSE) -> 267414.446 | Q19: =VLOOKUP(C19,'Anexo_GR '!$C$9:$N$34,10,FALSE) -> 225447.8125 | R19: =VLOOKUP(C19,'Anexo_GR '!$C$9:$N$34,11,FALSE) -> 41966.63346 | S19: =VLOOKUP(C19,'Anexo_GR '!$C$9:$N$34,12,FALSE) -> Cumple
A20: 190000 : GOBIERNO REGIONAL DE PASCO | B20: 19 | C20: 190000 | D20: PASCO | E20: GOBIERNO REGIONAL PASCO | F20: =VLOOKUP(C20,'Anexo_GR '!$C$9:$E$34,3,FALSE) -> 303298.6245 | H20: =VLOOKUP(C20,'Anexo_GR '!$C$9:$I$34,4,FALSE) -> 356572.5483 | I20: =VLOOKUP(C20,'Anexo_GR '!$C$9:$I$34,5,FALSE) -> 28508.24556 | L20: =VLOOKUP(C20,'Anexo_GR '!$C$9:$I$34,6,FALSE) -> 85.05944328 | N20: =VLOOKUP(C20,'Anexo_GR '!$C$9:$I$34,7,FALSE) -> Cumple | P20: =VLOOKUP(C20,'Anexo_GR '!$C$9:$N$34,9,FALSE) -> 306035.8693 | Q20: =VLOOKUP(C20,'Anexo_GR '!$C$9:$N$34,10,FALSE) -> 279562.2493 | R20: =VLOOKUP(C20,'Anexo_GR '!$C$9:$N$34,11,FALSE) -> 26473.62 | S20: =VLOOKUP(C20,'Anexo_GR '!$C$9:$N$34,12,FALSE) -> Cumple
A21: 200000 : GOBIERNO REGIONAL DE PIURA | B21: 20 | C21: 200000 | D21: PIURA | E21: GOBIERNO REGIONAL PIURA | F21: =VLOOKUP(C21,'Anexo_GR '!$C$9:$E$34,3,FALSE) -> 1475806.721 | H21: =VLOOKUP(C21,'Anexo_GR '!$C$9:$I$34,4,FALSE) -> 1453530.455 | I21: =VLOOKUP(C21,'Anexo_GR '!$C$9:$I$34,5,FALSE) -> 195954.8462 | L21: =VLOOKUP(C21,'Anexo_GR '!$C$9:$I$34,6,FALSE) -> 101.5325627 | N21: =VLOOKUP(C21,'Anexo_GR '!$C$9:$I$34,7,FALSE) -> No Cumple | P21: =VLOOKUP(C21,'Anexo_GR '!$C$9:$N$34,9,FALSE) -> 1207270.499 | Q21: =VLOOKUP(C21,'Anexo_GR '!$C$9:$N$34,10,FALSE) -> 1135588.264 | R21: =VLOOKUP(C21,'Anexo_GR '!$C$9:$N$34,11,FALSE) -> 71682.23559 | S21: =VLOOKUP(C21,'Anexo_GR '!$C$9:$N$34,12,FALSE) -> Cumple
A22: 210000 : GOBIERNO REGIONAL DE PUNO | B22: 21 | C22: 210000 | D22: PUNO | E22: GOBIERNO REGIONAL PUNO | F22: =VLOOKUP(C22,'Anexo_GR '!$C$9:$E$34,3,FALSE) -> 1289083.411 | H22: =VLOOKUP(C22,'Anexo_GR '!$C$9:$I$34,4,FALSE) -> 1302453.677 | I22: =VLOOKUP(C22,'Anexo_GR '!$C$9:$I$34,5,FALSE) -> 66805.87353 | L22: =VLOOKUP(C22,'Anexo_GR '!$C$9:$I$34,6,FALSE) -> 98.97345551 | N22: =VLOOKUP(C22,'Anexo_GR '!$C$9:$I$34,7,FALSE) -> Cumple | P22: =VLOOKUP(C22,'Anexo_GR '!$C$9:$N$34,9,FALSE) -> 1088462.142 | Q22: =VLOOKUP(C22,'Anexo_GR '!$C$9:$N$34,10,FALSE) -> 1036053.207 | R22: =VLOOKUP(C22,'Anexo_GR '!$C$9:$N$34,11,FALSE) -> 52408.935 | S22: =VLOOKUP(C22,'Anexo_GR '!$C$9:$N$34,12,FALSE) -> Cumple
A23: 220000 : GOBIERNO REGIONAL DE SAN MARTIN | B23: 22 | C23: 220000 | D23: SAN MARTIN | E23: GOBIERNO REGIONAL SAN MARTIN | F23: =VLOOKUP(C23,'Anexo_GR '!$C$9:$E$34,3,FALSE) -> 576016.8786 | H23: =VLOOKUP(C23,'Anexo_GR '!$C$9:$I$34,4,FALSE) -> 894571.5964 | I23: =VLOOKUP(C23,'Anexo_GR '!$C$9:$I$34,5,FALSE) -> 1198.14807 | L23: =VLOOKUP(C23,'Anexo_GR '!$C$9:$I$34,6,FALSE) -> 64.39024902 | N23: =VLOOKUP(C23,'Anexo_GR '!$C$9:$I$34,7,FALSE) -> Cumple | P23: =VLOOKUP(C23,'Anexo_GR '!$C$9:$N$34,9,FALSE) -> 764290.032 | Q23: =VLOOKUP(C23,'Anexo_GR '!$C$9:$N$34,10,FALSE) -> 687468.3992 | R23: =VLOOKUP(C23,'Anexo_GR '!$C$9:$N$34,11,FALSE) -> 76821.63283 | S23: =VLOOKUP(C23,'Anexo_GR '!$C$9:$N$34,12,FALSE) -> Cumple
A24: 230000 : GOBIERNO REGIONAL DE TACNA | B24: 23 | C24: 230000 | D24: TACNA | E24: GOBIERNO REGIONAL TACNA | F24: =VLOOKUP(C24,'Anexo_GR '!$C$9:$E$34,3,FALSE) -> 355316.1195 | H24: =VLOOKUP(C24,'Anexo_GR '!$C$9:$I$34,4,FALSE) -> 418222.8315 | I24: =VLOOKUP(C24,'Anexo_GR '!$C$9:$I$34,5,FALSE) -> 89307.64346 | L24: =VLOOKUP(C24,'Anexo_GR '!$C$9:$I$34,6,FALSE) -> 84.95856581 | N24: =VLOOKUP(C24,'Anexo_GR '!$C$9:$I$34,7,FALSE) -> Cumple | P24: =VLOOKUP(C24,'Anexo_GR '!$C$9:$N$34,9,FALSE) -> 357291.0022 | Q24: =VLOOKUP(C24,'Anexo_GR '!$C$9:$N$34,10,FALSE) -> 299861.7535 | R24: =VLOOKUP(C24,'Anexo_GR '!$C$9:$N$34,11,FALSE) -> 57429.24871 | S24: =VLOOKUP(C24,'Anexo_GR '!$C$9:$N$34,12,FALSE) -> Cumple
A25: 240000 : GOBIERNO REGIONAL DE TUMBES | B25: 24 | C25: 240000 | D25: TUMBES | E25: GOBIERNO REGIONAL TUMBES | F25: =VLOOKUP(C25,'Anexo_GR '!$C$9:$E$34,3,FALSE) -> 186585.6065 | H25: =VLOOKUP(C25,'Anexo_GR '!$C$9:$I$34,4,FALSE) -> 368616.3888 | I25: =VLOOKUP(C25,'Anexo_GR '!$C$9:$I$34,5,FALSE) -> 72768.68037 | L25: =VLOOKUP(C25,'Anexo_GR '!$C$9:$I$34,6,FALSE) -> 50.61782713 | N25: =VLOOKUP(C25,'Anexo_GR '!$C$9:$I$34,7,FALSE) -> Cumple | P25: =VLOOKUP(C25,'Anexo_GR '!$C$9:$N$34,9,FALSE) -> 299482.1025 | Q25: =VLOOKUP(C25,'Anexo_GR '!$C$9:$N$34,10,FALSE) -> 275474.5158 | R25: =VLOOKUP(C25,'Anexo_GR '!$C$9:$N$34,11,FALSE) -> 24007.58668 | S25: =VLOOKUP(C25,'Anexo_GR '!$C$9:$N$34,12,FALSE) -> Cumple
A26: 250000 : GOBIERNO REGIONAL DE UCAYALI | B26: 25 | C26: 250000 | D26: UCAYALI | E26: GOBIERNO REGIONAL UCAYALI | F26: =VLOOKUP(C26,'Anexo_GR '!$C$9:$E$34,3,FALSE) -> 344148.4089 | H26: =VLOOKUP(C26,'Anexo_GR '!$C$9:$I$34,4,FALSE) -> 549099.1354 | I26: =VLOOKUP(C26,'Anexo_GR '!$C$9:$I$34,5,FALSE) -> 51203.07898 | L26: =VLOOKUP(C26,'Anexo_GR '!$C$9:$I$34,6,FALSE) -> 62.67509576 | N26: =VLOOKUP(C26,'Anexo_GR '!$C$9:$I$34,7,FALSE) -> Cumple | P26: =VLOOKUP(C26,'Anexo_GR '!$C$9:$N$34,9,FALSE) -> 501360.6928 | Q26: =VLOOKUP(C26,'Anexo_GR '!$C$9:$N$34,10,FALSE) -> 467437.8109 | R26: =VLOOKUP(C26,'Anexo_GR '!$C$9:$N$34,11,FALSE) -> 33922.88193 | S26: =VLOOKUP(C26,'Anexo_GR '!$C$9:$N$34,12,FALSE) -> Cumple
A27: 260000 : REGION LIMA METROPOLITANA | B27: 26 | C27: 260000 | D27: MM LIMA | E27: REGION LIMA METROPOLITANA | F27: =VLOOKUP(C27,'Anexo_GR '!$C$9:$E$34,3,FALSE) -> 2607.93129 | H27: =VLOOKUP(C27,'Anexo_GR '!$C$9:$I$34,4,FALSE) -> 21604.62081 | I27: =VLOOKUP(C27,'Anexo_GR '!$C$9:$I$34,5,FALSE) -> 7106.95294 | L27: =VLOOKUP(C27,'Anexo_GR '!$C$9:$I$34,6,FALSE) -> 12.07117363 | N27: =VLOOKUP(C27,'Anexo_GR '!$C$9:$I$34,7,FALSE) -> Cumple | P27: =VLOOKUP(C27,'Anexo_GR '!$C$9:$N$34,9,FALSE) -> 12084.69537 | Q27: =VLOOKUP(C27,'Anexo_GR '!$C$9:$N$34,10,FALSE) -> 10435.64019 | R27: =VLOOKUP(C27,'Anexo_GR '!$C$9:$N$34,11,FALSE) -> 1649.05518 | S27: =VLOOKUP(C27,'Anexo_GR '!$C$9:$N$34,12,FALSE) -> Cumple
A28: 010101 : MP DE CHACHAPOYAS | B28: 1 | C28: 010101 | D28: AMAZONAS | E28: MP DE CHACHAPOYAS | F28: =VLOOKUP(C28,'Anexo_GL '!$B$9:$N$1882,4,FALSE) -> 7748.8243 | H28: =VLOOKUP(C28,'Anexo_GL '!$B$9:$N$1882,5,FALSE) -> 14275.67783 | I28: =VLOOKUP(C28,'Anexo_GL '!$B$9:$N$1882,6,FALSE) -> 0.93111 | L28: =VLOOKUP(C28,'Anexo_GL '!$B$9:$N$1882,7,FALSE) -> 54.27990456 | N28: =VLOOKUP(C28,'Anexo_GL '!$B$9:$N$1882,8,FALSE) -> Cumple | P28: =VLOOKUP(C28,'Anexo_GL '!$B$9:$N$1882,10,FALSE) -> 10647.71411 | Q28: =VLOOKUP(C28,'Anexo_GL '!$B$9:$N$1882,11,FALSE) -> 8473.00786 | R28: =VLOOKUP(C28,'Anexo_GL '!$B$9:$N$1882,12,FALSE) -> 2174.70625 | S28: =VLOOKUP(C28,'Anexo_GL '!$B$9:$N$1882,13,FALSE) -> Cumple
A29: 010102 : MD DE ASUNCION | B29: 2 | C29: 010102 | D29: AMAZONAS | E29: MD DE ASUNCION | F29: =VLOOKUP(C29,'Anexo_GL '!$B$9:$N$1882,4,FALSE) -> 15.20119 | H29: =VLOOKUP(C29,'Anexo_GL '!$B$9:$N$1882,5,FALSE) -> 695.1270775 | I29: =VLOOKUP(C29,'Anexo_GL '!$B$9:$N$1882,6,FALSE) -> 0.00032 | L29: =VLOOKUP(C29,'Anexo_GL '!$B$9:$N$1882,7,FALSE) -> 2.186821733 | N29: =VLOOKUP(C29,'Anexo_GL '!$B$9:$N$1882,8,FALSE) -> Cumple | P29: =VLOOKUP(C29,'Anexo_GL '!$B$9:$N$1882,10,FALSE) -> 331.85695 | Q29: =VLOOKUP(C29,'Anexo_GL '!$B$9:$N$1882,11,FALSE) -> 271.20787 | R29: =VLOOKUP(C29,'Anexo_GL '!$B$9:$N$1882,12,FALSE) -> 60.64908 | S29: =VLOOKUP(C29,'Anexo_GL '!$B$9:$N$1882,13,FALSE) -> Cumple
A30: 010103 : MD DE BALSAS | B30: 3 | C30: 010103 | D30: AMAZONAS | E30: MD DE BALSAS | F30: =VLOOKUP(C30,'Anexo_GL '!$B$9:$N$1882,4,FALSE) -> 17.52934 | H30: =VLOOKUP(C30,'Anexo_GL '!$B$9:$N$1882,5,FALSE) -> 656.184705 | I30: =VLOOKUP(C30,'Anexo_GL '!$B$9:$N$1882,6,FALSE) -> 0.02982 | L30: =VLOOKUP(C30,'Anexo_GL '!$B$9:$N$1882,7,FALSE) -> 2.671403321 | N30: =VLOOKUP(C30,'Anexo_GL '!$B$9:$N$1882,8,FALSE) -> Cumple | P30: =VLOOKUP(C30,'Anexo_GL '!$B$9:$N$1882,10,FALSE) -> 539.5297 | Q30: =VLOOKUP(C30,'Anexo_GL '!$B$9:$N$1882,11,FALSE) -> 233.11088 | R30: =VLOOKUP(C30,'Anexo_GL '!$B$9:$N$1882,12,FALSE) -> 306.41882 | S30: =VLOOKUP(C30,'Anexo_GL '!$B$9:$N$1882,13,FALSE) -> Cumple
A31: 010104 : MD DE CHETO | B31: 4 | C31: 010104 | D31: AMAZONAS | E31: MD DE CHETO | F31: =VLOOKUP(C31,'Anexo_GL '!$B$9:$N$1882,4,FALSE) -> 26.41845 | H31: =VLOOKUP(C31,'Anexo_GL '!$B$9:$N$1882,5,FALSE) -> 492.6535775 | I31: =VLOOKUP(C31,'Anexo_GL '!$B$9:$N$1882,6,FALSE) -> 0.00075 | L31: =VLOOKUP(C31,'Anexo_GL '!$B$9:$N$1882,7,FALSE) -> 5.362480089 | N31: =VLOOKUP(C31,'Anexo_GL '!$B$9:$N$1882,8,FALSE) -> Cumple | P31: =VLOOKUP(C31,'Anexo_GL '!$B$9:$N$1882,10,FALSE) -> 340.15156 | Q31: =VLOOKUP(C31,'Anexo_GL '!$B$9:$N$1882,11,FALSE) -> 194.06774 | R31: =VLOOKUP(C31,'Anexo_GL '!$B$9:$N$1882,12,FALSE) -> 146.08382 | S31: =VLOOKUP(C31,'Anexo_GL '!$B$9:$N$1882,13,FALSE) -> Cumple
A32: 010105 : MD DE CHILIQUIN | B32: 5 | C32: 010105 | D32: AMAZONAS | E32: MD DE CHILIQUIN | F32: =VLOOKUP(C32,'Anexo_GL '!$B$9:$N$1882,4,FALSE) -> 9.37622 | H32: =VLOOKUP(C32,'Anexo_GL '!$B$9:$N$1882,5,FALSE) -> 831.83713 | I32: =VLOOKUP(C32,'Anexo_GL '!$B$9:$N$1882,6,FALSE) -> 0.0008 | L32: =VLOOKUP(C32,'Anexo_GL '!$B$9:$N$1882,7,FALSE) -> 1.127170171 | N32: =VLOOKUP(C32,'Anexo_GL '!$B$9:$N$1882,8,FALSE) -> Cumple | P32: =VLOOKUP(C32,'Anexo_GL '!$B$9:$N$1882,10,FALSE) -> 342.51194 | Q32: =VLOOKUP(C32,'Anexo_GL '!$B$9:$N$1882,11,FALSE) -> 189.57252 | R32: =VLOOKUP(C32,'Anexo_GL '!$B$9:$N$1882,12,FALSE) -> 152.93942 | S32: =VLOOKUP(C32,'Anexo_GL '!$B$9:$N$1882,13,FALSE) -> Cumple
A33: 010106 : MD DE CHUQUIBAMBA | B33: 6 | C33: 010106 | D33: AMAZONAS | E33: MD DE CHUQUIBAMBA | F33: =VLOOKUP(C33,'Anexo_GL '!$B$9:$N$1882,4,FALSE) -> 54.95646 | H33: =VLOOKUP(C33,'Anexo_GL '!$B$9:$N$1882,5,FALSE) -> 593.85582 | I33: =VLOOKUP(C33,'Anexo_GL '!$B$9:$N$1882,6,FALSE) -> 0.00138 | L33: =VLOOKUP(C33,'Anexo_GL '!$B$9:$N$1882,7,FALSE) -> 9.254175534 | N33: =VLOOKUP(C33,'Anexo_GL '!$B$9:$N$1882,8,FALSE) -> Cumple | P33: =VLOOKUP(C33,'Anexo_GL '!$B$9:$N$1882,10,FALSE) -> 439.29434 | Q33: =VLOOKUP(C33,'Anexo_GL '!$B$9:$N$1882,11,FALSE) -> 307.10717 | R33: =VLOOKUP(C33,'Anexo_GL '!$B$9:$N$1882,12,FALSE) -> 132.18717 | S33: =VLOOKUP(C33,'Anexo_GL '!$B$9:$N$1882,13,FALSE) -> Cumple
A34: 010107 : MD DE GRANADA | B34: 7 | C34: 010107 | D34: AMAZONAS | E34: MD DE GRANADA | F34: =VLOOKUP(C34,'Anexo_GL '!$B$9:$N$1882,4,FALSE) -> 193.64254 | H34: =VLOOKUP(C34,'Anexo_GL '!$B$9:$N$1882,5,FALSE) -> 552.714615 | I34: =VLOOKUP(C34,'Anexo_GL '!$B$9:$N$1882,6,FALSE) -> 0.0004 | L34: =VLOOKUP(C34,'Anexo_GL '!$B$9:$N$1882,7,FALSE) -> 35.03481449 | N34: =VLOOKUP(C34,'Anexo_GL '!$B$9:$N$1882,8,FALSE) -> Cumple | P34: =VLOOKUP(C34,'Anexo_GL '!$B$9:$N$1882,10,FALSE) -> 349.74443 | Q34: =VLOOKUP(C34,'Anexo_GL '!$B$9:$N$1882,11,FALSE) -> 281.33188 | R34: =VLOOKUP(C34,'Anexo_GL '!$B$9:$N$1882,12,FALSE) -> 68.41255 | S34: =VLOOKUP(C34,'Anexo_GL '!$B$9:$N$1882,13,FALSE) -> Cumple
A35: 010108 : MD DE HUANCAS | B35: 8 | C35: 010108 | D35: AMAZONAS | E35: MD DE HUANCAS | F35: =VLOOKUP(C35,'Anexo_GL '!$B$9:$N$1882,4,FALSE) -> 133.65872 | H35: =VLOOKUP(C35,'Anexo_GL '!$B$9:$N$1882,5,FALSE) -> 725.984445 | I35: =VLOOKUP(C35,'Anexo_GL '!$B$9:$N$1882,6,FALSE) -> 0.00155 | L35: =VLOOKUP(C35,'Anexo_GL '!$B$9:$N$1882,7,FALSE) -> 18.41068647 | N35: =VLOOKUP(C35,'Anexo_GL '!$B$9:$N$1882,8,FALSE) -> Cumple | P35: =VLOOKUP(C35,'Anexo_GL '!$B$9:$N$1882,10,FALSE) -> 490.35706 | Q35: =VLOOKUP(C35,'Anexo_GL '!$B$9:$N$1882,11,FALSE) -> 340.43187 | R35: =VLOOKUP(C35,'Anexo_GL '!$B$9:$N$1882,12,FALSE) -> 149.92519 | S35: =VLOOKUP(C35,'Anexo_GL '!$B$9:$N$1882,13,FALSE) -> Cumple
A36: 010109 : MD DE JALCA GRANDE | B36: 9 | C36: 010109 | D36: AMAZONAS | E36: MD DE JALCA GRANDE | F36: =VLOOKUP(C36,'Anexo_GL '!$B$9:$N$1882,4,FALSE) -> 18.58307 | H36: =VLOOKUP(C36,'Anexo_GL '!$B$9:$N$1882,5,FALSE) -> 1253.142428 | I36: =VLOOKUP(C36,'Anexo_GL '!$B$9:$N$1882,6,FALSE) -> 0.97817 | L36: =VLOOKUP(C36,'Anexo_GL '!$B$9:$N$1882,7,FALSE) -> 1.482917631 | N36: =VLOOKUP(C36,'Anexo_GL '!$B$9:$N$1882,8,FALSE) -> Cumple | P36: =VLOOKUP(C36,'Anexo_GL '!$B$9:$N$1882,10,FALSE) -> 933.24526 | Q36: =VLOOKUP(C36,'Anexo_GL '!$B$9:$N$1882,11,FALSE) -> 609.21154 | R36: =VLOOKUP(C36,'Anexo_GL '!$B$9:$N$1882,12,FALSE) -> 324.03372 | S36: =VLOOKUP(C36,'Anexo_GL '!$B$9:$N$1882,13,FALSE) -> Cumple
A37: 010110 : MD DE LEIMEBAMBA | B37: 10 | C37: 010110 | D37: AMAZONAS | E37: MD DE LEIMEBAMBA | F37: =VLOOKUP(C37,'Anexo_GL '!$B$9:$N$1882,4,FALSE) -> 67.06438 | H37: =VLOOKUP(C37,'Anexo_GL '!$B$9:$N$1882,5,FALSE) -> 982.1844 | I37: =VLOOKUP(C37,'Anexo_GL '!$B$9:$N$1882,6,FALSE) -> 0.00213 | L37: =VLOOKUP(C37,'Anexo_GL '!$B$9:$N$1882,7,FALSE) -> 6.828084421 | N37: =VLOOKUP(C37,'Anexo_GL '!$B$9:$N$1882,8,FALSE) -> Cumple | P37: =VLOOKUP(C37,'Anexo_GL '!$B$9:$N$1882,10,FALSE) -> 709.76161 | Q37: =VLOOKUP(C37,'Anexo_GL '!$B$9:$N$1882,11,FALSE) -> 494.66585 | R37: =VLOOKUP(C37,'Anexo_GL '!$B$9:$N$1882,12,FALSE) -> 215.09576 | S37: =VLOOKUP(C37,'Anexo_GL '!$B$9:$N$1882,13,FALSE) -> Cumple
A38: 010111 : MD DE LEVANTO | B38: 11 | C38: 010111 | D38: AMAZONAS | E38: MD DE LEVANTO | F38: =VLOOKUP(C38,'Anexo_GL '!$B$9:$N$1882,4,FALSE) -> 9.57794 | H38: =VLOOKUP(C38,'Anexo_GL '!$B$9:$N$1882,5,FALSE) -> 644.05955 | I38: =VLOOKUP(C38,'Anexo_GL '!$B$9:$N$1882,6,FALSE) -> 0.00106 | L38: =VLOOKUP(C38,'Anexo_GL '!$B$9:$N$1882,7,FALSE) -> 1.487120252 | N38: =VLOOKUP(C38,'Anexo_GL '!$B$9:$N$1882,8,FALSE) -> Cumple | P38: =VLOOKUP(C38,'Anexo_GL '!$B$9:$N$1882,10,FALSE) -> 403.65108 | Q38: =VLOOKUP(C38,'Anexo_GL '!$B$9:$N$1882,11,FALSE) -> 325.78328 | R38: =VLOOKUP(C38,'Anexo_GL '!$B$9:$N$1882,12,FALSE) -> 77.8678 | S38: =VLOOKUP(C38,'Anexo_GL '!$B$9:$N$1882,13,FALSE) -> Cumple
A39: 010112 : MD DE MAGDALENA | B39: 12 | C39: 010112 | D39: AMAZONAS | E39: MD DE MAGDALENA | F39: =VLOOKUP(C39,'Anexo_GL '!$B$9:$N$1882,4,FALSE) -> 10.87559 | H39: =VLOOKUP(C39,'Anexo_GL '!$B$9:$N$1882,5,FALSE) -> 672.9852075 | I39: =VLOOKUP(C39,'Anexo_GL '!$B$9:$N$1882,6,FALSE) -> 0.00098 | L39: =VLOOKUP(C39,'Anexo_GL '!$B$9:$N$1882,7,FALSE) -> 1.616022147 | N39: =VLOOKUP(C39,'Anexo_GL '!$B$9:$N$1882,8,FALSE) -> Cumple | P39: =VLOOKUP(C39,'Anexo_GL '!$B$9:$N$1882,10,FALSE) -> 351.83674 | Q39: =VLOOKUP(C39,'Anexo_GL '!$B$9:$N$1882,11,FALSE) -> 373.87129 | R39: =VLOOKUP(C39,'Anexo_GL '!$B$9:$N$1882,12,FALSE) -> -22.03455 | S39: =VLOOKUP(C39,'Anexo_GL '!$B$9:$N$1882,13,FALSE) -> No Cumple
A40: 010113 : MD DE MARISCAL CASTILLA | B40: 13 | C40: 010113 | D40: AMAZONAS | E40: MD DE MARISCAL CASTILLA | F40: =VLOOKUP(C40,'Anexo_GL '!$B$9:$N$1882,4,FALSE) -> 4.15599 | H40: =VLOOKUP(C40,'Anexo_GL '!$B$9:$N$1882,5,FALSE) -> 608.9066425 | I40: =VLOOKUP(C40,'Anexo_GL '!$B$9:$N$1882,6,FALSE) -> 0.00044 | L40: =VLOOKUP(C40,'Anexo_GL '!$B$9:$N$1882,7,FALSE) -> 0.6825332013 | N40: =VLOOKUP(C40,'Anexo_GL '!$B$9:$N$1882,8,FALSE) -> Cumple | P40: =VLOOKUP(C40,'Anexo_GL '!$B$9:$N$1882,10,FALSE) -> 364.67052 | Q40: =VLOOKUP(C40,'Anexo_GL '!$B$9:$N$1882,11,FALSE) -> 161.82434 | R40: =VLOOKUP(C40,'Anexo_GL '!$B$9:$N$1882,12,FALSE) -> 202.84618 | S40: =VLOOKUP(C40,'Anexo_GL '!$B$9:$N$1882,13,FALSE) -> Cumple
A41: 010114 : MD DE MOLINOPAMPA | B41: 14 | C41: 010114 | D41: AMAZONAS | E41: MD DE MOLINOPAMPA | F41: =VLOOKUP(C41,'Anexo_GL '!$B$9:$N$1882,4,FALSE) -> 56.09112 | H41: =VLOOKUP(C41,'Anexo_GL '!$B$9:$N$1882,5,FALSE) -> 951.0908425 | I41: =VLOOKUP(C41,'Anexo_GL '!$B$9:$N$1882,6,FALSE) -> 0.00231 | L41: =VLOOKUP(C41,'Anexo_GL '!$B$9:$N$1882,7,FALSE) -> 5.897556521 | N41: =VLOOKUP(C41,'Anexo_GL '!$B$9:$N$1882,8,FALSE) -> Cumple | P41: =VLOOKUP(C41,'Anexo_GL '!$B$9:$N$1882,10,FALSE) -> 744.69685 | Q41: =VLOOKUP(C41,'Anexo_GL '!$B$9:$N$1882,11,FALSE) -> 343.77421 | R41: =VLOOKUP(C41,'Anexo_GL '!$B$9:$N$1882,12,FALSE) -> 400.92264 | S41: =VLOOKUP(C41,'Anexo_GL '!$B$9:$N$1882,13,FALSE) -> Cumple
A42: 010115 : MD DE MONTEVIDEO | B42: 15 | C42: 010115 | D42: AMAZONAS | E42: MD DE MONTEVIDEO | F42: =VLOOKUP(C42,'Anexo_GL '!$B$9:$N$1882,4,FALSE) -> 26.23355 | H42: =VLOOKUP(C42,'Anexo_GL '!$B$9:$N$1882,5,FALSE) -> 547.6731425 | I42: =VLOOKUP(C42,'Anexo_GL '!$B$9:$N$1882,6,FALSE) -> 0.00074 | L42: =VLOOKUP(C42,'Anexo_GL '!$B$9:$N$1882,7,FALSE) -> 4.790001182 | N42: =VLOOKUP(C42,'Anexo_GL '!$B$9:$N$1882,8,FALSE) -> Cumple | P42: =VLOOKUP(C42,'Anexo_GL '!$B$9:$N$1882,10,FALSE) -> 353.58053 | Q42: =VLOOKUP(C42,'Anexo_GL '!$B$9:$N$1882,11,FALSE) -> 294.0508 | R42: =VLOOKUP(C42,'Anexo_GL '!$B$9:$N$1882,12,FALSE) -> 59.52973 | S42: =VLOOKUP(C42,'Anexo_GL '!$B$9:$N$1882,13,FALSE) -> Cumple
A43: 010116 : MD DE OLLEROS | B43: 16 | C43: 010116 | D43: AMAZONAS | E43: MD DE OLLEROS | F43: =VLOOKUP(C43,'Anexo_GL '!$B$9:$N$1882,4,FALSE) -> 60.3832 | H43: =VLOOKUP(C43,'Anexo_GL '!$B$9:$N$1882,5,FALSE) -> 529.8096725 | I43: =VLOOKUP(C43,'Anexo_GL '!$B$9:$N$1882,6,FALSE) -> 0.00036 | L43: =VLOOKUP(C43,'Anexo_GL '!$B$9:$N$1882,7,FALSE) -> 11.39714942 | N43: =VLOOKUP(C43,'Anexo_GL '!$B$9:$N$1882,8,FALSE) -> Cumple | P43: =VLOOKUP(C43,'Anexo_GL '!$B$9:$N$1882,10,FALSE) -> 339.09671 | Q43: =VLOOKUP(C43,'Anexo_GL '!$B$9:$N$1882,11,FALSE) -> 210.74204 | R43: =VLOOKUP(C43,'Anexo_GL '!$B$9:$N$1882,12,FALSE) -> 128.35467 | S43: =VLOOKUP(C43,'Anexo_GL '!$B$9:$N$1882,13,FALSE) -> Cumple
A44: 010117 : MD DE QUINJALCA | B44: 17 | C44: 010117 | D44: AMAZONAS | E44: MD DE QUINJALCA | F44: =VLOOKUP(C44,'Anexo_GL '!$B$9:$N$1882,4,FALSE) -> 7.48186 | H44: =VLOOKUP(C44,'Anexo_GL '!$B$9:$N$1882,5,FALSE) -> 560.7093525 | I44: =VLOOKUP(C44,'Anexo_GL '!$B$9:$N$1882,6,FALSE) -> 0.0009 | L44: =VLOOKUP(C44,'Anexo_GL '!$B$9:$N$1882,7,FALSE) -> 1.334356198 | N44: =VLOOKUP(C44,'Anexo_GL '!$B$9:$N$1882,8,FALSE) -> Cumple | P44: =VLOOKUP(C44,'Anexo_GL '!$B$9:$N$1882,10,FALSE) -> 359.90445 | Q44: =VLOOKUP(C44,'Anexo_GL '!$B$9:$N$1882,11,FALSE) -> 172.50581 | R44: =VLOOKUP(C44,'Anexo_GL '!$B$9:$N$1882,12,FALSE) -> 187.39864 | S44: =VLOOKUP(C44,'Anexo_GL '!$B$9:$N$1882,13,FALSE) -> Cumple
A45: 010118 : MD DE SAN FRANCISCO DE DAGUAS | B45: 18 | C45: 010118 | D45: AMAZONAS | E45: MD DE SAN FRANCISCO DE DAGUAS | F45: =VLOOKUP(C45,'Anexo_GL '!$B$9:$N$1882,4,FALSE) -> 32.17957 | H45: =VLOOKUP(C45,'Anexo_GL '!$B$9:$N$1882,5,FALSE) -> 554.5166175 | I45: =VLOOKUP(C45,'Anexo_GL '!$B$9:$N$1882,6,FALSE) -> 0.00034 | L45: =VLOOKUP(C45,'Anexo_GL '!$B$9:$N$1882,7,FALSE) -> 5.803175051 | N45: =VLOOKUP(C45,'Anexo_GL '!$B$9:$N$1882,8,FALSE) -> Cumple | P45: =VLOOKUP(C45,'Anexo_GL '!$B$9:$N$1882,10,FALSE) -> 363.05278 | Q45: =VLOOKUP(C45,'Anexo_GL '!$B$9:$N$1882,11,FALSE) -> 174.87718 | R45: =VLOOKUP(C45,'Anexo_GL '!$B$9:$N$1882,12,FALSE) -> 188.1756 | S45: =VLOOKUP(C45,'Anexo_GL '!$B$9:$N$1882,13,FALSE) -> Cumple
A46: 010119 : MD DE SAN ISIDRO DE MAYNO | B46: 19 | C46: 010119 | D46: AMAZONAS | E46: MD DE SAN ISIDRO DE MAYNO | F46: =VLOOKUP(C46,'Anexo_GL '!$B$9:$N$1882,4,FALSE) -> 16.25279 | H46: =VLOOKUP(C46,'Anexo_GL '!$B$9:$N$1882,5,FALSE) -> 517.1443425 | I46: =VLOOKUP(C46,'Anexo_GL '!$B$9:$N$1882,6,FALSE) -> 0.00088 | L46: =VLOOKUP(C46,'Anexo_GL '!$B$9:$N$1882,7,FALSE) -> 3.142795669 | N46: =VLOOKUP(C46,'Anexo_GL '!$B$9:$N$1882,8,FALSE) -> Cumple | P46: =VLOOKUP(C46,'Anexo_GL '!$B$9:$N$1882,10,FALSE) -> 381.48573 | Q46: =VLOOKUP(C46,'Anexo_GL '!$B$9:$N$1882,11,FALSE) -> 176.2367 | R46: =VLOOKUP(C46,'Anexo_GL '!$B$9:$N$1882,12,FALSE) -> 205.24903 | S46: =VLOOKUP(C46,'Anexo_GL '!$B$9:$N$1882,13,FALSE) -> Cumple
A47: 010120 : MD DE SOLOCO | B47: 20 | C47: 010120 | D47: AMAZONAS | E47: MD DE SOLOCO | F47: =VLOOKUP(C47,'Anexo_GL '!$B$9:$N$1882,4,FALSE) -> 932.4456 | H47: =VLOOKUP(C47,'Anexo_GL '!$B$9:$N$1882,5,FALSE) -> 888.984105 | I47: =VLOOKUP(C47,'Anexo_GL '!$B$9:$N$1882,6,FALSE) -> 0.00084 | L47: =VLOOKUP(C47,'Anexo_GL '!$B$9:$N$1882,7,FALSE) -> 104.8888945 | N47: =VLOOKUP(C47,'Anexo_GL '!$B$9:$N$1882,8,FALSE) -> No Cumple | P47: =VLOOKUP(C47,'Anexo_GL '!$B$9:$N$1882,10,FALSE) -> 393.36802 | Q47: =VLOOKUP(C47,'Anexo_GL '!$B$9:$N$1882,11,FALSE) -> 241.8469 | R47: =VLOOKUP(C47,'Anexo_GL '!$B$9:$N$1882,12,FALSE) -> 151.52112 | S47: =VLOOKUP(C47,'Anexo_GL '!$B$9:$N$1882,13,FALSE) -> Cumple
A48: 010121 : MD DE SONCHE | B48: 21 | C48: 010121 | D48: AMAZONAS | E48: MD DE SONCHE | F48: =VLOOKUP(C48,'Anexo_GL '!$B$9:$N$1882,4,FALSE) -> 20.51209 | H48: =VLOOKUP(C48,'Anexo_GL '!$B$9:$N$1882,5,FALSE) -> 467.158775 | I48: =VLOOKUP(C48,'Anexo_GL '!$B$9:$N$1882,6,FALSE) -> 0.00022 | L48: =VLOOKUP(C48,'Anexo_GL '!$B$9:$N$1882,7,FALSE) -> 4.390817662 | N48: =VLOOKUP(C48,'Anexo_GL '!$B$9:$N$1882,8,FALSE) -> Cumple | P48: =VLOOKUP(C48,'Anexo_GL '!$B$9:$N$1882,10,FALSE) -> 333.02914 | Q48: =VLOOKUP(C48,'Anexo_GL '!$B$9:$N$1882,11,FALSE) -> 197.96807 | R48: =VLOOKUP(C48,'Anexo_GL '!$B$9:$N$1882,12,FALSE) -> 135.06107 | S48: =VLOOKUP(C48,'Anexo_GL '!$B$9:$N$1882,13,FALSE) -> Cumple
A49: 010201 : MP DE BAGUA - LA PECA | B49: 22 | C49: 010201 | D49: AMAZONAS | E49: MP DE BAGUA - LA PECA | F49: =VLOOKUP(C49,'Anexo_GL '!$B$9:$N$1882,4,FALSE) -> 1285.19983 | H49: =VLOOKUP(C49,'Anexo_GL '!$B$9:$N$1882,5,FALSE) -> 11975.36998 | I49: =VLOOKUP(C49,'Anexo_GL '!$B$9:$N$1882,6,FALSE) -> 0.79891 | L49: =VLOOKUP(C49,'Anexo_GL '!$B$9:$N$1882,7,FALSE) -> 10.73202609 | N49: =VLOOKUP(C49,'Anexo_GL '!$B$9:$N$1882,8,FALSE) -> Cumple | P49: =VLOOKUP(C49,'Anexo_GL '!$B$9:$N$1882,10,FALSE) -> 9211.95586 | Q49: =VLOOKUP(C49,'Anexo_GL '!$B$9:$N$1882,11,FALSE) -> 7671.22616 | R49: =VLOOKUP(C49,'Anexo_GL '!$B$9:$N$1882,12,FALSE) -> 1540.7297 | S49: =VLOOKUP(C49,'Anexo_GL '!$B$9:$N$1882,13,FALSE) -> Cumple
A50: 010202 : MD DE ARAMANGO | B50: 23 | C50: 010202 | D50: AMAZONAS | E50: MD DE ARAMANGO | F50: =VLOOKUP(C50,'Anexo_GL '!$B$9:$N$1882,4,FALSE) -> 818.92891 | H50: =VLOOKUP(C50,'Anexo_GL '!$B$9:$N$1882,5,FALSE) -> 3766.419478 | I50: =VLOOKUP(C50,'Anexo_GL '!$B$9:$N$1882,6,FALSE) -> 1.10553 | L50: =VLOOKUP(C50,'Anexo_GL '!$B$9:$N$1882,7,FALSE) -> 21.74290237 | N50: =VLOOKUP(C50,'Anexo_GL '!$B$9:$N$1882,8,FALSE) -> Cumple | P50: =VLOOKUP(C50,'Anexo_GL '!$B$9:$N$1882,10,FALSE) -> 2836.42521 | Q50: =VLOOKUP(C50,'Anexo_GL '!$B$9:$N$1882,11,FALSE) -> 1457.27213 | R50: =VLOOKUP(C50,'Anexo_GL '!$B$9:$N$1882,12,FALSE) -> 1379.15308 | S50: =VLOOKUP(C50,'Anexo_GL '!$B$9:$N$1882,13,FALSE) -> Cumple
A51: 010203 : MD DE COPALLIN | B51: 24 | C51: 010203 | D51: AMAZONAS | E51: MD DE COPALLIN | F51: =VLOOKUP(C51,'Anexo_GL '!$B$9:$N$1882,4,FALSE) -> 306.28421 | H51: =VLOOKUP(C51,'Anexo_GL '!$B$9:$N$1882,5,FALSE) -> 1909.8894 | I51: =VLOOKUP(C51,'Anexo_GL '!$B$9:$N$1882,6,FALSE) -> 0.00088 | L51: =VLOOKUP(C51,'Anexo_GL '!$B$9:$N$1882,7,FALSE) -> 16.03675113 | N51: =VLOOKUP(C51,'Anexo_GL '!$B$9:$N$1882,8,FALSE) -> Cumple | P51: =VLOOKUP(C51,'Anexo_GL '!$B$9:$N$1882,10,FALSE) -> 1462.25952 | Q51: =VLOOKUP(C51,'Anexo_GL '!$B$9:$N$1882,11,FALSE) -> 1324.62757 | R51: =VLOOKUP(C51,'Anexo_GL '!$B$9:$N$1882,12,FALSE) -> 137.63195 | S51: =VLOOKUP(C51,'Anexo_GL '!$B$9:$N$1882,13,FALSE) -> Cumple
A52: 010204 : MD DE EL PARCO | B52: 25 | C52: 010204 | D52: AMAZONAS | E52: MD DE EL PARCO | F52: =VLOOKUP(C52,'Anexo_GL '!$B$9:$N$1882,4,FALSE) -> 125.98604 | H52: =VLOOKUP(C52,'Anexo_GL '!$B$9:$N$1882,5,FALSE) -> 1965.088438 | I52: =VLOOKUP(C52,'Anexo_GL '!$B$9:$N$1882,6,FALSE) -> 0.00023 | L52: =VLOOKUP(C52,'Anexo_GL '!$B$9:$N$1882,7,FALSE) -> 6.411214762 | N52: =VLOOKUP(C52,'Anexo_GL '!$B$9:$N$1882,8,FALSE) -> Cumple | P52: =VLOOKUP(C52,'Anexo_GL '!$B$9:$N$1882,10,FALSE) -> 5775.24426 | Q52: =VLOOKUP(C52,'Anexo_GL '!$B$9:$N$1882,11,FALSE) -> 419.98509 | R52: =VLOOKUP(C52,'Anexo_GL '!$B$9:$N$1882,12,FALSE) -> 5355.25917 | S52: =VLOOKUP(C52,'Anexo_GL '!$B$9:$N$1882,13,FALSE) -> Cumple
A53: 010205 : MD DE IMAZA | B53: 26 | C53: 010205 | D53: AMAZONAS | E53: MD DE IMAZA | F53: =VLOOKUP(C53,'Anexo_GL '!$B$9:$N$1882,4,FALSE) -> 6579.15052 | H53: =VLOOKUP(C53,'Anexo_GL '!$B$9:$N$1882,5,FALSE) -> 8156.69282 | I53: =VLOOKUP(C53,'Anexo_GL '!$B$9:$N$1882,6,FALSE) -> 2.1932 | L53: =VLOOKUP(C53,'Anexo_GL '!$B$9:$N$1882,7,FALSE) -> 80.65953525 | N53: =VLOOKUP(C53,'Anexo_GL '!$B$9:$N$1882,8,FALSE) -> Cumple | P53: =VLOOKUP(C53,'Anexo_GL '!$B$9:$N$1882,10,FALSE) -> 6484.27465 | Q53: =VLOOKUP(C53,'Anexo_GL '!$B$9:$N$1882,11,FALSE) -> 3451.7649 | R53: =VLOOKUP(C53,'Anexo_GL '!$B$9:$N$1882,12,FALSE) -> 3032.50975 | S53: =VLOOKUP(C53,'Anexo_GL '!$B$9:$N$1882,13,FALSE) -> Cumple
A54: 010206 : MD DE LA PECA | B54: 27 | C54: 010206 | D54: AMAZONAS | E54: MD DE LA PECA | F54: =VLOOKUP(C54,'Anexo_GL '!$B$9:$N$1882,4,FALSE) -> 166.45484 | H54: =VLOOKUP(C54,'Anexo_GL '!$B$9:$N$1882,5,FALSE) -> 2228.21993 | I54: =VLOOKUP(C54,'Anexo_GL '!$B$9:$N$1882,6,FALSE) -> 0.00127 | L54: =VLOOKUP(C54,'Anexo_GL '!$B$9:$N$1882,7,FALSE) -> 7.47030568 | N54: =VLOOKUP(C54,'Anexo_GL '!$B$9:$N$1882,8,FALSE) -> Cumple | P54: =VLOOKUP(C54,'Anexo_GL '!$B$9:$N$1882,10,FALSE) -> 1664.55479 | Q54: =VLOOKUP(C54,'Anexo_GL '!$B$9:$N$1882,11,FALSE) -> 1127.14657 | R54: =VLOOKUP(C54,'Anexo_GL '!$B$9:$N$1882,12,FALSE) -> 537.40822 | S54: =VLOOKUP(C54,'Anexo_GL '!$B$9:$N$1882,13,FALSE) -> Cumple
A55: 010301 : MP DE BONGARA - JUMBILLA | B55: 28 | C55: 010301 | D55: AMAZONAS | E55: MP DE BONGARA - JUMBILLA | F55: =VLOOKUP(C55,'Anexo_GL '!$B$9:$N$1882,4,FALSE) -> 1705.5086 | H55: =VLOOKUP(C55,'Anexo_GL '!$B$9:$N$1882,5,FALSE) -> 3159.8858 | I55: =VLOOKUP(C55,'Anexo_GL '!$B$9:$N$1882,6,FALSE) -> 0.00029 | L55: =VLOOKUP(C55,'Anexo_GL '!$B$9:$N$1882,7,FALSE) -> 53.97374171 | N55: =VLOOKUP(C55,'Anexo_GL '!$B$9:$N$1882,8,FALSE) -> Cumple | P55: =VLOOKUP(C55,'Anexo_GL '!$B$9:$N$1882,10,FALSE) -> 2200.41659 | Q55: =VLOOKUP(C55,'Anexo_GL '!$B$9:$N$1882,11,FALSE) -> 1494.75237 | R55: =VLOOKUP(C55,'Anexo_GL '!$B$9:$N$1882,12,FALSE) -> 705.66422 | S55: =VLOOKUP(C55,'Anexo_GL '!$B$9:$N$1882,13,FALSE) -> Cumple
A56: 010302 : MD DE CHISQUILLA | B56: 29 | C56: 010302 | D56: AMAZONAS | E56: MD DE CHISQUILLA | F56: =VLOOKUP(C56,'Anexo_GL '!$B$9:$N$1882,4,FALSE) -> 26.82004 | H56: =VLOOKUP(C56,'Anexo_GL '!$B$9:$N$1882,5,FALSE) -> 1009.526195 | I56: =VLOOKUP(C56,'Anexo_GL '!$B$9:$N$1882,6,FALSE) -> 2e-05 | L56: =VLOOKUP(C56,'Anexo_GL '!$B$9:$N$1882,7,FALSE) -> 2.656695798 | N56: =VLOOKUP(C56,'Anexo_GL '!$B$9:$N$1882,8,FALSE) -> Cumple | P56: =VLOOKUP(C56,'Anexo_GL '!$B$9:$N$1882,10,FALSE) -> 324.88286 | Q56: =VLOOKUP(C56,'Anexo_GL '!$B$9:$N$1882,11,FALSE) -> 412.11937 | R56: =VLOOKUP(C56,'Anexo_GL '!$B$9:$N$1882,12,FALSE) -> -87.23651 | S56: =VLOOKUP(C56,'Anexo_GL '!$B$9:$N$1882,13,FALSE) -> No Cumple
A57: 010303 : MD DE CHURUJA | B57: 30 | C57: 010303 | D57: AMAZONAS | E57: MD DE CHURUJA | F57: =VLOOKUP(C57,'Anexo_GL '!$B$9:$N$1882,4,FALSE) -> 6.51226 | H57: =VLOOKUP(C57,'Anexo_GL '!$B$9:$N$1882,5,FALSE) -> 3586.419195 | I57: =VLOOKUP(C57,'Anexo_GL '!$B$9:$N$1882,6,FALSE) -> 2e-05 | L57: =VLOOKUP(C57,'Anexo_GL '!$B$9:$N$1882,7,FALSE) -> 0.181581116 | N57: =VLOOKUP(C57,'Anexo_GL '!$B$9:$N$1882,8,FALSE) -> Cumple | P57: =VLOOKUP(C57,'Anexo_GL '!$B$9:$N$1882,10,FALSE) -> 348.32039 | Q57: =VLOOKUP(C57,'Anexo_GL '!$B$9:$N$1882,11,FALSE) -> 192.61252 | R57: =VLOOKUP(C57,'Anexo_GL '!$B$9:$N$1882,12,FALSE) -> 155.70787 | S57: =VLOOKUP(C57,'Anexo_GL '!$B$9:$N$1882,13,FALSE) -> Cumple
A58: 010304 : MD DE COROSHA | B58: 31 | C58: 010304 | D58: AMAZONAS | E58: MD DE COROSHA | F58: =VLOOKUP(C58,'Anexo_GL '!$B$9:$N$1882,4,FALSE) -> 140.03374 | H58: =VLOOKUP(C58,'Anexo_GL '!$B$9:$N$1882,5,FALSE) -> 752.475865 | I58: =VLOOKUP(C58,'Anexo_GL '!$B$9:$N$1882,6,FALSE) -> 0.00018 | L58: =VLOOKUP(C58,'Anexo_GL '!$B$9:$N$1882,7,FALSE) -> 18.60973176 | N58: =VLOOKUP(C58,'Anexo_GL '!$B$9:$N$1882,8,FALSE) -> Cumple | P58: =VLOOKUP(C58,'Anexo_GL '!$B$9:$N$1882,10,FALSE) -> 328.18875 | Q58: =VLOOKUP(C58,'Anexo_GL '!$B$9:$N$1882,11,FALSE) -> 277.60408 | R58: =VLOOKUP(C58,'Anexo_GL '!$B$9:$N$1882,12,FALSE) -> 50.58467 | S58: =VLOOKUP(C58,'Anexo_GL '!$B$9:$N$1882,13,FALSE) -> Cumple
A59: 010305 : MD DE CUISPES | B59: 32 | C59: 010305 | D59: AMAZONAS | E59: MD DE CUISPES | F59: =VLOOKUP(C59,'Anexo_GL '!$B$9:$N$1882,4,FALSE) -> 20.24362 | H59: =VLOOKUP(C59,'Anexo_GL '!$B$9:$N$1882,5,FALSE) -> 569.05158 | I59: =VLOOKUP(C59,'Anexo_GL '!$B$9:$N$1882,6,FALSE) -> 0.00012 | L59: =VLOOKUP(C59,'Anexo_GL '!$B$9:$N$1882,7,FALSE) -> 3.557431472 | N59: =VLOOKUP(C59,'Anexo_GL '!$B$9:$N$1882,8,FALSE) -> Cumple | P59: =VLOOKUP(C59,'Anexo_GL '!$B$9:$N$1882,10,FALSE) -> 391.84105 | Q59: =VLOOKUP(C59,'Anexo_GL '!$B$9:$N$1882,11,FALSE) -> 177.12084 | R59: =VLOOKUP(C59,'Anexo_GL '!$B$9:$N$1882,12,FALSE) -> 214.72021 | S59: =VLOOKUP(C59,'Anexo_GL '!$B$9:$N$1882,13,FALSE) -> Cumple
A60: 010306 : MD DE FLORIDA | B60: 33 | C60: 010306 | D60: AMAZONAS | E60: MD DE FLORIDA | F60: =VLOOKUP(C60,'Anexo_GL '!$B$9:$N$1882,4,FALSE) -> 376.6584 | H60: =VLOOKUP(C60,'Anexo_GL '!$B$9:$N$1882,5,FALSE) -> 1935.164548 | I60: =VLOOKUP(C60,'Anexo_GL '!$B$9:$N$1882,6,FALSE) -> 0.00122 | L60: =VLOOKUP(C60,'Anexo_GL '!$B$9:$N$1882,7,FALSE) -> 19.46389523 | N60: =VLOOKUP(C60,'Anexo_GL '!$B$9:$N$1882,8,FALSE) -> Cumple | P60: =VLOOKUP(C60,'Anexo_GL '!$B$9:$N$1882,10,FALSE) -> 1555.01881 | Q60: =VLOOKUP(C60,'Anexo_GL '!$B$9:$N$1882,11,FALSE) -> 1168.78984 | R60: =VLOOKUP(C60,'Anexo_GL '!$B$9:$N$1882,12,FALSE) -> 386.22897 | S60: =VLOOKUP(C60,'Anexo_GL '!$B$9:$N$1882,13,FALSE) -> Cumple
A61: 010307 : MD DE JAZAN | B61: 34 | C61: 010307 | D61: AMAZONAS | E61: MD DE JAZAN | F61: =VLOOKUP(C61,'Anexo_GL '!$B$9:$N$1882,4,FALSE) -> 1046.51766 | H61: =VLOOKUP(C61,'Anexo_GL '!$B$9:$N$1882,5,FALSE) -> 2389.539247 | I61: =VLOOKUP(C61,'Anexo_GL '!$B$9:$N$1882,6,FALSE) -> 0.00078 | L61: =VLOOKUP(C61,'Anexo_GL '!$B$9:$N$1882,7,FALSE) -> 43.7957929 | N61: =VLOOKUP(C61,'Anexo_GL '!$B$9:$N$1882,8,FALSE) -> Cumple | P61: =VLOOKUP(C61,'Anexo_GL '!$B$9:$N$1882,10,FALSE) -> 1816.3213 | Q61: =VLOOKUP(C61,'Anexo_GL '!$B$9:$N$1882,11,FALSE) -> 1278.31343 | R61: =VLOOKUP(C61,'Anexo_GL '!$B$9:$N$1882,12,FALSE) -> 538.00787 | S61: =VLOOKUP(C61,'Anexo_GL '!$B$9:$N$1882,13,FALSE) -> Cumple
A62: 010308 : MD DE RECTA | B62: 35 | C62: 010308 | D62: AMAZONAS | E62: MD DE RECTA | F62: =VLOOKUP(C62,'Anexo_GL '!$B$9:$N$1882,4,FALSE) -> 16.51 | H62: =VLOOKUP(C62,'Anexo_GL '!$B$9:$N$1882,5,FALSE) -> 431.7747775 | I62: =VLOOKUP(C62,'Anexo_GL '!$B$9:$N$1882,6,FALSE) -> 1e-05 | L62: =VLOOKUP(C62,'Anexo_GL '!$B$9:$N$1882,7,FALSE) -> 3.823752767 | N62: =VLOOKUP(C62,'Anexo_GL '!$B$9:$N$1882,8,FALSE) -> Cumple | P62: =VLOOKUP(C62,'Anexo_GL '!$B$9:$N$1882,10,FALSE) -> 321.63187 | Q62: =VLOOKUP(C62,'Anexo_GL '!$B$9:$N$1882,11,FALSE) -> 185.8923 | R62: =VLOOKUP(C62,'Anexo_GL '!$B$9:$N$1882,12,FALSE) -> 135.73957 | S62: =VLOOKUP(C62,'Anexo_GL '!$B$9:$N$1882,13,FALSE) -> Cumple
A63: 010309 : MD DE SAN CARLOS | B63: 36 | C63: 010309 | D63: AMAZONAS | E63: MD DE SAN CARLOS | F63: =VLOOKUP(C63,'Anexo_GL '!$B$9:$N$1882,4,FALSE) -> 55.14706 | H63: =VLOOKUP(C63,'Anexo_GL '!$B$9:$N$1882,5,FALSE) -> 1666.229392 | I63: =VLOOKUP(C63,'Anexo_GL '!$B$9:$N$1882,6,FALSE) -> 1e-05 | L63: =VLOOKUP(C63,'Anexo_GL '!$B$9:$N$1882,7,FALSE) -> 3.309691946 | N63: =VLOOKUP(C63,'Anexo_GL '!$B$9:$N$1882,8,FALSE) -> Cumple | P63: =VLOOKUP(C63,'Anexo_GL '!$B$9:$N$1882,10,FALSE) -> 314.33348 | Q63: =VLOOKUP(C63,'Anexo_GL '!$B$9:$N$1882,11,FALSE) -> 223.47247 | R63: =VLOOKUP(C63,'Anexo_GL '!$B$9:$N$1882,12,FALSE) -> 90.86101 | S63: =VLOOKUP(C63,'Anexo_GL '!$B$9:$N$1882,13,FALSE) -> Cumple
A64: 010310 : MD DE SHIPASBAMBA | B64: 37 | C64: 010310 | D64: AMAZONAS | E64: MD DE SHIPASBAMBA | F64: =VLOOKUP(C64,'Anexo_GL '!$B$9:$N$1882,4,FALSE) -> 13.22011 | H64: =VLOOKUP(C64,'Anexo_GL '!$B$9:$N$1882,5,FALSE) -> 716.7721875 | I64: =VLOOKUP(C64,'Anexo_GL '!$B$9:$N$1882,6,FALSE) -> 0.00029 | L64: =VLOOKUP(C64,'Anexo_GL '!$B$9:$N$1882,7,FALSE) -> 1.844394946 | N64: =VLOOKUP(C64,'Anexo_GL '!$B$9:$N$1882,8,FALSE) -> Cumple | P64: =VLOOKUP(C64,'Anexo_GL '!$B$9:$N$1882,10,FALSE) -> 500.67115 | Q64: =VLOOKUP(C64,'Anexo_GL '!$B$9:$N$1882,11,FALSE) -> 306.95721 | R64: =VLOOKUP(C64,'Anexo_GL '!$B$9:$N$1882,12,FALSE) -> 193.71394 | S64: =VLOOKUP(C64,'Anexo_GL '!$B$9:$N$1882,13,FALSE) -> Cumple
A65: 010311 : MD DE VALERA | B65: 38 | C65: 010311 | D65: AMAZONAS | E65: MD DE VALERA | F65: =VLOOKUP(C65,'Anexo_GL '!$B$9:$N$1882,4,FALSE) -> 70.44122 | H65: =VLOOKUP(C65,'Anexo_GL '!$B$9:$N$1882,5,FALSE) -> 613.58208 | I65: =VLOOKUP(C65,'Anexo_GL '!$B$9:$N$1882,6,FALSE) -> 0.00021 | L65: =VLOOKUP(C65,'Anexo_GL '!$B$9:$N$1882,7,FALSE) -> 11.4803255 | N65: =VLOOKUP(C65,'Anexo_GL '!$B$9:$N$1882,8,FALSE) -> Cumple | P65: =VLOOKUP(C65,'Anexo_GL '!$B$9:$N$1882,10,FALSE) -> 481.76278 | Q65: =VLOOKUP(C65,'Anexo_GL '!$B$9:$N$1882,11,FALSE) -> 263.45614 | R65: =VLOOKUP(C65,'Anexo_GL '!$B$9:$N$1882,12,FALSE) -> 218.30664 | S65: =VLOOKUP(C65,'Anexo_GL '!$B$9:$N$1882,13,FALSE) -> Cumple
A66: 010312 : MD DE YAMBRASBAMBA | B66: 39 | C66: 010312 | D66: AMAZONAS | E66: MD DE YAMBRASBAMBA | F66: =VLOOKUP(C66,'Anexo_GL '!$B$9:$N$1882,4,FALSE) -> 526.82605 | H66: =VLOOKUP(C66,'Anexo_GL '!$B$9:$N$1882,5,FALSE) -> 2518.869438 | I66: =VLOOKUP(C66,'Anexo_GL '!$B$9:$N$1882,6,FALSE) -> 0.00145 | L66: =VLOOKUP(C66,'Anexo_GL '!$B$9:$N$1882,7,FALSE) -> 20.91517894 | N66: =VLOOKUP(C66,'Anexo_GL '!$B$9:$N$1882,8,FALSE) -> Cumple | P66: =VLOOKUP(C66,'Anexo_GL '!$B$9:$N$1882,10,FALSE) -> 2492.77912 | Q66: =VLOOKUP(C66,'Anexo_GL '!$B$9:$N$1882,11,FALSE) -> 1232.50568 | R66: =VLOOKUP(C66,'Anexo_GL '!$B$9:$N$1882,12,FALSE) -> 1260.27344 | S66: =VLOOKUP(C66,'Anexo_GL '!$B$9:$N$1882,13,FALSE) -> Cumple
A67: 010401 : MP DE CONDORCANQUI - NIEVA | B67: 40 | C67: 010401 | D67: AMAZONAS | E67: MP DE CONDORCANQUI - NIEVA | F67: =VLOOKUP(C67,'Anexo_GL '!$B$9:$N$1882,4,FALSE) -> 1196.07533 | H67: =VLOOKUP(C67,'Anexo_GL '!$B$9:$N$1882,5,FALSE) -> 16732.21104 | I67: =VLOOKUP(C67,'Anexo_GL '!$B$9:$N$1882,6,FALSE) -> 2.38616 | L67: =VLOOKUP(C67,'Anexo_GL '!$B$9:$N$1882,7,FALSE) -> 7.148339973 | N67: =VLOOKUP(C67,'Anexo_GL '!$B$9:$N$1882,8,FALSE) -> Cumple | P67: =VLOOKUP(C67,'Anexo_GL '!$B$9:$N$1882,10,FALSE) -> 13242.60719 | Q67: =VLOOKUP(C67,'Anexo_GL '!$B$9:$N$1882,11,FALSE) -> 8416.78054 | R67: =VLOOKUP(C67,'Anexo_GL '!$B$9:$N$1882,12,FALSE) -> 4825.82665 | S67: =VLOOKUP(C67,'Anexo_GL '!$B$9:$N$1882,13,FALSE) -> Cumple
A68: 010402 : MD DE EL CENEPA | B68: 41 | C68: 010402 | D68: AMAZONAS | E68: MD DE EL CENEPA | F68: =VLOOKUP(C68,'Anexo_GL '!$B$9:$N$1882,4,FALSE) -> 600.25045 | H68: =VLOOKUP(C68,'Anexo_GL '!$B$9:$N$1882,5,FALSE) -> 4088.76121 | I68: =VLOOKUP(C68,'Anexo_GL '!$B$9:$N$1882,6,FALSE) -> 0.60467 | L68: =VLOOKUP(C68,'Anexo_GL '!$B$9:$N$1882,7,FALSE) -> 14.68049659 | N68: =VLOOKUP(C68,'Anexo_GL '!$B$9:$N$1882,8,FALSE) -> Cumple | P68: =VLOOKUP(C68,'Anexo_GL '!$B$9:$N$1882,10,FALSE) -> 3056.40434 | Q68: =VLOOKUP(C68,'Anexo_GL '!$B$9:$N$1882,11,FALSE) -> 2206.59135 | R68: =VLOOKUP(C68,'Anexo_GL '!$B$9:$N$1882,12,FALSE) -> 849.81299 | S68: =VLOOKUP(C68,'Anexo_GL '!$B$9:$N$1882,13,FALSE) -> Cumple
A69: 010403 : MD DE RIO SANTIAGO | B69: 42 | C69: 010403 | D69: AMAZONAS | E69: MD DE RIO SANTIAGO | F69: =VLOOKUP(C69,'Anexo_GL '!$B$9:$N$1882,4,FALSE) -> 2072.09547 | H69: =VLOOKUP(C69,'Anexo_GL '!$B$9:$N$1882,5,FALSE) -> 6983.853825 | I69: =VLOOKUP(C69,'Anexo_GL '!$B$9:$N$1882,6,FALSE) -> 1.03501 | L69: =VLOOKUP(C69,'Anexo_GL '!$B$9:$N$1882,7,FALSE) -> 29.66980011 | N69: =VLOOKUP(C69,'Anexo_GL '!$B$9:$N$1882,8,FALSE) -> Cumple | P69: =VLOOKUP(C69,'Anexo_GL '!$B$9:$N$1882,10,FALSE) -> 6236.86367 | Q69: =VLOOKUP(C69,'Anexo_GL '!$B$9:$N$1882,11,FALSE) -> 3857.6425 | R69: =VLOOKUP(C69,'Anexo_GL '!$B$9:$N$1882,12,FALSE) -> 2379.22117 | S69: =VLOOKUP(C69,'Anexo_GL '!$B$9:$N$1882,13,FALSE) -> Cumple
A70: 010501 : MP DE LUYA - LAMUD | B70: 43 | C70: 010501 | D70: AMAZONAS | E70: MP DE LUYA - LAMUD | F70: =VLOOKUP(C70,'Anexo_GL '!$B$9:$N$1882,4,FALSE) -> 2248.02841 | H70: =VLOOKUP(C70,'Anexo_GL '!$B$9:$N$1882,5,FALSE) -> 6025.37893 | I70: =VLOOKUP(C70,'Anexo_GL '!$B$9:$N$1882,6,FALSE) -> 0.00021 | L70: =VLOOKUP(C70,'Anexo_GL '!$B$9:$N$1882,7,FALSE) -> 37.30932836 | N70: =VLOOKUP(C70,'Anexo_GL '!$B$9:$N$1882,8,FALSE) -> Cumple | P70: =VLOOKUP(C70,'Anexo_GL '!$B$9:$N$1882,10,FALSE) -> 4357.73155 | Q70: =VLOOKUP(C70,'Anexo_GL '!$B$9:$N$1882,11,FALSE) -> 2164.90512 | R70: =VLOOKUP(C70,'Anexo_GL '!$B$9:$N$1882,12,FALSE) -> 2192.82643 | S70: =VLOOKUP(C70,'Anexo_GL '!$B$9:$N$1882,13,FALSE) -> Cumple
A71: 010502 : MD DE CAMPORREDONDO | B71: 44 | C71: 010502 | D71: AMAZONAS | E71: MD DE CAMPORREDONDO | F71: =VLOOKUP(C71,'Anexo_GL '!$B$9:$N$1882,4,FALSE) -> 60.05655 | H71: =VLOOKUP(C71,'Anexo_GL '!$B$9:$N$1882,5,FALSE) -> 1995.763993 | I71: =VLOOKUP(C71,'Anexo_GL '!$B$9:$N$1882,6,FALSE) -> 0.00126 | L71: =VLOOKUP(C71,'Anexo_GL '!$B$9:$N$1882,7,FALSE) -> 3.009200999 | N71: =VLOOKUP(C71,'Anexo_GL '!$B$9:$N$1882,8,FALSE) -> Cumple | P71: =VLOOKUP(C71,'Anexo_GL '!$B$9:$N$1882,10,FALSE) -> 1308.52443 | Q71: =VLOOKUP(C71,'Anexo_GL '!$B$9:$N$1882,11,FALSE) -> 889.34001 | R71: =VLOOKUP(C71,'Anexo_GL '!$B$9:$N$1882,12,FALSE) -> 419.18442 | S71: =VLOOKUP(C71,'Anexo_GL '!$B$9:$N$1882,13,FALSE) -> Cumple
A72: 010503 : MD DE COCABAMBA | B72: 45 | C72: 010503 | D72: AMAZONAS | E72: MD DE COCABAMBA | F72: =VLOOKUP(C72,'Anexo_GL '!$B$9:$N$1882,4,FALSE) -> 357.93725 | H72: =VLOOKUP(C72,'Anexo_GL '!$B$9:$N$1882,5,FALSE) -> 961.166335 | I72: =VLOOKUP(C72,'Anexo_GL '!$B$9:$N$1882,6,FALSE) -> 0.00041 | L72: =VLOOKUP(C72,'Anexo_GL '!$B$9:$N$1882,7,FALSE) -> 37.23988627 | N72: =VLOOKUP(C72,'Anexo_GL '!$B$9:$N$1882,8,FALSE) -> Cumple | P72: =VLOOKUP(C72,'Anexo_GL '!$B$9:$N$1882,10,FALSE) -> 713.75354 | Q72: =VLOOKUP(C72,'Anexo_GL '!$B$9:$N$1882,11,FALSE) -> 299.46116 | R72: =VLOOKUP(C72,'Anexo_GL '!$B$9:$N$1882,12,FALSE) -> 414.29238 | S72: =VLOOKUP(C72,'Anexo_GL '!$B$9:$N$1882,13,FALSE) -> Cumple
A73: 010504 : MD DE COLCAMAR | B73: 46 | C73: 010504 | D73: AMAZONAS | E73: MD DE COLCAMAR | F73: =VLOOKUP(C73,'Anexo_GL '!$B$9:$N$1882,4,FALSE) -> 46.63015 | H73: =VLOOKUP(C73,'Anexo_GL '!$B$9:$N$1882,5,FALSE) -> 707.55216 | I73: =VLOOKUP(C73,'Anexo_GL '!$B$9:$N$1882,6,FALSE) -> 0.00024 | L73: =VLOOKUP(C73,'Anexo_GL '!$B$9:$N$1882,7,FALSE) -> 6.590348053 | N73: =VLOOKUP(C73,'Anexo_GL '!$B$9:$N$1882,8,FALSE) -> Cumple | P73: =VLOOKUP(C73,'Anexo_GL '!$B$9:$N$1882,10,FALSE) -> 541.61403 | Q73: =VLOOKUP(C73,'Anexo_GL '!$B$9:$N$1882,11,FALSE) -> 267.31255 | R73: =VLOOKUP(C73,'Anexo_GL '!$B$9:$N$1882,12,FALSE) -> 274.30148 | S73: =VLOOKUP(C73,'Anexo_GL '!$B$9:$N$1882,13,FALSE) -> Cumple
A74: 010505 : MD DE CONILA | B74: 47 | C74: 010505 | D74: AMAZONAS | E74: MD DE CONILA | F74: =VLOOKUP(C74,'Anexo_GL '!$B$9:$N$1882,4,FALSE) -> 391.06812 | H74: =VLOOKUP(C74,'Anexo_GL '!$B$9:$N$1882,5,FALSE) -> 927.3481225 | I74: =VLOOKUP(C74,'Anexo_GL '!$B$9:$N$1882,6,FALSE) -> 0.00032 | L74: =VLOOKUP(C74,'Anexo_GL '!$B$9:$N$1882,7,FALSE) -> 42.17058411 | N74: =VLOOKUP(C74,'Anexo_GL '!$B$9:$N$1882,8,FALSE) -> Cumple | P74: =VLOOKUP(C74,'Anexo_GL '!$B$9:$N$1882,10,FALSE) -> 478.95889 | Q74: =VLOOKUP(C74,'Anexo_GL '!$B$9:$N$1882,11,FALSE) -> 362.39294 | R74: =VLOOKUP(C74,'Anexo_GL '!$B$9:$N$1882,12,FALSE) -> 116.56595 | S74: =VLOOKUP(C74,'Anexo_GL '!$B$9:$N$1882,13,FALSE) -> Cumple
A75: 010506 : MD DE INGUILPATA | B75: 48 | C75: 010506 | D75: AMAZONAS | E75: MD DE INGUILPATA | F75: =VLOOKUP(C75,'Anexo_GL '!$B$9:$N$1882,4,FALSE) -> 27.50933 | H75: =VLOOKUP(C75,'Anexo_GL '!$B$9:$N$1882,5,FALSE) -> 554.116855 | I75: =VLOOKUP(C75,'Anexo_GL '!$B$9:$N$1882,6,FALSE) -> 4e-05 | L75: =VLOOKUP(C75,'Anexo_GL '!$B$9:$N$1882,7,FALSE) -> 4.964535865 | N75: =VLOOKUP(C75,'Anexo_GL '!$B$9:$N$1882,8,FALSE) -> Cumple | P75: =VLOOKUP(C75,'Anexo_GL '!$B$9:$N$1882,10,FALSE) -> 348.24456 | Q75: =VLOOKUP(C75,'Anexo_GL '!$B$9:$N$1882,11,FALSE) -> 208.96474 | R75: =VLOOKUP(C75,'Anexo_GL '!$B$9:$N$1882,12,FALSE) -> 139.27982 | S75: =VLOOKUP(C75,'Anexo_GL '!$B$9:$N$1882,13,FALSE) -> Cumple
A76: 010507 : MD DE LONGUITA | B76: 49 | C76: 010507 | D76: AMAZONAS | E76: MD DE LONGUITA | F76: =VLOOKUP(C76,'Anexo_GL '!$B$9:$N$1882,4,FALSE) -> 8.97594 | H76: =VLOOKUP(C76,'Anexo_GL '!$B$9:$N$1882,5,FALSE) -> 600.0214075 | I76: =VLOOKUP(C76,'Anexo_GL '!$B$9:$N$1882,6,FALSE) -> 0.00021 | L76: =VLOOKUP(C76,'Anexo_GL '!$B$9:$N$1882,7,FALSE) -> 1.495936626 | N76: =VLOOKUP(C76,'Anexo_GL '!$B$9:$N$1882,8,FALSE) -> Cumple | P76: =VLOOKUP(C76,'Anexo_GL '!$B$9:$N$1882,10,FALSE) -> 363.97153 | Q76: =VLOOKUP(C76,'Anexo_GL '!$B$9:$N$1882,11,FALSE) -> 286.95706 | R76: =VLOOKUP(C76,'Anexo_GL '!$B$9:$N$1882,12,FALSE) -> 77.01447 | S76: =VLOOKUP(C76,'Anexo_GL '!$B$9:$N$1882,13,FALSE) -> Cumple
A77: 010508 : MD DE LONYA CHICO | B77: 50 | C77: 010508 | D77: AMAZONAS | E77: MD DE LONYA CHICO | F77: =VLOOKUP(C77,'Anexo_GL '!$B$9:$N$1882,4,FALSE) -> 95.47501 | H77: =VLOOKUP(C77,'Anexo_GL '!$B$9:$N$1882,5,FALSE) -> 710.69617 | I77: =VLOOKUP(C77,'Anexo_GL '!$B$9:$N$1882,6,FALSE) -> 8e-05 | L77: =VLOOKUP(C77,'Anexo_GL '!$B$9:$N$1882,7,FALSE) -> 13.43401217 | N77: =VLOOKUP(C77,'Anexo_GL '!$B$9:$N$1882,8,FALSE) -> Cumple | P77: =VLOOKUP(C77,'Anexo_GL '!$B$9:$N$1882,10,FALSE) -> 415.46583 | Q77: =VLOOKUP(C77,'Anexo_GL '!$B$9:$N$1882,11,FALSE) -> 256.83518 | R77: =VLOOKUP(C77,'Anexo_GL '!$B$9:$N$1882,12,FALSE) -> 158.63065 | S77: =VLOOKUP(C77,'Anexo_GL '!$B$9:$N$1882,13,FALSE) -> Cumple
A78: 010509 : MD DE LUYA | B78: 51 | C78: 010509 | D78: AMAZONAS | E78: MD DE LUYA | F78: =VLOOKUP(C78,'Anexo_GL '!$B$9:$N$1882,4,FALSE) -> 340.28788 | H78: =VLOOKUP(C78,'Anexo_GL '!$B$9:$N$1882,5,FALSE) -> 1249.340948 | I78: =VLOOKUP(C78,'Anexo_GL '!$B$9:$N$1882,6,FALSE) -> 0.00041 | L78: =VLOOKUP(C78,'Anexo_GL '!$B$9:$N$1882,7,FALSE) -> 27.2373911 | N78: =VLOOKUP(C78,'Anexo_GL '!$B$9:$N$1882,8,FALSE) -> Cumple | P78: =VLOOKUP(C78,'Anexo_GL '!$B$9:$N$1882,10,FALSE) -> 1050.40083 | Q78: =VLOOKUP(C78,'Anexo_GL '!$B$9:$N$1882,11,FALSE) -> 606.13293 | R78: =VLOOKUP(C78,'Anexo_GL '!$B$9:$N$1882,12,FALSE) -> 444.2679 | S78: =VLOOKUP(C78,'Anexo_GL '!$B$9:$N$1882,13,FALSE) -> Cumple
A79: 010510 : MD DE LUYA VIEJO | B79: 52 | C79: 010510 | D79: AMAZONAS | E79: MD DE LUYA VIEJO | F79: =VLOOKUP(C79,'Anexo_GL '!$B$9:$N$1882,4,FALSE) -> 50.91212 | H79: =VLOOKUP(C79,'Anexo_GL '!$B$9:$N$1882,5,FALSE) -> 499.158255 | I79: =VLOOKUP(C79,'Anexo_GL '!$B$9:$N$1882,6,FALSE) -> 6e-05 | L79: =VLOOKUP(C79,'Anexo_GL '!$B$9:$N$1882,7,FALSE) -> 10.19959492 | N79: =VLOOKUP(C79,'Anexo_GL '!$B$9:$N$1882,8,FALSE) -> Cumple | P79: =VLOOKUP(C79,'Anexo_GL '!$B$9:$N$1882,10,FALSE) -> 347.20607 | Q79: =VLOOKUP(C79,'Anexo_GL '!$B$9:$N$1882,11,FALSE) -> 199.30608 | R79: =VLOOKUP(C79,'Anexo_GL '!$B$9:$N$1882,12,FALSE) -> 147.89999 | S79: =VLOOKUP(C79,'Anexo_GL '!$B$9:$N$1882,13,FALSE) -> Cumple
A80: 010511 : MD DE MARIA | B80: 53 | C80: 010511 | D80: AMAZONAS | E80: MD DE MARIA | F80: =VLOOKUP(C80,'Anexo_GL '!$B$9:$N$1882,4,FALSE) -> 23.27568 | H80: =VLOOKUP(C80,'Anexo_GL '!$B$9:$N$1882,5,FALSE) -> 566.71604 | I80: =VLOOKUP(C80,'Anexo_GL '!$B$9:$N$1882,6,FALSE) -> 6e-05 | L80: =VLOOKUP(C80,'Anexo_GL '!$B$9:$N$1882,7,FALSE) -> 4.107115091 | N80: =VLOOKUP(C80,'Anexo_GL '!$B$9:$N$1882,8,FALSE) -> Cumple | P80: =VLOOKUP(C80,'Anexo_GL '!$B$9:$N$1882,10,FALSE) -> 347.32154 | Q80: =VLOOKUP(C80,'Anexo_GL '!$B$9:$N$1882,11,FALSE) -> 189.89974 | R80: =VLOOKUP(C80,'Anexo_GL '!$B$9:$N$1882,12,FALSE) -> 157.4218 | S80: =VLOOKUP(C80,'Anexo_GL '!$B$9:$N$1882,13,FALSE) -> Cumple
A81: 010512 : MD DE OCALLI | B81: 54 | C81: 010512 | D81: AMAZONAS | E81: MD DE OCALLI | F81: =VLOOKUP(C81,'Anexo_GL '!$B$9:$N$1882,4,FALSE) -> 107.30416 | H81: =VLOOKUP(C81,'Anexo_GL '!$B$9:$N$1882,5,FALSE) -> 1300.307833 | I81: =VLOOKUP(C81,'Anexo_GL '!$B$9:$N$1882,6,FALSE) -> 0.00082 | L81: =VLOOKUP(C81,'Anexo_GL '!$B$9:$N$1882,7,FALSE) -> 8.252212078 | N81: =VLOOKUP(C81,'Anexo_GL '!$B$9:$N$1882,8,FALSE) -> Cumple | P81: =VLOOKUP(C81,'Anexo_GL '!$B$9:$N$1882,10,FALSE) -> 951.70362 | Q81: =VLOOKUP(C81,'Anexo_GL '!$B$9:$N$1882,11,FALSE) -> 539.31669 | R81: =VLOOKUP(C81,'Anexo_GL '!$B$9:$N$1882,12,FALSE) -> 412.38693 | S81: =VLOOKUP(C81,'Anexo_GL '!$B$9:$N$1882,13,FALSE) -> Cumple
A82: 010513 : MD DE OCUMAL | B82: 55 | C82: 010513 | D82: AMAZONAS | E82: MD DE OCUMAL | F82: =VLOOKUP(C82,'Anexo_GL '!$B$9:$N$1882,4,FALSE) -> 54.65578 | H82: =VLOOKUP(C82,'Anexo_GL '!$B$9:$N$1882,5,FALSE) -> 1411.552653 | I82: =VLOOKUP(C82,'Anexo_GL '!$B$9:$N$1882,6,FALSE) -> 0.00078 | L82: =VLOOKUP(C82,'Anexo_GL '!$B$9:$N$1882,7,FALSE) -> 3.87203268 | N82: =VLOOKUP(C82,'Anexo_GL '!$B$9:$N$1882,8,FALSE) -> Cumple | P82: =VLOOKUP(C82,'Anexo_GL '!$B$9:$N$1882,10,FALSE) -> 1041.26146 | Q82: =VLOOKUP(C82,'Anexo_GL '!$B$9:$N$1882,11,FALSE) -> 438.26471 | R82: =VLOOKUP(C82,'Anexo_GL '!$B$9:$N$1882,12,FALSE) -> 602.99675 | S82: =VLOOKUP(C82,'Anexo_GL '!$B$9:$N$1882,13,FALSE) -> Cumple
A83: 010514 : MD DE PIZUQUIA | B83: 56 | C83: 010514 | D83: AMAZONAS | E83: MD DE PIZUQUIA | F83: =VLOOKUP(C83,'Anexo_GL '!$B$9:$N$1882,4,FALSE) -> 2003.47164 | H83: =VLOOKUP(C83,'Anexo_GL '!$B$9:$N$1882,5,FALSE) -> 2110.712415 | I83: =VLOOKUP(C83,'Anexo_GL '!$B$9:$N$1882,6,FALSE) -> 0.00095 | L83: =VLOOKUP(C83,'Anexo_GL '!$B$9:$N$1882,7,FALSE) -> 94.91921428 | N83: =VLOOKUP(C83,'Anexo_GL '!$B$9:$N$1882,8,FALSE) -> Cumple | P83: =VLOOKUP(C83,'Anexo_GL '!$B$9:$N$1882,10,FALSE) -> 1533.1287 | Q83: =VLOOKUP(C83,'Anexo_GL '!$B$9:$N$1882,11,FALSE) -> 836.73323 | R83: =VLOOKUP(C83,'Anexo_GL '!$B$9:$N$1882,12,FALSE) -> 696.39547 | S83: =VLOOKUP(C83,'Anexo_GL '!$B$9:$N$1882,13,FALSE) -> Cumple
A84: 010515 : MD DE PROVIDENCIA | B84: 57 | C84: 010515 | D84: AMAZONAS | E84: MD DE PROVIDENCIA | F84: =VLOOKUP(C84,'Anexo_GL '!$B$9:$N$1882,4,FALSE) -> 100.77996 | H84: =VLOOKUP(C84,'Anexo_GL '!$B$9:$N$1882,5,FALSE) -> 633.720555 | I84: =VLOOKUP(C84,'Anexo_GL '!$B$9:$N$1882,6,FALSE) -> 0.00023 | L84: =VLOOKUP(C84,'Anexo_GL '!$B$9:$N$1882,7,FALSE) -> 15.90290219 | N84: =VLOOKUP(C84,'Anexo_GL '!$B$9:$N$1882,8,FALSE) -> Cumple | P84: =VLOOKUP(C84,'Anexo_GL '!$B$9:$N$1882,10,FALSE) -> 420.89591 | Q84: =VLOOKUP(C84,'Anexo_GL '!$B$9:$N$1882,11,FALSE) -> 321.96391 | R84: =VLOOKUP(C84,'Anexo_GL '!$B$9:$N$1882,12,FALSE) -> 98.932 | S84: =VLOOKUP(C84,'Anexo_GL '!$B$9:$N$1882,13,FALSE) -> Cumple
A85: 010516 : MD DE SAN CRISTOBAL DE OLTO | B85: 58 | C85: 010516 | D85: AMAZONAS | E85: MD DE SAN CRISTOBAL DE OLTO | F85: =VLOOKUP(C85,'Anexo_GL '!$B$9:$N$1882,4,FALSE) -> 27.49535 | H85: =VLOOKUP(C85,'Anexo_GL '!$B$9:$N$1882,5,FALSE) -> 553.184535 | I85: =VLOOKUP(C85,'Anexo_GL '!$B$9:$N$1882,6,FALSE) -> 0.00012 | L85: =VLOOKUP(C85,'Anexo_GL '!$B$9:$N$1882,7,FALSE) -> 4.970375754 | N85: =VLOOKUP(C85,'Anexo_GL '!$B$9:$N$1882,8,FALSE) -> Cumple | P85: =VLOOKUP(C85,'Anexo_GL '!$B$9:$N$1882,10,FALSE) -> 355.62307 | Q85: =VLOOKUP(C85,'Anexo_GL '!$B$9:$N$1882,11,FALSE) -> 202.70243 | R85: =VLOOKUP(C85,'Anexo_GL '!$B$9:$N$1882,12,FALSE) -> 152.92064 | S85: =VLOOKUP(C85,'Anexo_GL '!$B$9:$N$1882,13,FALSE) -> Cumple
A86: 010517 : MD DE SAN FRANCISCO DE YESO | B86: 59 | C86: 010517 | D86: AMAZONAS | E86: MD DE SAN FRANCISCO DE YESO | F86: =VLOOKUP(C86,'Anexo_GL '!$B$9:$N$1882,4,FALSE) -> 39.67446 | H86: =VLOOKUP(C86,'Anexo_GL '!$B$9:$N$1882,5,FALSE) -> 522.98192 | I86: =VLOOKUP(C86,'Anexo_GL '!$B$9:$N$1882,6,FALSE) -> 0.00014 | L86: =VLOOKUP(C86,'Anexo_GL '!$B$9:$N$1882,7,FALSE) -> 7.586201068 | N86: =VLOOKUP(C86,'Anexo_GL '!$B$9:$N$1882,8,FALSE) -> Cumple | P86: =VLOOKUP(C86,'Anexo_GL '!$B$9:$N$1882,10,FALSE) -> 350.95598 | Q86: =VLOOKUP(C86,'Anexo_GL '!$B$9:$N$1882,11,FALSE) -> 226.9559 | R86: =VLOOKUP(C86,'Anexo_GL '!$B$9:$N$1882,12,FALSE) -> 124.00008 | S86: =VLOOKUP(C86,'Anexo_GL '!$B$9:$N$1882,13,FALSE) -> Cumple
A87: 010518 : MD DE SAN JERONIMO DE PACLAS | B87: 60 | C87: 010518 | D87: AMAZONAS | E87: MD DE SAN JERONIMO DE PACLAS | F87: =VLOOKUP(C87,'Anexo_GL '!$B$9:$N$1882,4,FALSE) -> 37.7659 | H87: =VLOOKUP(C87,'Anexo_GL '!$B$9:$N$1882,5,FALSE) -> 536.2671425 | I87: =VLOOKUP(C87,'Anexo_GL '!$B$9:$N$1882,6,FALSE) -> 0.00014 | L87: =VLOOKUP(C87,'Anexo_GL '!$B$9:$N$1882,7,FALSE) -> 7.042366949 | N87: =VLOOKUP(C87,'Anexo_GL '!$B$9:$N$1882,8,FALSE) -> Cumple | P87: =VLOOKUP(C87,'Anexo_GL '!$B$9:$N$1882,10,FALSE) -> 334.28027 | Q87: =VLOOKUP(C87,'Anexo_GL '!$B$9:$N$1882,11,FALSE) -> 182.27361 | R87: =VLOOKUP(C87,'Anexo_GL '!$B$9:$N$1882,12,FALSE) -> 152.00666 | S87: =VLOOKUP(C87,'Anexo_GL '!$B$9:$N$1882,13,FALSE) -> Cumple
A88: 010519 : MD DE SAN JUAN DE LOPECANCHA | B88: 61 | C88: 010519 | D88: AMAZONAS | E88: MD DE SAN JUAN DE LOPECANCHA | F88: =VLOOKUP(C88,'Anexo_GL '!$B$9:$N$1882,4,FALSE) -> 74.93778 | H88: =VLOOKUP(C88,'Anexo_GL '!$B$9:$N$1882,5,FALSE) -> 652.980025 | I88: =VLOOKUP(C88,'Anexo_GL '!$B$9:$N$1882,6,FALSE) -> 8e-05 | L88: =VLOOKUP(C88,'Anexo_GL '!$B$9:$N$1882,7,FALSE) -> 11.47627448 | N88: =VLOOKUP(C88,'Anexo_GL '!$B$9:$N$1882,8,FALSE) -> Cumple | P88: =VLOOKUP(C88,'Anexo_GL '!$B$9:$N$1882,10,FALSE) -> 351.99974 | Q88: =VLOOKUP(C88,'Anexo_GL '!$B$9:$N$1882,11,FALSE) -> 170.8237 | R88: =VLOOKUP(C88,'Anexo_GL '!$B$9:$N$1882,12,FALSE) -> 181.17604 | S88: =VLOOKUP(C88,'Anexo_GL '!$B$9:$N$1882,13,FALSE) -> Cumple
A89: 010520 : MD DE SANTA CATALINA | B89: 62 | C89: 010520 | D89: AMAZONAS | E89: MD DE SANTA CATALINA | F89: =VLOOKUP(C89,'Anexo_GL '!$B$9:$N$1882,4,FALSE) -> 51.59194 | H89: =VLOOKUP(C89,'Anexo_GL '!$B$9:$N$1882,5,FALSE) -> 796.7951425 | I89: =VLOOKUP(C89,'Anexo_GL '!$B$9:$N$1882,6,FALSE) -> 0.00023 | L89: =VLOOKUP(C89,'Anexo_GL '!$B$9:$N$1882,7,FALSE) -> 6.474931541 | N89: =VLOOKUP(C89,'Anexo_GL '!$B$9:$N$1882,8,FALSE) -> Cumple | P89: =VLOOKUP(C89,'Anexo_GL '!$B$9:$N$1882,10,FALSE) -> 499.01591 | Q89: =VLOOKUP(C89,'Anexo_GL '!$B$9:$N$1882,11,FALSE) -> 285.60032 | R89: =VLOOKUP(C89,'Anexo_GL '!$B$9:$N$1882,12,FALSE) -> 213.41559 | S89: =VLOOKUP(C89,'Anexo_GL '!$B$9:$N$1882,13,FALSE) -> Cumple
A90: 010521 : MD DE SANTO TOMAS | B90: 63 | C90: 010521 | D90: AMAZONAS | E90: MD DE SANTO TOMAS | F90: =VLOOKUP(C90,'Anexo_GL '!$B$9:$N$1882,4,FALSE) -> 68.37071 | H90: =VLOOKUP(C90,'Anexo_GL '!$B$9:$N$1882,5,FALSE) -> 1312.757987 | I90: =VLOOKUP(C90,'Anexo_GL '!$B$9:$N$1882,6,FALSE) -> 0.00057 | L90: =VLOOKUP(C90,'Anexo_GL '!$B$9:$N$1882,7,FALSE) -> 5.208173224 | N90: =VLOOKUP(C90,'Anexo_GL '!$B$9:$N$1882,8,FALSE) -> Cumple | P90: =VLOOKUP(C90,'Anexo_GL '!$B$9:$N$1882,10,FALSE) -> 900.23014 | Q90: =VLOOKUP(C90,'Anexo_GL '!$B$9:$N$1882,11,FALSE) -> 625.84031 | R90: =VLOOKUP(C90,'Anexo_GL '!$B$9:$N$1882,12,FALSE) -> 274.38983 | S90: =VLOOKUP(C90,'Anexo_GL '!$B$9:$N$1882,13,FALSE) -> Cumple
A91: 010522 : MD DE TINGO | B91: 64 | C91: 010522 | D91: AMAZONAS | E91: MD DE TINGO | F91: =VLOOKUP(C91,'Anexo_GL '!$B$9:$N$1882,4,FALSE) -> 47.72496 | H91: =VLOOKUP(C91,'Anexo_GL '!$B$9:$N$1882,5,FALSE) -> 583.73143 | I91: =VLOOKUP(C91,'Anexo_GL '!$B$9:$N$1882,6,FALSE) -> 0.00014 | L91: =VLOOKUP(C91,'Anexo_GL '!$B$9:$N$1882,7,FALSE) -> 8.175842099 | N91: =VLOOKUP(C91,'Anexo_GL '!$B$9:$N$1882,8,FALSE) -> Cumple | P91: =VLOOKUP(C91,'Anexo_GL '!$B$9:$N$1882,10,FALSE) -> 378.61136 | Q91: =VLOOKUP(C91,'Anexo_GL '!$B$9:$N$1882,11,FALSE) -> 432.56066 | R91: =VLOOKUP(C91,'Anexo_GL '!$B$9:$N$1882,12,FALSE) -> -53.9493 | S91: =VLOOKUP(C91,'Anexo_GL '!$B$9:$N$1882,13,FALSE) -> No Cumple
A92: 010523 : MD DE TRITA | B92: 65 | C92: 010523 | D92: AMAZONAS | E92: MD DE TRITA | F92: =VLOOKUP(C92,'Anexo_GL '!$B$9:$N$1882,4,FALSE) -> 10.11122 | H92: =VLOOKUP(C92,'Anexo_GL '!$B$9:$N$1882,5,FALSE) -> 508.347565 | I92: =VLOOKUP(C92,'Anexo_GL '!$B$9:$N$1882,6,FALSE) -> 0.00021 | L92: =VLOOKUP(C92,'Anexo_GL '!$B$9:$N$1882,7,FALSE) -> 1.989036773 | N92: =VLOOKUP(C92,'Anexo_GL '!$B$9:$N$1882,8,FALSE) -> Cumple | P92: =VLOOKUP(C92,'Anexo_GL '!$B$9:$N$1882,10,FALSE) -> 351.01418 | Q92: =VLOOKUP(C92,'Anexo_GL '!$B$9:$N$1882,11,FALSE) -> 235.04257 | R92: =VLOOKUP(C92,'Anexo_GL '!$B$9:$N$1882,12,FALSE) -> 115.97161 | S92: =VLOOKUP(C92,'Anexo_GL '!$B$9:$N$1882,13,FALSE) -> Cumple
A93: 010601 : MP DE RODRIGUEZ DE MENDOZA - SAN NICOLAS | B93: 66 | C93: 010601 | D93: AMAZONAS | E93: MP DE RODRIGUEZ DE MENDOZA - SAN NICOLAS | F93: =VLOOKUP(C93,'Anexo_GL '!$B$9:$N$1882,4,FALSE) -> 5117.62784 | H93: =VLOOKUP(C93,'Anexo_GL '!$B$9:$N$1882,5,FALSE) -> 5746.534305 | I93: =VLOOKUP(C93,'Anexo_GL '!$B$9:$N$1882,6,FALSE) -> 0.00029 | L93: =VLOOKUP(C93,'Anexo_GL '!$B$9:$N$1882,7,FALSE) -> 89.05589993 | N93: =VLOOKUP(C93,'Anexo_GL '!$B$9:$N$1882,8,FALSE) -> Cumple | P93: =VLOOKUP(C93,'Anexo_GL '!$B$9:$N$1882,10,FALSE) -> 2900.47416 | Q93: =VLOOKUP(C93,'Anexo_GL '!$B$9:$N$1882,11,FALSE) -> 2367.691 | R93: =VLOOKUP(C93,'Anexo_GL '!$B$9:$N$1882,12,FALSE) -> 532.78316 | S93: =VLOOKUP(C93,'Anexo_GL '!$B$9:$N$1882,13,FALSE) -> Cumple
A94: 010602 : MD DE CHIRIMOTO | B94: 67 | C94: 010602 | D94: AMAZONAS | E94: MD DE CHIRIMOTO | F94: =VLOOKUP(C94,'Anexo_GL '!$B$9:$N$1882,4,FALSE) -> 2095.26657 | H94: =VLOOKUP(C94,'Anexo_GL '!$B$9:$N$1882,5,FALSE) -> 905.3907025 | I94: =VLOOKUP(C94,'Anexo_GL '!$B$9:$N$1882,6,FALSE) -> 0.00032 | L94: =VLOOKUP(C94,'Anexo_GL '!$B$9:$N$1882,7,FALSE) -> 231.4212598 | N94: =VLOOKUP(C94,'Anexo_GL '!$B$9:$N$1882,8,FALSE) -> No Cumple | P94: =VLOOKUP(C94,'Anexo_GL '!$B$9:$N$1882,10,FALSE) -> 488.13734 | Q94: =VLOOKUP(C94,'Anexo_GL '!$B$9:$N$1882,11,FALSE) -> 313.17695 | R94: =VLOOKUP(C94,'Anexo_GL '!$B$9:$N$1882,12,FALSE) -> 174.96039 | S94: =VLOOKUP(C94,'Anexo_GL '!$B$9:$N$1882,13,FALSE) -> Cumple
A95: 010603 : MD DE COCHAMAL | B95: 68 | C95: 010603 | D95: AMAZONAS | E95: MD DE COCHAMAL | F95: =VLOOKUP(C95,'Anexo_GL '!$B$9:$N$1882,4,FALSE) -> 8.59298 | H95: =VLOOKUP(C95,'Anexo_GL '!$B$9:$N$1882,5,FALSE) -> 454.991715 | I95: =VLOOKUP(C95,'Anexo_GL '!$B$9:$N$1882,6,FALSE) -> 8e-05 | L95: =VLOOKUP(C95,'Anexo_GL '!$B$9:$N$1882,7,FALSE) -> 1.888601422 | N95: =VLOOKUP(C95,'Anexo_GL '!$B$9:$N$1882,8,FALSE) -> Cumple | P95: =VLOOKUP(C95,'Anexo_GL '!$B$9:$N$1882,10,FALSE) -> 347.72634 | Q95: =VLOOKUP(C95,'Anexo_GL '!$B$9:$N$1882,11,FALSE) -> 215.91968 | R95: =VLOOKUP(C95,'Anexo_GL '!$B$9:$N$1882,12,FALSE) -> 131.80666 | S95: =VLOOKUP(C95,'Anexo_GL '!$B$9:$N$1882,13,FALSE) -> Cumple
A96: 010604 : MD DE HUAMBO | B96: 69 | C96: 010604 | D96: AMAZONAS | E96: MD DE HUAMBO | F96: =VLOOKUP(C96,'Anexo_GL '!$B$9:$N$1882,4,FALSE) -> 181.37503 | H96: =VLOOKUP(C96,'Anexo_GL '!$B$9:$N$1882,5,FALSE) -> 725.7712425 | I96: =VLOOKUP(C96,'Anexo_GL '!$B$9:$N$1882,6,FALSE) -> 0.00041 | L96: =VLOOKUP(C96,'Anexo_GL '!$B$9:$N$1882,7,FALSE) -> 24.99066088 | N96: =VLOOKUP(C96,'Anexo_GL '!$B$9:$N$1882,8,FALSE) -> Cumple | P96: =VLOOKUP(C96,'Anexo_GL '!$B$9:$N$1882,10,FALSE) -> 560.73478 | Q96: =VLOOKUP(C96,'Anexo_GL '!$B$9:$N$1882,11,FALSE) -> 371.81472 | R96: =VLOOKUP(C96,'Anexo_GL '!$B$9:$N$1882,12,FALSE) -> 188.92006 | S96: =VLOOKUP(C96,'Anexo_GL '!$B$9:$N$1882,13,FALSE) -> Cumple
A97: 010605 : MD DE LIMABAMBA | B97: 70 | C97: 010605 | D97: AMAZONAS | E97: MD DE LIMABAMBA | F97: =VLOOKUP(C97,'Anexo_GL '!$B$9:$N$1882,4,FALSE) -> 2207.95968 | H97: =VLOOKUP(C97,'Anexo_GL '!$B$9:$N$1882,5,FALSE) -> 973.5744575 | I97: =VLOOKUP(C97,'Anexo_GL '!$B$9:$N$1882,6,FALSE) -> 0.00049 | L97: =VLOOKUP(C97,'Anexo_GL '!$B$9:$N$1882,7,FALSE) -> 226.7889901 | N97: =VLOOKUP(C97,'Anexo_GL '!$B$9:$N$1882,8,FALSE) -> No Cumple | P97: =VLOOKUP(C97,'Anexo_GL '!$B$9:$N$1882,10,FALSE) -> 691.62195 | Q97: =VLOOKUP(C97,'Anexo_GL '!$B$9:$N$1882,11,FALSE) -> 398.16909 | R97: =VLOOKUP(C97,'Anexo_GL '!$B$9:$N$1882,12,FALSE) -> 293.45286 | S97: =VLOOKUP(C97,'Anexo_GL '!$B$9:$N$1882,13,FALSE) -> Cumple
A98: 010606 : MD DE LONGAR | B98: 71 | C98: 010606 | D98: AMAZONAS | E98: MD DE LONGAR | F98: =VLOOKUP(C98,'Anexo_GL '!$B$9:$N$1882,4,FALSE) -> 88.29808 | H98: =VLOOKUP(C98,'Anexo_GL '!$B$9:$N$1882,5,FALSE) -> 547.52106 | I98: =VLOOKUP(C98,'Anexo_GL '!$B$9:$N$1882,6,FALSE) -> 0.00017 | L98: =VLOOKUP(C98,'Anexo_GL '!$B$9:$N$1882,7,FALSE) -> 16.12688286 | N98: =VLOOKUP(C98,'Anexo_GL '!$B$9:$N$1882,8,FALSE) -> Cumple | P98: =VLOOKUP(C98,'Anexo_GL '!$B$9:$N$1882,10,FALSE) -> 369.25621 | Q98: =VLOOKUP(C98,'Anexo_GL '!$B$9:$N$1882,11,FALSE) -> 308.24362 | R98: =VLOOKUP(C98,'Anexo_GL '!$B$9:$N$1882,12,FALSE) -> 61.01259 | S98: =VLOOKUP(C98,'Anexo_GL '!$B$9:$N$1882,13,FALSE) -> Cumple
A99: 010607 : MD DE MARISCAL BENAVIDES | B99: 72 | C99: 010607 | D99: AMAZONAS | E99: MD DE MARISCAL BENAVIDES | F99: =VLOOKUP(C99,'Anexo_GL '!$B$9:$N$1882,4,FALSE) -> 759.93128 | H99: =VLOOKUP(C99,'Anexo_GL '!$B$9:$N$1882,5,FALSE) -> 1002.941445 | I99: =VLOOKUP(C99,'Anexo_GL '!$B$9:$N$1882,6,FALSE) -> 8e-05 | L99: =VLOOKUP(C99,'Anexo_GL '!$B$9:$N$1882,7,FALSE) -> 75.77025397 | N99: =VLOOKUP(C99,'Anexo_GL '!$B$9:$N$1882,8,FALSE) -> Cumple | P99: =VLOOKUP(C99,'Anexo_GL '!$B$9:$N$1882,10,FALSE) -> 383.55089 | Q99: =VLOOKUP(C99,'Anexo_GL '!$B$9:$N$1882,11,FALSE) -> 260.46926 | R99: =VLOOKUP(C99,'Anexo_GL '!$B$9:$N$1882,12,FALSE) -> 123.08163 | S99: =VLOOKUP(C99,'Anexo_GL '!$B$9:$N$1882,13,FALSE) -> Cumple
A100: 010608 : MD DE MILPUC | B100: 73 | C100: 010608 | D100: AMAZONAS | E100: MD DE MILPUC | F100: =VLOOKUP(C100,'Anexo_GL '!$B$9:$N$1882,4,FALSE) -> 97.83723 | H100: =VLOOKUP(C100,'Anexo_GL '!$B$9:$N$1882,5,FALSE) -> 507.1150425 | I100: =VLOOKUP(C100,'Anexo_GL '!$B$9:$N$1882,6,FALSE) -> 0.0001 | L100: =VLOOKUP(C100,'Anexo_GL '!$B$9:$N$1882,7,FALSE) -> 19.2929063 | N100: =VLOOKUP(C100,'Anexo_GL '!$B$9:$N$1882,8,FALSE) -> Cumple | P100: =VLOOKUP(C100,'Anexo_GL '!$B$9:$N$1882,10,FALSE) -> 346.36367 | Q100: =VLOOKUP(C100,'Anexo_GL '!$B$9:$N$1882,11,FALSE) -> 214.7287 | R100: =VLOOKUP(C100,'Anexo_GL '!$B$9:$N$1882,12,FALSE) -> 131.63497 | S100: =VLOOKUP(C100,'Anexo_GL '!$B$9:$N$1882,13,FALSE) -> Cumple
A101: 010609 : MD DE OMIA | B101: 74 | C101: 010609 | D101: AMAZONAS | E101: MD DE OMIA | F101: =VLOOKUP(C101,'Anexo_GL '!$B$9:$N$1882,4,FALSE) -> 109.81517 | H101: =VLOOKUP(C101,'Anexo_GL '!$B$9:$N$1882,5,FALSE) -> 3979.942813 | I101: =VLOOKUP(C101,'Anexo_GL '!$B$9:$N$1882,6,FALSE) -> 0.0015 | L101: =VLOOKUP(C101,'Anexo_GL '!$B$9:$N$1882,7,FALSE) -> 2.759214772 | N101: =VLOOKUP(C101,'Anexo_GL '!$B$9:$N$1882,8,FALSE) -> Cumple | P101: =VLOOKUP(C101,'Anexo_GL '!$B$9:$N$1882,10,FALSE) -> 3677.54277 | Q101: =VLOOKUP(C101,'Anexo_GL '!$B$9:$N$1882,11,FALSE) -> 1555.45582 | R101: =VLOOKUP(C101,'Anexo_GL '!$B$9:$N$1882,12,FALSE) -> 2122.08695 | S101: =VLOOKUP(C101,'Anexo_GL '!$B$9:$N$1882,13,FALSE) -> Cumple
A102: 010610 : MD DE SANTA ROSA | B102: 75 | C102: 010610 | D102: AMAZONAS | E102: MD DE SANTA ROSA | F102: =VLOOKUP(C102,'Anexo_GL '!$B$9:$N$1882,4,FALSE) -> 44.64216 | H102: =VLOOKUP(C102,'Anexo_GL '!$B$9:$N$1882,5,FALSE) -> 507.6491875 | I102: =VLOOKUP(C102,'Anexo_GL '!$B$9:$N$1882,6,FALSE) -> 6e-05 | L102: =VLOOKUP(C102,'Anexo_GL '!$B$9:$N$1882,7,FALSE) -> 8.793899626 | N102: =VLOOKUP(C102,'Anexo_GL '!$B$9:$N$1882,8,FALSE) -> Cumple | P102: =VLOOKUP(C102,'Anexo_GL '!$B$9:$N$1882,10,FALSE) -> 381.18138 | Q102: =VLOOKUP(C102,'Anexo_GL '!$B$9:$N$1882,11,FALSE) -> 241.49708 | R102: =VLOOKUP(C102,'Anexo_GL '!$B$9:$N$1882,12,FALSE) -> 139.6843 | S102: =VLOOKUP(C102,'Anexo_GL '!$B$9:$N$1882,13,FALSE) -> Cumple
A103: 010611 : MD DE TOTORA | B103: 76 | C103: 010611 | D103: AMAZONAS | E103: MD DE TOTORA | F103: =VLOOKUP(C103,'Anexo_GL '!$B$9:$N$1882,4,FALSE) -> 51.36117 | H103: =VLOOKUP(C103,'Anexo_GL '!$B$9:$N$1882,5,FALSE) -> 556.8195275 | I103: =VLOOKUP(C103,'Anexo_GL '!$B$9:$N$1882,6,FALSE) -> 6e-05 | L103: =VLOOKUP(C103,'Anexo_GL '!$B$9:$N$1882,7,FALSE) -> 9.224024565 | N103: =VLOOKUP(C103,'Anexo_GL '!$B$9:$N$1882,8,FALSE) -> Cumple | P103: =VLOOKUP(C103,'Anexo_GL '!$B$9:$N$1882,10,FALSE) -> 371.02393 | Q103: =VLOOKUP(C103,'Anexo_GL '!$B$9:$N$1882,11,FALSE) -> 198.91857 | R103: =VLOOKUP(C103,'Anexo_GL '!$B$9:$N$1882,12,FALSE) -> 172.10536 | S103: =VLOOKUP(C103,'Anexo_GL '!$B$9:$N$1882,13,FALSE) -> Cumple
A104: 010612 : MD DE VISTA ALEGRE | B104: 77 | C104: 010612 | D104: AMAZONAS | E104: MD DE VISTA ALEGRE | F104: =VLOOKUP(C104,'Anexo_GL '!$B$9:$N$1882,4,FALSE) -> 52.52734 | H104: =VLOOKUP(C104,'Anexo_GL '!$B$9:$N$1882,5,FALSE) -> 1129.148478 | I104: =VLOOKUP(C104,'Anexo_GL '!$B$9:$N$1882,6,FALSE) -> 0.00061 | L104: =VLOOKUP(C104,'Anexo_GL '!$B$9:$N$1882,7,FALSE) -> 4.651942685 | N104: =VLOOKUP(C104,'Anexo_GL '!$B$9:$N$1882,8,FALSE) -> Cumple | P104: =VLOOKUP(C104,'Anexo_GL '!$B$9:$N$1882,10,FALSE) -> 793.95319 | Q104: =VLOOKUP(C104,'Anexo_GL '!$B$9:$N$1882,11,FALSE) -> 347.41578 | R104: =VLOOKUP(C104,'Anexo_GL '!$B$9:$N$1882,12,FALSE) -> 446.53741 | S104: =VLOOKUP(C104,'Anexo_GL '!$B$9:$N$1882,13,FALSE) -> Cumple
A105: 010701 : MUNICIPALIDAD PROVINCIA DE UTCUBAMBA - BAGUA GRANDE | B105: 78 | C105: 010701 | D105: AMAZONAS | E105: MUNICIPALIDAD PROVINCIA DE UTCUBAMBA - BAGUA GRANDE | F105: =VLOOKUP(C105,'Anexo_GL '!$B$9:$N$1882,4,FALSE) -> 3422.04716 | H105: =VLOOKUP(C105,'Anexo_GL '!$B$9:$N$1882,5,FALSE) -> 25719.85105 | I105: =VLOOKUP(C105,'Anexo_GL '!$B$9:$N$1882,6,FALSE) -> 0.98475 | L105: =VLOOKUP(C105,'Anexo_GL '!$B$9:$N$1882,7,FALSE) -> 13.30508156 | N105: =VLOOKUP(C105,'Anexo_GL '!$B$9:$N$1882,8,FALSE) -> Cumple | P105: =VLOOKUP(C105,'Anexo_GL '!$B$9:$N$1882,10,FALSE) -> 19459.66353 | Q105: =VLOOKUP(C105,'Anexo_GL '!$B$9:$N$1882,11,FALSE) -> 10983.27738 | R105: =VLOOKUP(C105,'Anexo_GL '!$B$9:$N$1882,12,FALSE) -> 8476.38615 | S105: =VLOOKUP(C105,'Anexo_GL '!$B$9:$N$1882,13,FALSE) -> Cumple
A106: 010702 : MD DE CAJARURO | B106: 79 | C106: 010702 | D106: AMAZONAS | E106: MD DE CAJARURO | F106: =VLOOKUP(C106,'Anexo_GL '!$B$9:$N$1882,4,FALSE) -> 1397.93347 | H106: =VLOOKUP(C106,'Anexo_GL '!$B$9:$N$1882,5,FALSE) -> 9825.860905 | I106: =VLOOKUP(C106,'Anexo_GL '!$B$9:$N$1882,6,FALSE) -> 0.79954 | L106: =VLOOKUP(C106,'Anexo_GL '!$B$9:$N$1882,7,FALSE) -> 14.22708385 | N106: =VLOOKUP(C106,'Anexo_GL '!$B$9:$N$1882,8,FALSE) -> Cumple | P106: =VLOOKUP(C106,'Anexo_GL '!$B$9:$N$1882,10,FALSE) -> 7673.79821 | Q106: =VLOOKUP(C106,'Anexo_GL '!$B$9:$N$1882,11,FALSE) -> 3937.07887 | R106: =VLOOKUP(C106,'Anexo_GL '!$B$9:$N$1882,12,FALSE) -> 3736.71934 | S106: =VLOOKUP(C106,'Anexo_GL '!$B$9:$N$1882,13,FALSE) -> Cumple
A107: 010703 : MD DE CUMBA | B107: 80 | C107: 010703 | D107: AMAZONAS | E107: MD DE CUMBA | F107: =VLOOKUP(C107,'Anexo_GL '!$B$9:$N$1882,4,FALSE) -> 76.82849 | H107: =VLOOKUP(C107,'Anexo_GL '!$B$9:$N$1882,5,FALSE) -> 3301.99406 | I107: =VLOOKUP(C107,'Anexo_GL '!$B$9:$N$1882,6,FALSE) -> 0.00157 | L107: =VLOOKUP(C107,'Anexo_GL '!$B$9:$N$1882,7,FALSE) -> 2.326730109 | N107: =VLOOKUP(C107,'Anexo_GL '!$B$9:$N$1882,8,FALSE) -> Cumple | P107: =VLOOKUP(C107,'Anexo_GL '!$B$9:$N$1882,10,FALSE) -> 2624.01053 | Q107: =VLOOKUP(C107,'Anexo_GL '!$B$9:$N$1882,11,FALSE) -> 1373.22729 | R107: =VLOOKUP(C107,'Anexo_GL '!$B$9:$N$1882,12,FALSE) -> 1250.78324 | S107: =VLOOKUP(C107,'Anexo_GL '!$B$9:$N$1882,13,FALSE) -> Cumple
A108: 010704 : MD DE EL MILAGRO | B108: 81 | C108: 010704 | D108: AMAZONAS | E108: MD DE EL MILAGRO | F108: =VLOOKUP(C108,'Anexo_GL '!$B$9:$N$1882,4,FALSE) -> 305.80737 | H108: =VLOOKUP(C108,'Anexo_GL '!$B$9:$N$1882,5,FALSE) -> 2649.563118 | I108: =VLOOKUP(C108,'Anexo_GL '!$B$9:$N$1882,6,FALSE) -> 0.0009 | L108: =VLOOKUP(C108,'Anexo_GL '!$B$9:$N$1882,7,FALSE) -> 11.54180355 | N108: =VLOOKUP(C108,'Anexo_GL '!$B$9:$N$1882,8,FALSE) -> Cumple | P108: =VLOOKUP(C108,'Anexo_GL '!$B$9:$N$1882,10,FALSE) -> 2131.65947 | Q108: =VLOOKUP(C108,'Anexo_GL '!$B$9:$N$1882,11,FALSE) -> 1594.64042 | R108: =VLOOKUP(C108,'Anexo_GL '!$B$9:$N$1882,12,FALSE) -> 537.01905 | S108: =VLOOKUP(C108,'Anexo_GL '!$B$9:$N$1882,13,FALSE) -> Cumple
A109: 010705 : MD DE JAMALCA | B109: 82 | C109: 010705 | D109: AMAZONAS | E109: MD DE JAMALCA | F109: =VLOOKUP(C109,'Anexo_GL '!$B$9:$N$1882,4,FALSE) -> 582.821 | H109: =VLOOKUP(C109,'Anexo_GL '!$B$9:$N$1882,5,FALSE) -> 3507.206925 | I109: =VLOOKUP(C109,'Anexo_GL '!$B$9:$N$1882,6,FALSE) -> 0.00138 | L109: =VLOOKUP(C109,'Anexo_GL '!$B$9:$N$1882,7,FALSE) -> 16.61781048 | N109: =VLOOKUP(C109,'Anexo_GL '!$B$9:$N$1882,8,FALSE) -> Cumple | P109: =VLOOKUP(C109,'Anexo_GL '!$B$9:$N$1882,10,FALSE) -> 2440.7834 | Q109: =VLOOKUP(C109,'Anexo_GL '!$B$9:$N$1882,11,FALSE) -> 1333.29741 | R109: =VLOOKUP(C109,'Anexo_GL '!$B$9:$N$1882,12,FALSE) -> 1107.48599 | S109: =VLOOKUP(C109,'Anexo_GL '!$B$9:$N$1882,13,FALSE) -> Cumple
A110: 010706 : MD DE LONYA GRANDE | B110: 83 | C110: 010706 | D110: AMAZONAS | E110: MD DE LONYA GRANDE | F110: =VLOOKUP(C110,'Anexo_GL '!$B$9:$N$1882,4,FALSE) -> 263.98276 | H110: =VLOOKUP(C110,'Anexo_GL '!$B$9:$N$1882,5,FALSE) -> 3381.550727 | I110: =VLOOKUP(C110,'Anexo_GL '!$B$9:$N$1882,6,FALSE) -> 0.00179 | L110: =VLOOKUP(C110,'Anexo_GL '!$B$9:$N$1882,7,FALSE) -> 7.806559217 | N110: =VLOOKUP(C110,'Anexo_GL '!$B$9:$N$1882,8,FALSE) -> Cumple | P110: =VLOOKUP(C110,'Anexo_GL '!$B$9:$N$1882,10,FALSE) -> 2668.16639 | Q110: =VLOOKUP(C110,'Anexo_GL '!$B$9:$N$1882,11,FALSE) -> 1353.41432 | R110: =VLOOKUP(C110,'Anexo_GL '!$B$9:$N$1882,12,FALSE) -> 1314.75207 | S110: =VLOOKUP(C110,'Anexo_GL '!$B$9:$N$1882,13,FALSE) -> Cumple
A111: 010707 : MD DE YAMON | B111: 84 | C111: 010707 | D111: AMAZONAS | E111: MD DE YAMON | F111: =VLOOKUP(C111,'Anexo_GL '!$B$9:$N$1882,4,FALSE) -> 8456.55589 | H111: =VLOOKUP(C111,'Anexo_GL '!$B$9:$N$1882,5,FALSE) -> 1525.000965 | I111: =VLOOKUP(C111,'Anexo_GL '!$B$9:$N$1882,6,FALSE) -> 0.00044 | L111: =VLOOKUP(C111,'Anexo_GL '!$B$9:$N$1882,7,FALSE) -> 554.5279042 | N111: =VLOOKUP(C111,'Anexo_GL '!$B$9:$N$1882,8,FALSE) -> No Cumple | P111: =VLOOKUP(C111,'Anexo_GL '!$B$9:$N$1882,10,FALSE) -> 1061.9591 | Q111: =VLOOKUP(C111,'Anexo_GL '!$B$9:$N$1882,11,FALSE) -> 762.35649 | R111: =VLOOKUP(C111,'Anexo_GL '!$B$9:$N$1882,12,FALSE) -> 299.60261 | S111: =VLOOKUP(C111,'Anexo_GL '!$B$9:$N$1882,13,FALSE) -> Cumple
A112: 020101 : MP DE HUARAZ | B112: 85 | C112: 020101 | D112: ANCASH | E112: MP DE HUARAZ | F112: =VLOOKUP(C112,'Anexo_GL '!$B$9:$N$1882,4,FALSE) -> 19546.0453 | H112: =VLOOKUP(C112,'Anexo_GL '!$B$9:$N$1882,5,FALSE) -> 35917.88308 | I112: =VLOOKUP(C112,'Anexo_GL '!$B$9:$N$1882,6,FALSE) -> 26591.10715 | L112: =VLOOKUP(C112,'Anexo_GL '!$B$9:$N$1882,7,FALSE) -> 54.41870073 | N112: =VLOOKUP(C112,'Anexo_GL '!$B$9:$N$1882,8,FALSE) -> Cumple | P112: =VLOOKUP(C112,'Anexo_GL '!$B$9:$N$1882,10,FALSE) -> 35740.25417 | Q112: =VLOOKUP(C112,'Anexo_GL '!$B$9:$N$1882,11,FALSE) -> 20356.33183 | R112: =VLOOKUP(C112,'Anexo_GL '!$B$9:$N$1882,12,FALSE) -> 15383.92234 | S112: =VLOOKUP(C112,'Anexo_GL '!$B$9:$N$1882,13,FALSE) -> Cumple
A113: 020102 : MD DE COCHABAMBA | B113: 86 | C113: 020102 | D113: ANCASH | E113: MD DE COCHABAMBA | F113: =VLOOKUP(C113,'Anexo_GL '!$B$9:$N$1882,4,FALSE) -> 183.09807 | H113: =VLOOKUP(C113,'Anexo_GL '!$B$9:$N$1882,5,FALSE) -> 1819.96513 | I113: =VLOOKUP(C113,'Anexo_GL '!$B$9:$N$1882,6,FALSE) -> 2558.84951 | L113: =VLOOKUP(C113,'Anexo_GL '!$B$9:$N$1882,7,FALSE) -> 7.155484107 | N113: =VLOOKUP(C113,'Anexo_GL '!$B$9:$N$1882,8,FALSE) -> Cumple | P113: =VLOOKUP(C113,'Anexo_GL '!$B$9:$N$1882,10,FALSE) -> 2616.6651 | Q113: =VLOOKUP(C113,'Anexo_GL '!$B$9:$N$1882,11,FALSE) -> 625.76625 | R113: =VLOOKUP(C113,'Anexo_GL '!$B$9:$N$1882,12,FALSE) -> 1990.89885 | S113: =VLOOKUP(C113,'Anexo_GL '!$B$9:$N$1882,13,FALSE) -> Cumple
A114: 020103 : MD DE COLCABAMBA | B114: 87 | C114: 020103 | D114: ANCASH | E114: MD DE COLCABAMBA | F114: =VLOOKUP(C114,'Anexo_GL '!$B$9:$N$1882,4,FALSE) -> 61.57227 | H114: =VLOOKUP(C114,'Anexo_GL '!$B$9:$N$1882,5,FALSE) -> 809.1782375 | I114: =VLOOKUP(C114,'Anexo_GL '!$B$9:$N$1882,6,FALSE) -> 773.51017 | L114: =VLOOKUP(C114,'Anexo_GL '!$B$9:$N$1882,7,FALSE) -> 7.609234548 | N114: =VLOOKUP(C114,'Anexo_GL '!$B$9:$N$1882,8,FALSE) -> Cumple | P114: =VLOOKUP(C114,'Anexo_GL '!$B$9:$N$1882,10,FALSE) -> 962.17188 | Q114: =VLOOKUP(C114,'Anexo_GL '!$B$9:$N$1882,11,FALSE) -> 400.72735 | R114: =VLOOKUP(C114,'Anexo_GL '!$B$9:$N$1882,12,FALSE) -> 561.44453 | S114: =VLOOKUP(C114,'Anexo_GL '!$B$9:$N$1882,13,FALSE) -> Cumple
A115: 020104 : MD DE HUANCHAY | B115: 88 | C115: 020104 | D115: ANCASH | E115: MD DE HUANCHAY | F115: =VLOOKUP(C115,'Anexo_GL '!$B$9:$N$1882,4,FALSE) -> 65.55881 | H115: =VLOOKUP(C115,'Anexo_GL '!$B$9:$N$1882,5,FALSE) -> 1670.938138 | I115: =VLOOKUP(C115,'Anexo_GL '!$B$9:$N$1882,6,FALSE) -> 2226.51157 | L115: =VLOOKUP(C115,'Anexo_GL '!$B$9:$N$1882,7,FALSE) -> 2.944463028 | N115: =VLOOKUP(C115,'Anexo_GL '!$B$9:$N$1882,8,FALSE) -> Cumple | P115: =VLOOKUP(C115,'Anexo_GL '!$B$9:$N$1882,10,FALSE) -> 2242.72042 | Q115: =VLOOKUP(C115,'Anexo_GL '!$B$9:$N$1882,11,FALSE) -> 481.91849 | R115: =VLOOKUP(C115,'Anexo_GL '!$B$9:$N$1882,12,FALSE) -> 1760.80193 | S115: =VLOOKUP(C115,'Anexo_GL '!$B$9:$N$1882,13,FALSE) -> Cumple
A116: 020105 : MD DE INDEPENDENCIA | B116: 89 | C116: 020105 | D116: ANCASH | E116: MD DE INDEPENDENCIA | F116: =VLOOKUP(C116,'Anexo_GL '!$B$9:$N$1882,4,FALSE) -> 12361.40405 | H116: =VLOOKUP(C116,'Anexo_GL '!$B$9:$N$1882,5,FALSE) -> 30444.49531 | I116: =VLOOKUP(C116,'Anexo_GL '!$B$9:$N$1882,6,FALSE) -> 39138.78392 | L116: =VLOOKUP(C116,'Anexo_GL '!$B$9:$N$1882,7,FALSE) -> 31.58351592 | N116: =VLOOKUP(C116,'Anexo_GL '!$B$9:$N$1882,8,FALSE) -> Cumple | P116: =VLOOKUP(C116,'Anexo_GL '!$B$9:$N$1882,10,FALSE) -> 42285.7798 | Q116: =VLOOKUP(C116,'Anexo_GL '!$B$9:$N$1882,11,FALSE) -> 9600.36583 | R116: =VLOOKUP(C116,'Anexo_GL '!$B$9:$N$1882,12,FALSE) -> 32685.41397 | S116: =VLOOKUP(C116,'Anexo_GL '!$B$9:$N$1882,13,FALSE) -> Cumple
A117: 020106 : MD DE JANGAS | B117: 90 | C117: 020106 | D117: ANCASH | E117: MD DE JANGAS | F117: =VLOOKUP(C117,'Anexo_GL '!$B$9:$N$1882,4,FALSE) -> 283.8925 | H117: =VLOOKUP(C117,'Anexo_GL '!$B$9:$N$1882,5,FALSE) -> 3533.94551 | I117: =VLOOKUP(C117,'Anexo_GL '!$B$9:$N$1882,6,FALSE) -> 6326.31549 | L117: =VLOOKUP(C117,'Anexo_GL '!$B$9:$N$1882,7,FALSE) -> 4.487485653 | N117: =VLOOKUP(C117,'Anexo_GL '!$B$9:$N$1882,8,FALSE) -> Cumple | P117: =VLOOKUP(C117,'Anexo_GL '!$B$9:$N$1882,10,FALSE) -> 4642.75495 | Q117: =VLOOKUP(C117,'Anexo_GL '!$B$9:$N$1882,11,FALSE) -> 1185.72142 | R117: =VLOOKUP(C117,'Anexo_GL '!$B$9:$N$1882,12,FALSE) -> 3457.03353 | S117: =VLOOKUP(C117,'Anexo_GL '!$B$9:$N$1882,13,FALSE) -> Cumple
A118: 020107 : MD DE LA LIBERTAD | B118: 91 | C118: 020107 | D118: ANCASH | E118: MD DE LA LIBERTAD | F118: =VLOOKUP(C118,'Anexo_GL '!$B$9:$N$1882,4,FALSE) -> 51.34631 | H118: =VLOOKUP(C118,'Anexo_GL '!$B$9:$N$1882,5,FALSE) -> 1052.59489 | I118: =VLOOKUP(C118,'Anexo_GL '!$B$9:$N$1882,6,FALSE) -> 1153.4342 | L118: =VLOOKUP(C118,'Anexo_GL '!$B$9:$N$1882,7,FALSE) -> 4.451602874 | N118: =VLOOKUP(C118,'Anexo_GL '!$B$9:$N$1882,8,FALSE) -> Cumple | P118: =VLOOKUP(C118,'Anexo_GL '!$B$9:$N$1882,10,FALSE) -> 399.62539 | Q118: =VLOOKUP(C118,'Anexo_GL '!$B$9:$N$1882,11,FALSE) -> 514.62903 | R118: =VLOOKUP(C118,'Anexo_GL '!$B$9:$N$1882,12,FALSE) -> -115.00364 | S118: =VLOOKUP(C118,'Anexo_GL '!$B$9:$N$1882,13,FALSE) -> No Cumple
A119: 020108 : MD DE OLLEROS | B119: 92 | C119: 020108 | D119: ANCASH | E119: MD DE OLLEROS | F119: =VLOOKUP(C119,'Anexo_GL '!$B$9:$N$1882,4,FALSE) -> 854.15512 | H119: =VLOOKUP(C119,'Anexo_GL '!$B$9:$N$1882,5,FALSE) -> 1383.784595 | I119: =VLOOKUP(C119,'Anexo_GL '!$B$9:$N$1882,6,FALSE) -> 1730.49839 | L119: =VLOOKUP(C119,'Anexo_GL '!$B$9:$N$1882,7,FALSE) -> 49.35890868 | N119: =VLOOKUP(C119,'Anexo_GL '!$B$9:$N$1882,8,FALSE) -> Cumple | P119: =VLOOKUP(C119,'Anexo_GL '!$B$9:$N$1882,10,FALSE) -> 1818.09074 | Q119: =VLOOKUP(C119,'Anexo_GL '!$B$9:$N$1882,11,FALSE) -> 544.72061 | R119: =VLOOKUP(C119,'Anexo_GL '!$B$9:$N$1882,12,FALSE) -> 1273.37013 | S119: =VLOOKUP(C119,'Anexo_GL '!$B$9:$N$1882,13,FALSE) -> Cumple
A120: 020109 : MD DE PAMPAS | B120: 93 | C120: 020109 | D120: ANCASH | E120: MD DE PAMPAS | F120: =VLOOKUP(C120,'Anexo_GL '!$B$9:$N$1882,4,FALSE) -> 72.96025 | H120: =VLOOKUP(C120,'Anexo_GL '!$B$9:$N$1882,5,FALSE) -> 1489.429195 | I120: =VLOOKUP(C120,'Anexo_GL '!$B$9:$N$1882,6,FALSE) -> 1499.92944 | L120: =VLOOKUP(C120,'Anexo_GL '!$B$9:$N$1882,7,FALSE) -> 4.864245481 | N120: =VLOOKUP(C120,'Anexo_GL '!$B$9:$N$1882,8,FALSE) -> Cumple | P120: =VLOOKUP(C120,'Anexo_GL '!$B$9:$N$1882,10,FALSE) -> 1638.19959 | Q120: =VLOOKUP(C120,'Anexo_GL '!$B$9:$N$1882,11,FALSE) -> 455.40905 | R120: =VLOOKUP(C120,'Anexo_GL '!$B$9:$N$1882,12,FALSE) -> 1182.79054 | S120: =VLOOKUP(C120,'Anexo_GL '!$B$9:$N$1882,13,FALSE) -> Cumple
A121: 020110 : MD DE PARIACOTO | B121: 94 | C121: 020110 | D121: ANCASH | E121: MD DE PARIACOTO | F121: =VLOOKUP(C121,'Anexo_GL '!$B$9:$N$1882,4,FALSE) -> 319.00465 | H121: =VLOOKUP(C121,'Anexo_GL '!$B$9:$N$1882,5,FALSE) -> 3148.414452 | I121: =VLOOKUP(C121,'Anexo_GL '!$B$9:$N$1882,6,FALSE) -> 3968.18645 | L121: =VLOOKUP(C121,'Anexo_GL '!$B$9:$N$1882,7,FALSE) -> 8.039053961 | N121: =VLOOKUP(C121,'Anexo_GL '!$B$9:$N$1882,8,FALSE) -> Cumple | P121: =VLOOKUP(C121,'Anexo_GL '!$B$9:$N$1882,10,FALSE) -> 3914.36367 | Q121: =VLOOKUP(C121,'Anexo_GL '!$B$9:$N$1882,11,FALSE) -> 2583.6493 | R121: =VLOOKUP(C121,'Anexo_GL '!$B$9:$N$1882,12,FALSE) -> 1330.71437 | S121: =VLOOKUP(C121,'Anexo_GL '!$B$9:$N$1882,13,FALSE) -> Cumple
A122: 020111 : MD DE PIRA | B122: 95 | C122: 020111 | D122: ANCASH | E122: MD DE PIRA | F122: =VLOOKUP(C122,'Anexo_GL '!$B$9:$N$1882,4,FALSE) -> 622.0694 | H122: =VLOOKUP(C122,'Anexo_GL '!$B$9:$N$1882,5,FALSE) -> 3120.370107 | I122: =VLOOKUP(C122,'Anexo_GL '!$B$9:$N$1882,6,FALSE) -> 4807.0046 | L122: =VLOOKUP(C122,'Anexo_GL '!$B$9:$N$1882,7,FALSE) -> 12.94089463 | N122: =VLOOKUP(C122,'Anexo_GL '!$B$9:$N$1882,8,FALSE) -> Cumple | P122: =VLOOKUP(C122,'Anexo_GL '!$B$9:$N$1882,10,FALSE) -> 4479.75264 | Q122: =VLOOKUP(C122,'Anexo_GL '!$B$9:$N$1882,11,FALSE) -> 766.94213 | R122: =VLOOKUP(C122,'Anexo_GL '!$B$9:$N$1882,12,FALSE) -> 3712.81051 | S122: =VLOOKUP(C122,'Anexo_GL '!$B$9:$N$1882,13,FALSE) -> Cumple
A123: 020112 : MD DE TARICA | B123: 96 | C123: 020112 | D123: ANCASH | E123: MD DE TARICA | F123: =VLOOKUP(C123,'Anexo_GL '!$B$9:$N$1882,4,FALSE) -> 700.41481 | H123: =VLOOKUP(C123,'Anexo_GL '!$B$9:$N$1882,5,FALSE) -> 3187.108418 | I123: =VLOOKUP(C123,'Anexo_GL '!$B$9:$N$1882,6,FALSE) -> 4200.26662 | L123: =VLOOKUP(C123,'Anexo_GL '!$B$9:$N$1882,7,FALSE) -> 16.67548452 | N123: =VLOOKUP(C123,'Anexo_GL '!$B$9:$N$1882,8,FALSE) -> Cumple | P123: =VLOOKUP(C123,'Anexo_GL '!$B$9:$N$1882,10,FALSE) -> 4275.62594 | Q123: =VLOOKUP(C123,'Anexo_GL '!$B$9:$N$1882,11,FALSE) -> 1233.92798 | R123: =VLOOKUP(C123,'Anexo_GL '!$B$9:$N$1882,12,FALSE) -> 3041.69796 | S123: =VLOOKUP(C123,'Anexo_GL '!$B$9:$N$1882,13,FALSE) -> Cumple
A124: 020201 : MP DE AIJA | B124: 97 | C124: 020201 | D124: ANCASH | E124: MP DE AIJA | F124: =VLOOKUP(C124,'Anexo_GL '!$B$9:$N$1882,4,FALSE) -> 126.70851 | H124: =VLOOKUP(C124,'Anexo_GL '!$B$9:$N$1882,5,FALSE) -> 2741.144673 | I124: =VLOOKUP(C124,'Anexo_GL '!$B$9:$N$1882,6,FALSE) -> 1404.19305 | L124: =VLOOKUP(C124,'Anexo_GL '!$B$9:$N$1882,7,FALSE) -> 4.622467076 | N124: =VLOOKUP(C124,'Anexo_GL '!$B$9:$N$1882,8,FALSE) -> Cumple | P124: =VLOOKUP(C124,'Anexo_GL '!$B$9:$N$1882,10,FALSE) -> 3093.82252 | Q124: =VLOOKUP(C124,'Anexo_GL '!$B$9:$N$1882,11,FALSE) -> 955.77953 | R124: =VLOOKUP(C124,'Anexo_GL '!$B$9:$N$1882,12,FALSE) -> 2138.04299 | S124: =VLOOKUP(C124,'Anexo_GL '!$B$9:$N$1882,13,FALSE) -> Cumple
A125: 020202 : MD DE CORIS | B125: 98 | C125: 020202 | D125: ANCASH | E125: MD DE CORIS | F125: =VLOOKUP(C125,'Anexo_GL '!$B$9:$N$1882,4,FALSE) -> 94.21239 | H125: =VLOOKUP(C125,'Anexo_GL '!$B$9:$N$1882,5,FALSE) -> 1948.052283 | I125: =VLOOKUP(C125,'Anexo_GL '!$B$9:$N$1882,6,FALSE) -> 2579.49563 | L125: =VLOOKUP(C125,'Anexo_GL '!$B$9:$N$1882,7,FALSE) -> 3.652357031 | N125: =VLOOKUP(C125,'Anexo_GL '!$B$9:$N$1882,8,FALSE) -> Cumple | P125: =VLOOKUP(C125,'Anexo_GL '!$B$9:$N$1882,10,FALSE) -> 2965.20855 | Q125: =VLOOKUP(C125,'Anexo_GL '!$B$9:$N$1882,11,FALSE) -> 661.08154 | R125: =VLOOKUP(C125,'Anexo_GL '!$B$9:$N$1882,12,FALSE) -> 2304.12701 | S125: =VLOOKUP(C125,'Anexo_GL '!$B$9:$N$1882,13,FALSE) -> Cumple
A126: 020203 : MD DE HUACLLAN | B126: 99 | C126: 020203 | D126: ANCASH | E126: MD DE HUACLLAN | F126: =VLOOKUP(C126,'Anexo_GL '!$B$9:$N$1882,4,FALSE) -> 90.96556 | H126: =VLOOKUP(C126,'Anexo_GL '!$B$9:$N$1882,5,FALSE) -> 693.57677 | I126: =VLOOKUP(C126,'Anexo_GL '!$B$9:$N$1882,6,FALSE) -> 760.64043 | L126: =VLOOKUP(C126,'Anexo_GL '!$B$9:$N$1882,7,FALSE) -> 11.95907507 | N126: =VLOOKUP(C126,'Anexo_GL '!$B$9:$N$1882,8,FALSE) -> Cumple | P126: =VLOOKUP(C126,'Anexo_GL '!$B$9:$N$1882,10,FALSE) -> 366.18474 | Q126: =VLOOKUP(C126,'Anexo_GL '!$B$9:$N$1882,11,FALSE) -> 334.787 | R126: =VLOOKUP(C126,'Anexo_GL '!$B$9:$N$1882,12,FALSE) -> 31.39774 | S126: =VLOOKUP(C126,'Anexo_GL '!$B$9:$N$1882,13,FALSE) -> Cumple
A127: 020204 : MD DE LA MERCED | B127: 100 | C127: 020204 | D127: ANCASH | E127: MD DE LA MERCED | F127: =VLOOKUP(C127,'Anexo_GL '!$B$9:$N$1882,4,FALSE) -> 52.9773 | H127: =VLOOKUP(C127,'Anexo_GL '!$B$9:$N$1882,5,FALSE) -> 1607.332127 | I127: =VLOOKUP(C127,'Anexo_GL '!$B$9:$N$1882,6,FALSE) -> 2731.11341 | L127: =VLOOKUP(C127,'Anexo_GL '!$B$9:$N$1882,7,FALSE) -> 1.939769319 | N127: =VLOOKUP(C127,'Anexo_GL '!$B$9:$N$1882,8,FALSE) -> Cumple | P127: =VLOOKUP(C127,'Anexo_GL '!$B$9:$N$1882,10,FALSE) -> 666.34719 | Q127: =VLOOKUP(C127,'Anexo_GL '!$B$9:$N$1882,11,FALSE) -> 831.47799 | R127: =VLOOKUP(C127,'Anexo_GL '!$B$9:$N$1882,12,FALSE) -> -165.1308 | S127: =VLOOKUP(C127,'Anexo_GL '!$B$9:$N$1882,13,FALSE) -> No Cumple
A128: 020205 : MD DE SUCCHA | B128: 101 | C128: 020205 | D128: ANCASH | E128: MD DE SUCCHA | F128: =VLOOKUP(C128,'Anexo_GL '!$B$9:$N$1882,4,FALSE) -> 43.45276 | H128: =VLOOKUP(C128,'Anexo_GL '!$B$9:$N$1882,5,FALSE) -> 1002.363522 | I128: =VLOOKUP(C128,'Anexo_GL '!$B$9:$N$1882,6,FALSE) -> 782.72367 | L128: =VLOOKUP(C128,'Anexo_GL '!$B$9:$N$1882,7,FALSE) -> 4.335030059 | N128: =VLOOKUP(C128,'Anexo_GL '!$B$9:$N$1882,8,FALSE) -> Cumple | P128: =VLOOKUP(C128,'Anexo_GL '!$B$9:$N$1882,10,FALSE) -> 1106.46046 | Q128: =VLOOKUP(C128,'Anexo_GL '!$B$9:$N$1882,11,FALSE) -> 325.05605 | R128: =VLOOKUP(C128,'Anexo_GL '!$B$9:$N$1882,12,FALSE) -> 781.40441 | S128: =VLOOKUP(C128,'Anexo_GL '!$B$9:$N$1882,13,FALSE) -> Cumple
A129: 020301 : MP DE ANTONIO RAYMONDI - LLAMELLIN | B129: 102 | C129: 020301 | D129: ANCASH | E129: MP DE ANTONIO RAYMONDI - LLAMELLIN | F129: =VLOOKUP(C129,'Anexo_GL '!$B$9:$N$1882,4,FALSE) -> 286.49448 | H129: =VLOOKUP(C129,'Anexo_GL '!$B$9:$N$1882,5,FALSE) -> 3696.872145 | I129: =VLOOKUP(C129,'Anexo_GL '!$B$9:$N$1882,6,FALSE) -> 2505.85749 | L129: =VLOOKUP(C129,'Anexo_GL '!$B$9:$N$1882,7,FALSE) -> 7.749645342 | N129: =VLOOKUP(C129,'Anexo_GL '!$B$9:$N$1882,8,FALSE) -> Cumple | P129: =VLOOKUP(C129,'Anexo_GL '!$B$9:$N$1882,10,FALSE) -> 4268.16711 | Q129: =VLOOKUP(C129,'Anexo_GL '!$B$9:$N$1882,11,FALSE) -> 1545.07363 | R129: =VLOOKUP(C129,'Anexo_GL '!$B$9:$N$1882,12,FALSE) -> 2723.09348 | S129: =VLOOKUP(C129,'Anexo_GL '!$B$9:$N$1882,13,FALSE) -> Cumple
A130: 020302 : MD DE ACSO | B130: 103 | C130: 020302 | D130: ANCASH | E130: MD DE ACSO | F130: =VLOOKUP(C130,'Anexo_GL '!$B$9:$N$1882,4,FALSE) -> 49.75044 | H130: =VLOOKUP(C130,'Anexo_GL '!$B$9:$N$1882,5,FALSE) -> 1499.35854 | I130: =VLOOKUP(C130,'Anexo_GL '!$B$9:$N$1882,6,FALSE) -> 1711.4275 | L130: =VLOOKUP(C130,'Anexo_GL '!$B$9:$N$1882,7,FALSE) -> 2.906955743 | N130: =VLOOKUP(C130,'Anexo_GL '!$B$9:$N$1882,8,FALSE) -> Cumple | P130: =VLOOKUP(C130,'Anexo_GL '!$B$9:$N$1882,10,FALSE) -> 1770.97457 | Q130: =VLOOKUP(C130,'Anexo_GL '!$B$9:$N$1882,11,FALSE) -> 829.17078 | R130: =VLOOKUP(C130,'Anexo_GL '!$B$9:$N$1882,12,FALSE) -> 941.80379 | S130: =VLOOKUP(C130,'Anexo_GL '!$B$9:$N$1882,13,FALSE) -> Cumple
A131: 020303 : MD DE CHACCHO | B131: 104 | C131: 020303 | D131: ANCASH | E131: MD DE CHACCHO | F131: =VLOOKUP(C131,'Anexo_GL '!$B$9:$N$1882,4,FALSE) -> 494.20126 | H131: =VLOOKUP(C131,'Anexo_GL '!$B$9:$N$1882,5,FALSE) -> 1235.929482 | I131: =VLOOKUP(C131,'Anexo_GL '!$B$9:$N$1882,6,FALSE) -> 1573.94675 | L131: =VLOOKUP(C131,'Anexo_GL '!$B$9:$N$1882,7,FALSE) -> 31.39885514 | N131: =VLOOKUP(C131,'Anexo_GL '!$B$9:$N$1882,8,FALSE) -> Cumple | P131: =VLOOKUP(C131,'Anexo_GL '!$B$9:$N$1882,10,FALSE) -> 1580.94353 | Q131: =VLOOKUP(C131,'Anexo_GL '!$B$9:$N$1882,11,FALSE) -> 310.11414 | R131: =VLOOKUP(C131,'Anexo_GL '!$B$9:$N$1882,12,FALSE) -> 1270.82939 | S131: =VLOOKUP(C131,'Anexo_GL '!$B$9:$N$1882,13,FALSE) -> Cumple
A132: 020304 : MD DE CHINGAS | B132: 105 | C132: 020304 | D132: ANCASH | E132: MD DE CHINGAS | F132: =VLOOKUP(C132,'Anexo_GL '!$B$9:$N$1882,4,FALSE) -> 60.67813 | H132: =VLOOKUP(C132,'Anexo_GL '!$B$9:$N$1882,5,FALSE) -> 947.0924725 | I132: =VLOOKUP(C132,'Anexo_GL '!$B$9:$N$1882,6,FALSE) -> 1531.09463 | L132: =VLOOKUP(C132,'Anexo_GL '!$B$9:$N$1882,7,FALSE) -> 3.963055504 | N132: =VLOOKUP(C132,'Anexo_GL '!$B$9:$N$1882,8,FALSE) -> Cumple | P132: =VLOOKUP(C132,'Anexo_GL '!$B$9:$N$1882,10,FALSE) -> 460.78201 | Q132: =VLOOKUP(C132,'Anexo_GL '!$B$9:$N$1882,11,FALSE) -> 544.5949 | R132: =VLOOKUP(C132,'Anexo_GL '!$B$9:$N$1882,12,FALSE) -> -83.81289 | S132: =VLOOKUP(C132,'Anexo_GL '!$B$9:$N$1882,13,FALSE) -> No Cumple
A133: 020305 : MD DE MIRGAS | B133: 106 | C133: 020305 | D133: ANCASH | E133: MD DE MIRGAS | F133: =VLOOKUP(C133,'Anexo_GL '!$B$9:$N$1882,4,FALSE) -> 182.13417 | H133: =VLOOKUP(C133,'Anexo_GL '!$B$9:$N$1882,5,FALSE) -> 3570.384373 | I133: =VLOOKUP(C133,'Anexo_GL '!$B$9:$N$1882,6,FALSE) -> 5335.48871 | L133: =VLOOKUP(C133,'Anexo_GL '!$B$9:$N$1882,7,FALSE) -> 3.413636124 | N133: =VLOOKUP(C133,'Anexo_GL '!$B$9:$N$1882,8,FALSE) -> Cumple | P133: =VLOOKUP(C133,'Anexo_GL '!$B$9:$N$1882,10,FALSE) -> 5245.75613 | Q133: =VLOOKUP(C133,'Anexo_GL '!$B$9:$N$1882,11,FALSE) -> 1160.90979 | R133: =VLOOKUP(C133,'Anexo_GL '!$B$9:$N$1882,12,FALSE) -> 4084.84634 | S133: =VLOOKUP(C133,'Anexo_GL '!$B$9:$N$1882,13,FALSE) -> Cumple
A134: 020306 : MD DE SAN JUAN DE RONTOY | B134: 107 | C134: 020306 | D134: ANCASH | E134: MD DE SAN JUAN DE RONTOY | F134: =VLOOKUP(C134,'Anexo_GL '!$B$9:$N$1882,4,FALSE) -> 15.98896 | H134: =VLOOKUP(C134,'Anexo_GL '!$B$9:$N$1882,5,FALSE) -> 897.45547 | I134: =VLOOKUP(C134,'Anexo_GL '!$B$9:$N$1882,6,FALSE) -> 1517.35902 | L134: =VLOOKUP(C134,'Anexo_GL '!$B$9:$N$1882,7,FALSE) -> 1.053736116 | N134: =VLOOKUP(C134,'Anexo_GL '!$B$9:$N$1882,8,FALSE) -> Cumple | P134: =VLOOKUP(C134,'Anexo_GL '!$B$9:$N$1882,10,FALSE) -> 427.6408 | Q134: =VLOOKUP(C134,'Anexo_GL '!$B$9:$N$1882,11,FALSE) -> 521.38587 | R134: =VLOOKUP(C134,'Anexo_GL '!$B$9:$N$1882,12,FALSE) -> -93.74507 | S134: =VLOOKUP(C134,'Anexo_GL '!$B$9:$N$1882,13,FALSE) -> No Cumple
A135: 020401 : MP DE ASUNCION - CHACAS | B135: 108 | C135: 020401 | D135: ANCASH | E135: MP DE ASUNCION - CHACAS | F135: =VLOOKUP(C135,'Anexo_GL '!$B$9:$N$1882,4,FALSE) -> 351.97773 | H135: =VLOOKUP(C135,'Anexo_GL '!$B$9:$N$1882,5,FALSE) -> 3621.915937 | I135: =VLOOKUP(C135,'Anexo_GL '!$B$9:$N$1882,6,FALSE) -> 3932.11294 | L135: =VLOOKUP(C135,'Anexo_GL '!$B$9:$N$1882,7,FALSE) -> 8.951363691 | N135: =VLOOKUP(C135,'Anexo_GL '!$B$9:$N$1882,8,FALSE) -> Cumple | P135: =VLOOKUP(C135,'Anexo_GL '!$B$9:$N$1882,10,FALSE) -> 2536.57771 | Q135: =VLOOKUP(C135,'Anexo_GL '!$B$9:$N$1882,11,FALSE) -> 1757.49196 | R135: =VLOOKUP(C135,'Anexo_GL '!$B$9:$N$1882,12,FALSE) -> 779.08575 | S135: =VLOOKUP(C135,'Anexo_GL '!$B$9:$N$1882,13,FALSE) -> Cumple
A136: 020402 : MD DE ACOCHACA | B136: 109 | C136: 020402 | D136: ANCASH | E136: MD DE ACOCHACA | F136: =VLOOKUP(C136,'Anexo_GL '!$B$9:$N$1882,4,FALSE) -> 72.39179 | H136: =VLOOKUP(C136,'Anexo_GL '!$B$9:$N$1882,5,FALSE) -> 2341.81632 | I136: =VLOOKUP(C136,'Anexo_GL '!$B$9:$N$1882,6,FALSE) -> 3146.17545 | L136: =VLOOKUP(C136,'Anexo_GL '!$B$9:$N$1882,7,FALSE) -> 2.30094574 | N136: =VLOOKUP(C136,'Anexo_GL '!$B$9:$N$1882,8,FALSE) -> Cumple | P136: =VLOOKUP(C136,'Anexo_GL '!$B$9:$N$1882,10,FALSE) -> 3138.66965 | Q136: =VLOOKUP(C136,'Anexo_GL '!$B$9:$N$1882,11,FALSE) -> 1174.59671 | R136: =VLOOKUP(C136,'Anexo_GL '!$B$9:$N$1882,12,FALSE) -> 1964.07294 | S136: =VLOOKUP(C136,'Anexo_GL '!$B$9:$N$1882,13,FALSE) -> Cumple
A137: 020501 : MP DE BOLOGNESI - CHIQUIAN | B137: 110 | C137: 020501 | D137: ANCASH | E137: MP DE BOLOGNESI - CHIQUIAN | F137: =VLOOKUP(C137,'Anexo_GL '!$B$9:$N$1882,4,FALSE) -> 1399.12392 | H137: =VLOOKUP(C137,'Anexo_GL '!$B$9:$N$1882,5,FALSE) -> 4267.063692 | I137: =VLOOKUP(C137,'Anexo_GL '!$B$9:$N$1882,6,FALSE) -> 1885.82364 | L137: =VLOOKUP(C137,'Anexo_GL '!$B$9:$N$1882,7,FALSE) -> 32.78891577 | N137: =VLOOKUP(C137,'Anexo_GL '!$B$9:$N$1882,8,FALSE) -> Cumple | P137: =VLOOKUP(C137,'Anexo_GL '!$B$9:$N$1882,10,FALSE) -> 4011.60915 | Q137: =VLOOKUP(C137,'Anexo_GL '!$B$9:$N$1882,11,FALSE) -> 1896.45693 | R137: =VLOOKUP(C137,'Anexo_GL '!$B$9:$N$1882,12,FALSE) -> 2115.15222 | S137: =VLOOKUP(C137,'Anexo_GL '!$B$9:$N$1882,13,FALSE) -> Cumple
A138: 020502 : MD DE ABELARDO PARDO LAZAMETA | B138: 111 | C138: 020502 | D138: ANCASH | E138: MD DE ABELARDO PARDO LAZAMETA | F138: =VLOOKUP(C138,'Anexo_GL '!$B$9:$N$1882,4,FALSE) -> 146.70373 | H138: =VLOOKUP(C138,'Anexo_GL '!$B$9:$N$1882,5,FALSE) -> 1482.97245 | I138: =VLOOKUP(C138,'Anexo_GL '!$B$9:$N$1882,6,FALSE) -> 1531.50225 | L138: =VLOOKUP(C138,'Anexo_GL '!$B$9:$N$1882,7,FALSE) -> 9.579073749 | N138: =VLOOKUP(C138,'Anexo_GL '!$B$9:$N$1882,8,FALSE) -> Cumple | P138: =VLOOKUP(C138,'Anexo_GL '!$B$9:$N$1882,10,FALSE) -> 1830.25268 | Q138: =VLOOKUP(C138,'Anexo_GL '!$B$9:$N$1882,11,FALSE) -> 321.11655 | R138: =VLOOKUP(C138,'Anexo_GL '!$B$9:$N$1882,12,FALSE) -> 1509.13613 | S138: =VLOOKUP(C138,'Anexo_GL '!$B$9:$N$1882,13,FALSE) -> Cumple
A139: 020503 : MD DE ANTONIO RAYMONDI | B139: 112 | C139: 020503 | D139: ANCASH | E139: MD DE ANTONIO RAYMONDI | F139: =VLOOKUP(C139,'Anexo_GL '!$B$9:$N$1882,4,FALSE) -> 938.57111 | H139: =VLOOKUP(C139,'Anexo_GL '!$B$9:$N$1882,5,FALSE) -> 1210.24784 | I139: =VLOOKUP(C139,'Anexo_GL '!$B$9:$N$1882,6,FALSE) -> 1021.77972 | L139: =VLOOKUP(C139,'Anexo_GL '!$B$9:$N$1882,7,FALSE) -> 77.55197564 | N139: =VLOOKUP(C139,'Anexo_GL '!$B$9:$N$1882,8,FALSE) -> Cumple | P139: =VLOOKUP(C139,'Anexo_GL '!$B$9:$N$1882,10,FALSE) -> 1372.49721 | Q139: =VLOOKUP(C139,'Anexo_GL '!$B$9:$N$1882,11,FALSE) -> 487.65694 | R139: =VLOOKUP(C139,'Anexo_GL '!$B$9:$N$1882,12,FALSE) -> 884.84027 | S139: =VLOOKUP(C139,'Anexo_GL '!$B$9:$N$1882,13,FALSE) -> Cumple
A140: 020504 : MD DE AQUIA | B140: 113 | C140: 020504 | D140: ANCASH | E140: MD DE AQUIA | F140: =VLOOKUP(C140,'Anexo_GL '!$B$9:$N$1882,4,FALSE) -> 345.60867 | H140: =VLOOKUP(C140,'Anexo_GL '!$B$9:$N$1882,5,FALSE) -> 2430.755713 | I140: =VLOOKUP(C140,'Anexo_GL '!$B$9:$N$1882,6,FALSE) -> 2521.55822 | L140: =VLOOKUP(C140,'Anexo_GL '!$B$9:$N$1882,7,FALSE) -> 13.70615468 | N140: =VLOOKUP(C140,'Anexo_GL '!$B$9:$N$1882,8,FALSE) -> Cumple | P140: =VLOOKUP(C140,'Anexo_GL '!$B$9:$N$1882,10,FALSE) -> 3097.17121 | Q140: =VLOOKUP(C140,'Anexo_GL '!$B$9:$N$1882,11,FALSE) -> 405.90629 | R140: =VLOOKUP(C140,'Anexo_GL '!$B$9:$N$1882,12,FALSE) -> 2691.26492 | S140: =VLOOKUP(C140,'Anexo_GL '!$B$9:$N$1882,13,FALSE) -> Cumple
A141: 020505 : MD DE CAJACAY | B141: 114 | C141: 020505 | D141: ANCASH | E141: MD DE CAJACAY | F141: =VLOOKUP(C141,'Anexo_GL '!$B$9:$N$1882,4,FALSE) -> 38.13696 | H141: =VLOOKUP(C141,'Anexo_GL '!$B$9:$N$1882,5,FALSE) -> 1470.396355 | I141: =VLOOKUP(C141,'Anexo_GL '!$B$9:$N$1882,6,FALSE) -> 1566.1308 | L141: =VLOOKUP(C141,'Anexo_GL '!$B$9:$N$1882,7,FALSE) -> 2.435106953 | N141: =VLOOKUP(C141,'Anexo_GL '!$B$9:$N$1882,8,FALSE) -> Cumple | P141: =VLOOKUP(C141,'Anexo_GL '!$B$9:$N$1882,10,FALSE) -> 1909.65266 | Q141: =VLOOKUP(C141,'Anexo_GL '!$B$9:$N$1882,11,FALSE) -> 470.75851 | R141: =VLOOKUP(C141,'Anexo_GL '!$B$9:$N$1882,12,FALSE) -> 1438.89415 | S141: =VLOOKUP(C141,'Anexo_GL '!$B$9:$N$1882,13,FALSE) -> Cumple
A142: 020506 : MD DE CANIS | B142: 115 | C142: 020506 | D142: ANCASH | E142: MD DE CANIS | F142: =VLOOKUP(C142,'Anexo_GL '!$B$9:$N$1882,4,FALSE) -> 133.48323 | H142: =VLOOKUP(C142,'Anexo_GL '!$B$9:$N$1882,5,FALSE) -> 1266.011667 | I142: =VLOOKUP(C142,'Anexo_GL '!$B$9:$N$1882,6,FALSE) -> 1574.48507 | L142: =VLOOKUP(C142,'Anexo_GL '!$B$9:$N$1882,7,FALSE) -> 8.477897475 | N142: =VLOOKUP(C142,'Anexo_GL '!$B$9:$N$1882,8,FALSE) -> Cumple | P142: =VLOOKUP(C142,'Anexo_GL '!$B$9:$N$1882,10,FALSE) -> 1877.07994 | Q142: =VLOOKUP(C142,'Anexo_GL '!$B$9:$N$1882,11,FALSE) -> 446.16852 | R142: =VLOOKUP(C142,'Anexo_GL '!$B$9:$N$1882,12,FALSE) -> 1430.91142 | S142: =VLOOKUP(C142,'Anexo_GL '!$B$9:$N$1882,13,FALSE) -> Cumple
A143: 020507 : MD DE COLQUIOC | B143: 116 | C143: 020507 | D143: ANCASH | E143: MD DE COLQUIOC | F143: =VLOOKUP(C143,'Anexo_GL '!$B$9:$N$1882,4,FALSE) -> 3141.10684 | H143: =VLOOKUP(C143,'Anexo_GL '!$B$9:$N$1882,5,FALSE) -> 2502.777088 | I143: =VLOOKUP(C143,'Anexo_GL '!$B$9:$N$1882,6,FALSE) -> 3267.66657 | L143: =VLOOKUP(C143,'Anexo_GL '!$B$9:$N$1882,7,FALSE) -> 96.12690808 | N143: =VLOOKUP(C143,'Anexo_GL '!$B$9:$N$1882,8,FALSE) -> Cumple | P143: =VLOOKUP(C143,'Anexo_GL '!$B$9:$N$1882,10,FALSE) -> 3984.8661 | Q143: =VLOOKUP(C143,'Anexo_GL '!$B$9:$N$1882,11,FALSE) -> 814.76437 | R143: =VLOOKUP(C143,'Anexo_GL '!$B$9:$N$1882,12,FALSE) -> 3170.10173 | S143: =VLOOKUP(C143,'Anexo_GL '!$B$9:$N$1882,13,FALSE) -> Cumple
A144: 020508 : MD DE HUALLANCA | B144: 117 | C144: 020508 | D144: ANCASH | E144: MD DE HUALLANCA | F144: =VLOOKUP(C144,'Anexo_GL '!$B$9:$N$1882,4,FALSE) -> 604.67758 | H144: =VLOOKUP(C144,'Anexo_GL '!$B$9:$N$1882,5,FALSE) -> 7272.754305 | I144: =VLOOKUP(C144,'Anexo_GL '!$B$9:$N$1882,6,FALSE) -> 8480.80374 | L144: =VLOOKUP(C144,'Anexo_GL '!$B$9:$N$1882,7,FALSE) -> 7.129956058 | N144: =VLOOKUP(C144,'Anexo_GL '!$B$9:$N$1882,8,FALSE) -> Cumple | P144: =VLOOKUP(C144,'Anexo_GL '!$B$9:$N$1882,10,FALSE) -> 11781.2568 | Q144: =VLOOKUP(C144,'Anexo_GL '!$B$9:$N$1882,11,FALSE) -> 4284.48033 | R144: =VLOOKUP(C144,'Anexo_GL '!$B$9:$N$1882,12,FALSE) -> 7496.77647 | S144: =VLOOKUP(C144,'Anexo_GL '!$B$9:$N$1882,13,FALSE) -> Cumple
A145: 020509 : MD DE HUASTA | B145: 118 | C145: 020509 | D145: ANCASH | E145: MD DE HUASTA | F145: =VLOOKUP(C145,'Anexo_GL '!$B$9:$N$1882,4,FALSE) -> 232.59793 | H145: =VLOOKUP(C145,'Anexo_GL '!$B$9:$N$1882,5,FALSE) -> 2711.716705 | I145: =VLOOKUP(C145,'Anexo_GL '!$B$9:$N$1882,6,FALSE) -> 3147.12607 | L145: =VLOOKUP(C145,'Anexo_GL '!$B$9:$N$1882,7,FALSE) -> 7.390804335 | N145: =VLOOKUP(C145,'Anexo_GL '!$B$9:$N$1882,8,FALSE) -> Cumple | P145: =VLOOKUP(C145,'Anexo_GL '!$B$9:$N$1882,10,FALSE) -> 3739.18542 | Q145: =VLOOKUP(C145,'Anexo_GL '!$B$9:$N$1882,11,FALSE) -> 461.77815 | R145: =VLOOKUP(C145,'Anexo_GL '!$B$9:$N$1882,12,FALSE) -> 3277.40727 | S145: =VLOOKUP(C145,'Anexo_GL '!$B$9:$N$1882,13,FALSE) -> Cumple
A146: 020510 : MD DE HUAYLLACAYAN | B146: 119 | C146: 020510 | D146: ANCASH | E146: MD DE HUAYLLACAYAN | F146: =VLOOKUP(C146,'Anexo_GL '!$B$9:$N$1882,4,FALSE) -> 1201.11429 | H146: =VLOOKUP(C146,'Anexo_GL '!$B$9:$N$1882,5,FALSE) -> 1204.375082 | I146: =VLOOKUP(C146,'Anexo_GL '!$B$9:$N$1882,6,FALSE) -> 1260.29079 | L146: =VLOOKUP(C146,'Anexo_GL '!$B$9:$N$1882,7,FALSE) -> 95.30453603 | N146: =VLOOKUP(C146,'Anexo_GL '!$B$9:$N$1882,8,FALSE) -> Cumple | P146: =VLOOKUP(C146,'Anexo_GL '!$B$9:$N$1882,10,FALSE) -> 1573.94918 | Q146: =VLOOKUP(C146,'Anexo_GL '!$B$9:$N$1882,11,FALSE) -> 369.39509 | R146: =VLOOKUP(C146,'Anexo_GL '!$B$9:$N$1882,12,FALSE) -> 1204.55409 | S146: =VLOOKUP(C146,'Anexo_GL '!$B$9:$N$1882,13,FALSE) -> Cumple
A147: 020511 : MD DE LA PRIMAVERA | B147: 120 | C147: 020511 | D147: ANCASH | E147: MD DE LA PRIMAVERA | F147: =VLOOKUP(C147,'Anexo_GL '!$B$9:$N$1882,4,FALSE) -> 97.36336 | H147: =VLOOKUP(C147,'Anexo_GL '!$B$9:$N$1882,5,FALSE) -> 948.4807825 | I147: =VLOOKUP(C147,'Anexo_GL '!$B$9:$N$1882,6,FALSE) -> 842.10294 | L147: =VLOOKUP(C147,'Anexo_GL '!$B$9:$N$1882,7,FALSE) -> 10.26519059 | N147: =VLOOKUP(C147,'Anexo_GL '!$B$9:$N$1882,8,FALSE) -> Cumple | P147: =VLOOKUP(C147,'Anexo_GL '!$B$9:$N$1882,10,FALSE) -> 1195.11193 | Q147: =VLOOKUP(C147,'Anexo_GL '!$B$9:$N$1882,11,FALSE) -> 311.6482 | R147: =VLOOKUP(C147,'Anexo_GL '!$B$9:$N$1882,12,FALSE) -> 883.46373 | S147: =VLOOKUP(C147,'Anexo_GL '!$B$9:$N$1882,13,FALSE) -> Cumple
A148: 020512 : MD DE MANGAS | B148: 121 | C148: 020512 | D148: ANCASH | E148: MD DE MANGAS | F148: =VLOOKUP(C148,'Anexo_GL '!$B$9:$N$1882,4,FALSE) -> 73.55328 | H148: =VLOOKUP(C148,'Anexo_GL '!$B$9:$N$1882,5,FALSE) -> 828.2307175 | I148: =VLOOKUP(C148,'Anexo_GL '!$B$9:$N$1882,6,FALSE) -> 690.20223 | L148: =VLOOKUP(C148,'Anexo_GL '!$B$9:$N$1882,7,FALSE) -> 8.8807718 | N148: =VLOOKUP(C148,'Anexo_GL '!$B$9:$N$1882,8,FALSE) -> Cumple | P148: =VLOOKUP(C148,'Anexo_GL '!$B$9:$N$1882,10,FALSE) -> 949.98555 | Q148: =VLOOKUP(C148,'Anexo_GL '!$B$9:$N$1882,11,FALSE) -> 295.6904 | R148: =VLOOKUP(C148,'Anexo_GL '!$B$9:$N$1882,12,FALSE) -> 654.29515 | S148: =VLOOKUP(C148,'Anexo_GL '!$B$9:$N$1882,13,FALSE) -> Cumple
A149: 020513 : MD DE PACLLON | B149: 122 | C149: 020513 | D149: ANCASH | E149: MD DE PACLLON | F149: =VLOOKUP(C149,'Anexo_GL '!$B$9:$N$1882,4,FALSE) -> 3197.7568 | H149: =VLOOKUP(C149,'Anexo_GL '!$B$9:$N$1882,5,FALSE) -> 1310.700215 | I149: =VLOOKUP(C149,'Anexo_GL '!$B$9:$N$1882,6,FALSE) -> 1977.2477 | L149: =VLOOKUP(C149,'Anexo_GL '!$B$9:$N$1882,7,FALSE) -> 161.7276783 | N149: =VLOOKUP(C149,'Anexo_GL '!$B$9:$N$1882,8,FALSE) -> No Cumple | P149: =VLOOKUP(C149,'Anexo_GL '!$B$9:$N$1882,10,FALSE) -> 884.34118 | Q149: =VLOOKUP(C149,'Anexo_GL '!$B$9:$N$1882,11,FALSE) -> 401.74153 | R149: =VLOOKUP(C149,'Anexo_GL '!$B$9:$N$1882,12,FALSE) -> 482.59965 | S149: =VLOOKUP(C149,'Anexo_GL '!$B$9:$N$1882,13,FALSE) -> Cumple
A150: 020514 : MD DE SAN MIGUEL DE CORPANQUI | B150: 123 | C150: 020514 | D150: ANCASH | E150: MD DE SAN MIGUEL DE CORPANQUI | F150: =VLOOKUP(C150,'Anexo_GL '!$B$9:$N$1882,4,FALSE) -> 58.68889 | H150: =VLOOKUP(C150,'Anexo_GL '!$B$9:$N$1882,5,FALSE) -> 1053.022778 | I150: =VLOOKUP(C150,'Anexo_GL '!$B$9:$N$1882,6,FALSE) -> 1217.60979 | L150: =VLOOKUP(C150,'Anexo_GL '!$B$9:$N$1882,7,FALSE) -> 4.820008059 | N150: =VLOOKUP(C150,'Anexo_GL '!$B$9:$N$1882,8,FALSE) -> Cumple | P150: =VLOOKUP(C150,'Anexo_GL '!$B$9:$N$1882,10,FALSE) -> 1522.97352 | Q150: =VLOOKUP(C150,'Anexo_GL '!$B$9:$N$1882,11,FALSE) -> 328.42167 | R150: =VLOOKUP(C150,'Anexo_GL '!$B$9:$N$1882,12,FALSE) -> 1194.55185 | S150: =VLOOKUP(C150,'Anexo_GL '!$B$9:$N$1882,13,FALSE) -> Cumple
A151: 020515 : MD DE TICLLOS | B151: 124 | C151: 020515 | D151: ANCASH | E151: MD DE TICLLOS | F151: =VLOOKUP(C151,'Anexo_GL '!$B$9:$N$1882,4,FALSE) -> 15.4371 | H151: =VLOOKUP(C151,'Anexo_GL '!$B$9:$N$1882,5,FALSE) -> 1151.010132 | I151: =VLOOKUP(C151,'Anexo_GL '!$B$9:$N$1882,6,FALSE) -> 1317.84369 | L151: =VLOOKUP(C151,'Anexo_GL '!$B$9:$N$1882,7,FALSE) -> 1.171390819 | N151: =VLOOKUP(C151,'Anexo_GL '!$B$9:$N$1882,8,FALSE) -> Cumple | P151: =VLOOKUP(C151,'Anexo_GL '!$B$9:$N$1882,10,FALSE) -> 1627.67196 | Q151: =VLOOKUP(C151,'Anexo_GL '!$B$9:$N$1882,11,FALSE) -> 330.25729 | R151: =VLOOKUP(C151,'Anexo_GL '!$B$9:$N$1882,12,FALSE) -> 1297.41467 | S151: =VLOOKUP(C151,'Anexo_GL '!$B$9:$N$1882,13,FALSE) -> Cumple
A152: 020601 : MP DE CARHUAZ | B152: 125 | C152: 020601 | D152: ANCASH | E152: MP DE CARHUAZ | F152: =VLOOKUP(C152,'Anexo_GL '!$B$9:$N$1882,4,FALSE) -> 1059.76592 | H152: =VLOOKUP(C152,'Anexo_GL '!$B$9:$N$1882,5,FALSE) -> 11679.58044 | I152: =VLOOKUP(C152,'Anexo_GL '!$B$9:$N$1882,6,FALSE) -> 10331.1638 | L152: =VLOOKUP(C152,'Anexo_GL '!$B$9:$N$1882,7,FALSE) -> 9.073664291 | N152: =VLOOKUP(C152,'Anexo_GL '!$B$9:$N$1882,8,FALSE) -> Cumple | P152: =VLOOKUP(C152,'Anexo_GL '!$B$9:$N$1882,10,FALSE) -> 13500.21152 | Q152: =VLOOKUP(C152,'Anexo_GL '!$B$9:$N$1882,11,FALSE) -> 4943.22585 | R152: =VLOOKUP(C152,'Anexo_GL '!$B$9:$N$1882,12,FALSE) -> 8556.98567 | S152: =VLOOKUP(C152,'Anexo_GL '!$B$9:$N$1882,13,FALSE) -> Cumple
A153: 020602 : MD DE ACOPAMPA | B153: 126 | C153: 020602 | D153: ANCASH | E153: MD DE ACOPAMPA | F153: =VLOOKUP(C153,'Anexo_GL '!$B$9:$N$1882,4,FALSE) -> 145.10928 | H153: =VLOOKUP(C153,'Anexo_GL '!$B$9:$N$1882,5,FALSE) -> 1087.320688 | I153: =VLOOKUP(C153,'Anexo_GL '!$B$9:$N$1882,6,FALSE) -> 1610.77634 | L153: =VLOOKUP(C153,'Anexo_GL '!$B$9:$N$1882,7,FALSE) -> 9.008654796 | N153: =VLOOKUP(C153,'Anexo_GL '!$B$9:$N$1882,8,FALSE) -> Cumple | P153: =VLOOKUP(C153,'Anexo_GL '!$B$9:$N$1882,10,FALSE) -> 450.34356 | Q153: =VLOOKUP(C153,'Anexo_GL '!$B$9:$N$1882,11,FALSE) -> 467.85535 | R153: =VLOOKUP(C153,'Anexo_GL '!$B$9:$N$1882,12,FALSE) -> -17.51179 | S153: =VLOOKUP(C153,'Anexo_GL '!$B$9:$N$1882,13,FALSE) -> No Cumple
A154: 020603 : MD DE AMASHCA | B154: 127 | C154: 020603 | D154: ANCASH | E154: MD DE AMASHCA | F154: =VLOOKUP(C154,'Anexo_GL '!$B$9:$N$1882,4,FALSE) -> 89.32135 | H154: =VLOOKUP(C154,'Anexo_GL '!$B$9:$N$1882,5,FALSE) -> 1269.171288 | I154: =VLOOKUP(C154,'Anexo_GL '!$B$9:$N$1882,6,FALSE) -> 1442.91971 | L154: =VLOOKUP(C154,'Anexo_GL '!$B$9:$N$1882,7,FALSE) -> 6.190320181 | N154: =VLOOKUP(C154,'Anexo_GL '!$B$9:$N$1882,8,FALSE) -> Cumple | P154: =VLOOKUP(C154,'Anexo_GL '!$B$9:$N$1882,10,FALSE) -> 1556.30086 | Q154: =VLOOKUP(C154,'Anexo_GL '!$B$9:$N$1882,11,FALSE) -> 417.04097 | R154: =VLOOKUP(C154,'Anexo_GL '!$B$9:$N$1882,12,FALSE) -> 1139.25989 | S154: =VLOOKUP(C154,'Anexo_GL '!$B$9:$N$1882,13,FALSE) -> Cumple
A155: 020604 : MD DE ANTA | B155: 128 | C155: 020604 | D155: ANCASH | E155: MD DE ANTA | F155: =VLOOKUP(C155,'Anexo_GL '!$B$9:$N$1882,4,FALSE) -> 51.14841 | H155: =VLOOKUP(C155,'Anexo_GL '!$B$9:$N$1882,5,FALSE) -> 1672.075475 | I155: =VLOOKUP(C155,'Anexo_GL '!$B$9:$N$1882,6,FALSE) -> 1940.82779 | L155: =VLOOKUP(C155,'Anexo_GL '!$B$9:$N$1882,7,FALSE) -> 2.635391469 | N155: =VLOOKUP(C155,'Anexo_GL '!$B$9:$N$1882,8,FALSE) -> Cumple | P155: =VLOOKUP(C155,'Anexo_GL '!$B$9:$N$1882,10,FALSE) -> 2410.58009 | Q155: =VLOOKUP(C155,'Anexo_GL '!$B$9:$N$1882,11,FALSE) -> 656.48571 | R155: =VLOOKUP(C155,'Anexo_GL '!$B$9:$N$1882,12,FALSE) -> 1754.09438 | S155: =VLOOKUP(C155,'Anexo_GL '!$B$9:$N$1882,13,FALSE) -> Cumple
A156: 020605 : MD DE ATAQUERO | B156: 129 | C156: 020605 | D156: ANCASH | E156: MD DE ATAQUERO | F156: =VLOOKUP(C156,'Anexo_GL '!$B$9:$N$1882,4,FALSE) -> 116.38896 | H156: =VLOOKUP(C156,'Anexo_GL '!$B$9:$N$1882,5,FALSE) -> 1093.643497 | I156: =VLOOKUP(C156,'Anexo_GL '!$B$9:$N$1882,6,FALSE) -> 1298.23339 | L156: =VLOOKUP(C156,'Anexo_GL '!$B$9:$N$1882,7,FALSE) -> 8.965179982 | N156: =VLOOKUP(C156,'Anexo_GL '!$B$9:$N$1882,8,FALSE) -> Cumple | P156: =VLOOKUP(C156,'Anexo_GL '!$B$9:$N$1882,10,FALSE) -> 1421.03442 | Q156: =VLOOKUP(C156,'Anexo_GL '!$B$9:$N$1882,11,FALSE) -> 420.42911 | R156: =VLOOKUP(C156,'Anexo_GL '!$B$9:$N$1882,12,FALSE) -> 1000.60531 | S156: =VLOOKUP(C156,'Anexo_GL '!$B$9:$N$1882,13,FALSE) -> Cumple
A157: 020606 : MD DE MARCARA | B157: 130 | C157: 020606 | D157: ANCASH | E157: MD DE MARCARA | F157: =VLOOKUP(C157,'Anexo_GL '!$B$9:$N$1882,4,FALSE) -> 672.18533 | H157: =VLOOKUP(C157,'Anexo_GL '!$B$9:$N$1882,5,FALSE) -> 5597.246045 | I157: =VLOOKUP(C157,'Anexo_GL '!$B$9:$N$1882,6,FALSE) -> 7540.95889 | L157: =VLOOKUP(C157,'Anexo_GL '!$B$9:$N$1882,7,FALSE) -> 8.913791201 | N157: =VLOOKUP(C157,'Anexo_GL '!$B$9:$N$1882,8,FALSE) -> Cumple | P157: =VLOOKUP(C157,'Anexo_GL '!$B$9:$N$1882,10,FALSE) -> 7787.46735 | Q157: =VLOOKUP(C157,'Anexo_GL '!$B$9:$N$1882,11,FALSE) -> 2090.21207 | R157: =VLOOKUP(C157,'Anexo_GL '!$B$9:$N$1882,12,FALSE) -> 5697.25528 | S157: =VLOOKUP(C157,'Anexo_GL '!$B$9:$N$1882,13,FALSE) -> Cumple
A158: 020607 : MD DE PARIAHUANCA | B158: 131 | C158: 020607 | D158: ANCASH | E158: MD DE PARIAHUANCA | F158: =VLOOKUP(C158,'Anexo_GL '!$B$9:$N$1882,4,FALSE) -> 37.23831 | H158: =VLOOKUP(C158,'Anexo_GL '!$B$9:$N$1882,5,FALSE) -> 1185.170202 | I158: =VLOOKUP(C158,'Anexo_GL '!$B$9:$N$1882,6,FALSE) -> 1171.64344 | L158: =VLOOKUP(C158,'Anexo_GL '!$B$9:$N$1882,7,FALSE) -> 3.142022127 | N158: =VLOOKUP(C158,'Anexo_GL '!$B$9:$N$1882,8,FALSE) -> Cumple | P158: =VLOOKUP(C158,'Anexo_GL '!$B$9:$N$1882,10,FALSE) -> 490.94802 | Q158: =VLOOKUP(C158,'Anexo_GL '!$B$9:$N$1882,11,FALSE) -> 474.73808 | R158: =VLOOKUP(C158,'Anexo_GL '!$B$9:$N$1882,12,FALSE) -> 16.20994 | S158: =VLOOKUP(C158,'Anexo_GL '!$B$9:$N$1882,13,FALSE) -> Cumple
A159: 020608 : MD DE SAN MIGUEL DE ACO | B159: 132 | C159: 020608 | D159: ANCASH | E159: MD DE SAN MIGUEL DE ACO | F159: =VLOOKUP(C159,'Anexo_GL '!$B$9:$N$1882,4,FALSE) -> 72.16549 | H159: =VLOOKUP(C159,'Anexo_GL '!$B$9:$N$1882,5,FALSE) -> 1382.222387 | I159: =VLOOKUP(C159,'Anexo_GL '!$B$9:$N$1882,6,FALSE) -> 1563.74048 | L159: =VLOOKUP(C159,'Anexo_GL '!$B$9:$N$1882,7,FALSE) -> 4.614927536 | N159: =VLOOKUP(C159,'Anexo_GL '!$B$9:$N$1882,8,FALSE) -> Cumple | P159: =VLOOKUP(C159,'Anexo_GL '!$B$9:$N$1882,10,FALSE) -> 1619.00332 | Q159: =VLOOKUP(C159,'Anexo_GL '!$B$9:$N$1882,11,FALSE) -> 429.87289 | R159: =VLOOKUP(C159,'Anexo_GL '!$B$9:$N$1882,12,FALSE) -> 1189.13043 | S159: =VLOOKUP(C159,'Anexo_GL '!$B$9:$N$1882,13,FALSE) -> Cumple
A160: 020609 : MD DE SHILLA | B160: 133 | C160: 020609 | D160: ANCASH | E160: MD DE SHILLA | F160: =VLOOKUP(C160,'Anexo_GL '!$B$9:$N$1882,4,FALSE) -> 82.60692 | H160: =VLOOKUP(C160,'Anexo_GL '!$B$9:$N$1882,5,FALSE) -> 2554.613553 | I160: =VLOOKUP(C160,'Anexo_GL '!$B$9:$N$1882,6,FALSE) -> 2362.12598 | L160: =VLOOKUP(C160,'Anexo_GL '!$B$9:$N$1882,7,FALSE) -> 3.233636646 | N160: =VLOOKUP(C160,'Anexo_GL '!$B$9:$N$1882,8,FALSE) -> Cumple | P160: =VLOOKUP(C160,'Anexo_GL '!$B$9:$N$1882,10,FALSE) -> 2482.97575 | Q160: =VLOOKUP(C160,'Anexo_GL '!$B$9:$N$1882,11,FALSE) -> 604.73892 | R160: =VLOOKUP(C160,'Anexo_GL '!$B$9:$N$1882,12,FALSE) -> 1878.23683 | S160: =VLOOKUP(C160,'Anexo_GL '!$B$9:$N$1882,13,FALSE) -> Cumple
A161: 020610 : MD DE TINCO | B161: 134 | C161: 020610 | D161: ANCASH | E161: MD DE TINCO | F161: =VLOOKUP(C161,'Anexo_GL '!$B$9:$N$1882,4,FALSE) -> 2415.7813 | H161: =VLOOKUP(C161,'Anexo_GL '!$B$9:$N$1882,5,FALSE) -> 1924.996985 | I161: =VLOOKUP(C161,'Anexo_GL '!$B$9:$N$1882,6,FALSE) -> 1773.37805 | L161: =VLOOKUP(C161,'Anexo_GL '!$B$9:$N$1882,7,FALSE) -> 125.495329 | N161: =VLOOKUP(C161,'Anexo_GL '!$B$9:$N$1882,8,FALSE) -> No Cumple | P161: =VLOOKUP(C161,'Anexo_GL '!$B$9:$N$1882,10,FALSE) -> 566.31997 | Q161: =VLOOKUP(C161,'Anexo_GL '!$B$9:$N$1882,11,FALSE) -> 609.75611 | R161: =VLOOKUP(C161,'Anexo_GL '!$B$9:$N$1882,12,FALSE) -> -43.43614 | S161: =VLOOKUP(C161,'Anexo_GL '!$B$9:$N$1882,13,FALSE) -> No Cumple
A162: 020611 : MD DE YUNGAR | B162: 135 | C162: 020611 | D162: ANCASH | E162: MD DE YUNGAR | F162: =VLOOKUP(C162,'Anexo_GL '!$B$9:$N$1882,4,FALSE) -> 335.12762 | H162: =VLOOKUP(C162,'Anexo_GL '!$B$9:$N$1882,5,FALSE) -> 1851.59423 | I162: =VLOOKUP(C162,'Anexo_GL '!$B$9:$N$1882,6,FALSE) -> 2333.09138 | L162: =VLOOKUP(C162,'Anexo_GL '!$B$9:$N$1882,7,FALSE) -> 14.36410176 | N162: =VLOOKUP(C162,'Anexo_GL '!$B$9:$N$1882,8,FALSE) -> Cumple | P162: =VLOOKUP(C162,'Anexo_GL '!$B$9:$N$1882,10,FALSE) -> 2444.85518 | Q162: =VLOOKUP(C162,'Anexo_GL '!$B$9:$N$1882,11,FALSE) -> 848.31014 | R162: =VLOOKUP(C162,'Anexo_GL '!$B$9:$N$1882,12,FALSE) -> 1596.54504 | S162: =VLOOKUP(C162,'Anexo_GL '!$B$9:$N$1882,13,FALSE) -> Cumple
A163: 020701 : MP DE CARLOS FERMIN FITZCARRALD | B163: 136 | C163: 020701 | D163: ANCASH | E163: MP DE CARLOS FERMIN FITZCARRALD | F163: =VLOOKUP(C163,'Anexo_GL '!$B$9:$N$1882,4,FALSE) -> 21690.20715 | H163: =VLOOKUP(C163,'Anexo_GL '!$B$9:$N$1882,5,FALSE) -> 13197.20908 | I163: =VLOOKUP(C163,'Anexo_GL '!$B$9:$N$1882,6,FALSE) -> 13818.47123 | L163: =VLOOKUP(C163,'Anexo_GL '!$B$9:$N$1882,7,FALSE) -> 156.9653169 | N163: =VLOOKUP(C163,'Anexo_GL '!$B$9:$N$1882,8,FALSE) -> No Cumple | P163: =VLOOKUP(C163,'Anexo_GL '!$B$9:$N$1882,10,FALSE) -> 16791.60726 | Q163: =VLOOKUP(C163,'Anexo_GL '!$B$9:$N$1882,11,FALSE) -> 6034.57145 | R163: =VLOOKUP(C163,'Anexo_GL '!$B$9:$N$1882,12,FALSE) -> 10757.03581 | S163: =VLOOKUP(C163,'Anexo_GL '!$B$9:$N$1882,13,FALSE) -> Cumple
A164: 020702 : MD DE SAN NICOLAS | B164: 137 | C164: 020702 | D164: ANCASH | E164: MD DE SAN NICOLAS | F164: =VLOOKUP(C164,'Anexo_GL '!$B$9:$N$1882,4,FALSE) -> 89.72969 | H164: =VLOOKUP(C164,'Anexo_GL '!$B$9:$N$1882,5,FALSE) -> 3475.482217 | I164: =VLOOKUP(C164,'Anexo_GL '!$B$9:$N$1882,6,FALSE) -> 4020.68893 | L164: =VLOOKUP(C164,'Anexo_GL '!$B$9:$N$1882,7,FALSE) -> 2.231699382 | N164: =VLOOKUP(C164,'Anexo_GL '!$B$9:$N$1882,8,FALSE) -> Cumple | P164: =VLOOKUP(C164,'Anexo_GL '!$B$9:$N$1882,10,FALSE) -> 4432.22075 | Q164: =VLOOKUP(C164,'Anexo_GL '!$B$9:$N$1882,11,FALSE) -> 1336.9641 | R164: =VLOOKUP(C164,'Anexo_GL '!$B$9:$N$1882,12,FALSE) -> 3095.25665 | S164: =VLOOKUP(C164,'Anexo_GL '!$B$9:$N$1882,13,FALSE) -> Cumple
A165: 020703 : MD DE YAUYA | B165: 138 | C165: 020703 | D165: ANCASH | E165: MD DE YAUYA | F165: =VLOOKUP(C165,'Anexo_GL '!$B$9:$N$1882,4,FALSE) -> 810.13551 | H165: =VLOOKUP(C165,'Anexo_GL '!$B$9:$N$1882,5,FALSE) -> 5033.763405 | I165: =VLOOKUP(C165,'Anexo_GL '!$B$9:$N$1882,6,FALSE) -> 5928.16487 | L165: =VLOOKUP(C165,'Anexo_GL '!$B$9:$N$1882,7,FALSE) -> 13.66587347 | N165: =VLOOKUP(C165,'Anexo_GL '!$B$9:$N$1882,8,FALSE) -> Cumple | P165: =VLOOKUP(C165,'Anexo_GL '!$B$9:$N$1882,10,FALSE) -> 6615.02785 | Q165: =VLOOKUP(C165,'Anexo_GL '!$B$9:$N$1882,11,FALSE) -> 2263.84119 | R165: =VLOOKUP(C165,'Anexo_GL '!$B$9:$N$1882,12,FALSE) -> 4351.18666 | S165: =VLOOKUP(C165,'Anexo_GL '!$B$9:$N$1882,13,FALSE) -> Cumple
A166: 020801 : MP DE CASMA | B166: 139 | C166: 020801 | D166: ANCASH | E166: MP DE CASMA | F166: =VLOOKUP(C166,'Anexo_GL '!$B$9:$N$1882,4,FALSE) -> 5130.89061 | H166: =VLOOKUP(C166,'Anexo_GL '!$B$9:$N$1882,5,FALSE) -> 18044.84502 | I166: =VLOOKUP(C166,'Anexo_GL '!$B$9:$N$1882,6,FALSE) -> 17529.22744 | L166: =VLOOKUP(C166,'Anexo_GL '!$B$9:$N$1882,7,FALSE) -> 28.43410737 | N166: =VLOOKUP(C166,'Anexo_GL '!$B$9:$N$1882,8,FALSE) -> Cumple | P166: =VLOOKUP(C166,'Anexo_GL '!$B$9:$N$1882,10,FALSE) -> 22719.97814 | Q166: =VLOOKUP(C166,'Anexo_GL '!$B$9:$N$1882,11,FALSE) -> 12970.74109 | R166: =VLOOKUP(C166,'Anexo_GL '!$B$9:$N$1882,12,FALSE) -> 9749.23705 | S166: =VLOOKUP(C166,'Anexo_GL '!$B$9:$N$1882,13,FALSE) -> Cumple
A167: 020802 : MD DE BUENA VISTA ALTA | B167: 140 | C167: 020802 | D167: ANCASH | E167: MD DE BUENA VISTA ALTA | F167: =VLOOKUP(C167,'Anexo_GL '!$B$9:$N$1882,4,FALSE) -> 2590.97392 | H167: =VLOOKUP(C167,'Anexo_GL '!$B$9:$N$1882,5,FALSE) -> 2229.804498 | I167: =VLOOKUP(C167,'Anexo_GL '!$B$9:$N$1882,6,FALSE) -> 3690.82616 | L167: =VLOOKUP(C167,'Anexo_GL '!$B$9:$N$1882,7,FALSE) -> 70.20037812 | N167: =VLOOKUP(C167,'Anexo_GL '!$B$9:$N$1882,8,FALSE) -> Cumple | P167: =VLOOKUP(C167,'Anexo_GL '!$B$9:$N$1882,10,FALSE) -> 1092.14095 | Q167: =VLOOKUP(C167,'Anexo_GL '!$B$9:$N$1882,11,FALSE) -> 1402.87472 | R167: =VLOOKUP(C167,'Anexo_GL '!$B$9:$N$1882,12,FALSE) -> -310.73377 | S167: =VLOOKUP(C167,'Anexo_GL '!$B$9:$N$1882,13,FALSE) -> No Cumple
A168: 020803 : MD DE COMANDANTE NOEL | B168: 141 | C168: 020803 | D168: ANCASH | E168: MD DE COMANDANTE NOEL | F168: =VLOOKUP(C168,'Anexo_GL '!$B$9:$N$1882,4,FALSE) -> 340.45511 | H168: =VLOOKUP(C168,'Anexo_GL '!$B$9:$N$1882,5,FALSE) -> 2065.445455 | I168: =VLOOKUP(C168,'Anexo_GL '!$B$9:$N$1882,6,FALSE) -> 2255.0766 | L168: =VLOOKUP(C168,'Anexo_GL '!$B$9:$N$1882,7,FALSE) -> 15.09727474 | N168: =VLOOKUP(C168,'Anexo_GL '!$B$9:$N$1882,8,FALSE) -> Cumple | P168: =VLOOKUP(C168,'Anexo_GL '!$B$9:$N$1882,10,FALSE) -> 2664.07415 | Q168: =VLOOKUP(C168,'Anexo_GL '!$B$9:$N$1882,11,FALSE) -> 1241.05189 | R168: =VLOOKUP(C168,'Anexo_GL '!$B$9:$N$1882,12,FALSE) -> 1423.02226 | S168: =VLOOKUP(C168,'Anexo_GL '!$B$9:$N$1882,13,FALSE) -> Cumple
A169: 020804 : MD DE YAUTAN | B169: 142 | C169: 020804 | D169: ANCASH | E169: MD DE YAUTAN | F169: =VLOOKUP(C169,'Anexo_GL '!$B$9:$N$1882,4,FALSE) -> 531.36551 | H169: =VLOOKUP(C169,'Anexo_GL '!$B$9:$N$1882,5,FALSE) -> 4997.399275 | I169: =VLOOKUP(C169,'Anexo_GL '!$B$9:$N$1882,6,FALSE) -> 5118.61422 | L169: =VLOOKUP(C169,'Anexo_GL '!$B$9:$N$1882,7,FALSE) -> 10.38104235 | N169: =VLOOKUP(C169,'Anexo_GL '!$B$9:$N$1882,8,FALSE) -> Cumple | P169: =VLOOKUP(C169,'Anexo_GL '!$B$9:$N$1882,10,FALSE) -> 8930.71417 | Q169: =VLOOKUP(C169,'Anexo_GL '!$B$9:$N$1882,11,FALSE) -> 1839.68556 | R169: =VLOOKUP(C169,'Anexo_GL '!$B$9:$N$1882,12,FALSE) -> 7091.02861 | S169: =VLOOKUP(C169,'Anexo_GL '!$B$9:$N$1882,13,FALSE) -> Cumple
A170: 020901 : MP DE CORONGO | B170: 143 | C170: 020901 | D170: ANCASH | E170: MP DE CORONGO | F170: =VLOOKUP(C170,'Anexo_GL '!$B$9:$N$1882,4,FALSE) -> 275.28879 | H170: =VLOOKUP(C170,'Anexo_GL '!$B$9:$N$1882,5,FALSE) -> 2361.99402 | I170: =VLOOKUP(C170,'Anexo_GL '!$B$9:$N$1882,6,FALSE) -> 879.91157 | L170: =VLOOKUP(C170,'Anexo_GL '!$B$9:$N$1882,7,FALSE) -> 11.65493171 | N170: =VLOOKUP(C170,'Anexo_GL '!$B$9:$N$1882,8,FALSE) -> Cumple | P170: =VLOOKUP(C170,'Anexo_GL '!$B$9:$N$1882,10,FALSE) -> 1620.1701 | Q170: =VLOOKUP(C170,'Anexo_GL '!$B$9:$N$1882,11,FALSE) -> 905.50597 | R170: =VLOOKUP(C170,'Anexo_GL '!$B$9:$N$1882,12,FALSE) -> 714.66413 | S170: =VLOOKUP(C170,'Anexo_GL '!$B$9:$N$1882,13,FALSE) -> Cumple
A171: 020902 : MD DE ACO | B171: 144 | C171: 020902 | D171: ANCASH | E171: MD DE ACO | F171: =VLOOKUP(C171,'Anexo_GL '!$B$9:$N$1882,4,FALSE) -> 247.02137 | H171: =VLOOKUP(C171,'Anexo_GL '!$B$9:$N$1882,5,FALSE) -> 720.9554825 | I171: =VLOOKUP(C171,'Anexo_GL '!$B$9:$N$1882,6,FALSE) -> 489.86425 | L171: =VLOOKUP(C171,'Anexo_GL '!$B$9:$N$1882,7,FALSE) -> 34.26305452 | N171: =VLOOKUP(C171,'Anexo_GL '!$B$9:$N$1882,8,FALSE) -> Cumple | P171: =VLOOKUP(C171,'Anexo_GL '!$B$9:$N$1882,10,FALSE) -> 748.24487 | Q171: =VLOOKUP(C171,'Anexo_GL '!$B$9:$N$1882,11,FALSE) -> 318.11123 | R171: =VLOOKUP(C171,'Anexo_GL '!$B$9:$N$1882,12,FALSE) -> 430.13364 | S171: =VLOOKUP(C171,'Anexo_GL '!$B$9:$N$1882,13,FALSE) -> Cumple
A172: 020903 : MD DE BAMBAS | B172: 145 | C172: 020903 | D172: ANCASH | E172: MD DE BAMBAS | F172: =VLOOKUP(C172,'Anexo_GL '!$B$9:$N$1882,4,FALSE) -> 21.70584 | H172: =VLOOKUP(C172,'Anexo_GL '!$B$9:$N$1882,5,FALSE) -> 804.80369 | I172: =VLOOKUP(C172,'Anexo_GL '!$B$9:$N$1882,6,FALSE) -> 600.00081 | L172: =VLOOKUP(C172,'Anexo_GL '!$B$9:$N$1882,7,FALSE) -> 2.697035348 | N172: =VLOOKUP(C172,'Anexo_GL '!$B$9:$N$1882,8,FALSE) -> Cumple | P172: =VLOOKUP(C172,'Anexo_GL '!$B$9:$N$1882,10,FALSE) -> 921.16506 | Q172: =VLOOKUP(C172,'Anexo_GL '!$B$9:$N$1882,11,FALSE) -> 376.67755 | R172: =VLOOKUP(C172,'Anexo_GL '!$B$9:$N$1882,12,FALSE) -> 544.48751 | S172: =VLOOKUP(C172,'Anexo_GL '!$B$9:$N$1882,13,FALSE) -> Cumple
A173: 020904 : MD DE CUSCA | B173: 146 | C173: 020904 | D173: ANCASH | E173: MD DE CUSCA | F173: =VLOOKUP(C173,'Anexo_GL '!$B$9:$N$1882,4,FALSE) -> 40.67865 | H173: =VLOOKUP(C173,'Anexo_GL '!$B$9:$N$1882,5,FALSE) -> 2608.222615 | I173: =VLOOKUP(C173,'Anexo_GL '!$B$9:$N$1882,6,FALSE) -> 2519.96482 | L173: =VLOOKUP(C173,'Anexo_GL '!$B$9:$N$1882,7,FALSE) -> 1.559631059 | N173: =VLOOKUP(C173,'Anexo_GL '!$B$9:$N$1882,8,FALSE) -> Cumple | P173: =VLOOKUP(C173,'Anexo_GL '!$B$9:$N$1882,10,FALSE) -> 2663.90818 | Q173: =VLOOKUP(C173,'Anexo_GL '!$B$9:$N$1882,11,FALSE) -> 806.71805 | R173: =VLOOKUP(C173,'Anexo_GL '!$B$9:$N$1882,12,FALSE) -> 1857.19013 | S173: =VLOOKUP(C173,'Anexo_GL '!$B$9:$N$1882,13,FALSE) -> Cumple
A174: 020905 : MD DE LA PAMPA | B174: 147 | C174: 020905 | D174: ANCASH | E174: MD DE LA PAMPA | F174: =VLOOKUP(C174,'Anexo_GL '!$B$9:$N$1882,4,FALSE) -> 437.42091 | H174: =VLOOKUP(C174,'Anexo_GL '!$B$9:$N$1882,5,FALSE) -> 861.1107625 | I174: =VLOOKUP(C174,'Anexo_GL '!$B$9:$N$1882,6,FALSE) -> 558.11651 | L174: =VLOOKUP(C174,'Anexo_GL '!$B$9:$N$1882,7,FALSE) -> 50.79728753 | N174: =VLOOKUP(C174,'Anexo_GL '!$B$9:$N$1882,8,FALSE) -> Cumple | P174: =VLOOKUP(C174,'Anexo_GL '!$B$9:$N$1882,10,FALSE) -> 781.5659 | Q174: =VLOOKUP(C174,'Anexo_GL '!$B$9:$N$1882,11,FALSE) -> 301.65338 | R174: =VLOOKUP(C174,'Anexo_GL '!$B$9:$N$1882,12,FALSE) -> 479.91252 | S174: =VLOOKUP(C174,'Anexo_GL '!$B$9:$N$1882,13,FALSE) -> Cumple
A175: 020906 : MD DE YANAC | B175: 148 | C175: 020906 | D175: ANCASH | E175: MD DE YANAC | F175: =VLOOKUP(C175,'Anexo_GL '!$B$9:$N$1882,4,FALSE) -> 36.26263 | H175: =VLOOKUP(C175,'Anexo_GL '!$B$9:$N$1882,5,FALSE) -> 777.4079125 | I175: =VLOOKUP(C175,'Anexo_GL '!$B$9:$N$1882,6,FALSE) -> 479.38718 | L175: =VLOOKUP(C175,'Anexo_GL '!$B$9:$N$1882,7,FALSE) -> 4.664556331 | N175: =VLOOKUP(C175,'Anexo_GL '!$B$9:$N$1882,8,FALSE) -> Cumple | P175: =VLOOKUP(C175,'Anexo_GL '!$B$9:$N$1882,10,FALSE) -> 769.78915 | Q175: =VLOOKUP(C175,'Anexo_GL '!$B$9:$N$1882,11,FALSE) -> 503.8472 | R175: =VLOOKUP(C175,'Anexo_GL '!$B$9:$N$1882,12,FALSE) -> 265.94195 | S175: =VLOOKUP(C175,'Anexo_GL '!$B$9:$N$1882,13,FALSE) -> Cumple
A176: 020907 : MD DE YUPAN | B176: 149 | C176: 020907 | D176: ANCASH | E176: MD DE YUPAN | F176: =VLOOKUP(C176,'Anexo_GL '!$B$9:$N$1882,4,FALSE) -> 87.2692 | H176: =VLOOKUP(C176,'Anexo_GL '!$B$9:$N$1882,5,FALSE) -> 653.5842125 | I176: =VLOOKUP(C176,'Anexo_GL '!$B$9:$N$1882,6,FALSE) -> 413.45893 | L176: =VLOOKUP(C176,'Anexo_GL '!$B$9:$N$1882,7,FALSE) -> 13.35240331 | N176: =VLOOKUP(C176,'Anexo_GL '!$B$9:$N$1882,8,FALSE) -> Cumple | P176: =VLOOKUP(C176,'Anexo_GL '!$B$9:$N$1882,10,FALSE) -> 679.58329 | Q176: =VLOOKUP(C176,'Anexo_GL '!$B$9:$N$1882,11,FALSE) -> 267.49391 | R176: =VLOOKUP(C176,'Anexo_GL '!$B$9:$N$1882,12,FALSE) -> 412.08938 | S176: =VLOOKUP(C176,'Anexo_GL '!$B$9:$N$1882,13,FALSE) -> Cumple
A177: 021001 : MP DE HUARI | B177: 150 | C177: 021001 | D177: ANCASH | E177: MP DE HUARI | F177: =VLOOKUP(C177,'Anexo_GL '!$B$9:$N$1882,4,FALSE) -> 8663.38703 | H177: =VLOOKUP(C177,'Anexo_GL '!$B$9:$N$1882,5,FALSE) -> 32015.62661 | I177: =VLOOKUP(C177,'Anexo_GL '!$B$9:$N$1882,6,FALSE) -> 51184.25685 | L177: =VLOOKUP(C177,'Anexo_GL '!$B$9:$N$1882,7,FALSE) -> 16.92588222 | N177: =VLOOKUP(C177,'Anexo_GL '!$B$9:$N$1882,8,FALSE) -> Cumple | P177: =VLOOKUP(C177,'Anexo_GL '!$B$9:$N$1882,10,FALSE) -> 50957.59282 | Q177: =VLOOKUP(C177,'Anexo_GL '!$B$9:$N$1882,11,FALSE) -> 6016.02032 | R177: =VLOOKUP(C177,'Anexo_GL '!$B$9:$N$1882,12,FALSE) -> 44941.5725 | S177: =VLOOKUP(C177,'Anexo_GL '!$B$9:$N$1882,13,FALSE) -> Cumple
A178: 021002 : MD DE ANRA | B178: 151 | C178: 021002 | D178: ANCASH | E178: MD DE ANRA | F178: =VLOOKUP(C178,'Anexo_GL '!$B$9:$N$1882,4,FALSE) -> 883.1175 | H178: =VLOOKUP(C178,'Anexo_GL '!$B$9:$N$1882,5,FALSE) -> 3720.7344 | I178: =VLOOKUP(C178,'Anexo_GL '!$B$9:$N$1882,6,FALSE) -> 11067.0251 | L178: =VLOOKUP(C178,'Anexo_GL '!$B$9:$N$1882,7,FALSE) -> 7.979718958 | N178: =VLOOKUP(C178,'Anexo_GL '!$B$9:$N$1882,8,FALSE) -> Cumple | P178: =VLOOKUP(C178,'Anexo_GL '!$B$9:$N$1882,10,FALSE) -> 1593.73131 | Q178: =VLOOKUP(C178,'Anexo_GL '!$B$9:$N$1882,11,FALSE) -> 1403.45284 | R178: =VLOOKUP(C178,'Anexo_GL '!$B$9:$N$1882,12,FALSE) -> 190.27847 | S178: =VLOOKUP(C178,'Anexo_GL '!$B$9:$N$1882,13,FALSE) -> Cumple
A179: 021003 : MD DE CAJAY | B179: 152 | C179: 021003 | D179: ANCASH | E179: MD DE CAJAY | F179: =VLOOKUP(C179,'Anexo_GL '!$B$9:$N$1882,4,FALSE) -> 520.84839 | H179: =VLOOKUP(C179,'Anexo_GL '!$B$9:$N$1882,5,FALSE) -> 9457.32513 | I179: =VLOOKUP(C179,'Anexo_GL '!$B$9:$N$1882,6,FALSE) -> 18723.1223 | L179: =VLOOKUP(C179,'Anexo_GL '!$B$9:$N$1882,7,FALSE) -> 2.781845793 | N179: =VLOOKUP(C179,'Anexo_GL '!$B$9:$N$1882,8,FALSE) -> Cumple | P179: =VLOOKUP(C179,'Anexo_GL '!$B$9:$N$1882,10,FALSE) -> 16816.54016 | Q179: =VLOOKUP(C179,'Anexo_GL '!$B$9:$N$1882,11,FALSE) -> 1968.88695 | R179: =VLOOKUP(C179,'Anexo_GL '!$B$9:$N$1882,12,FALSE) -> 14847.65321 | S179: =VLOOKUP(C179,'Anexo_GL '!$B$9:$N$1882,13,FALSE) -> Cumple
A180: 021004 : MD DE CHAVIN DE HUANTAR | B180: 153 | C180: 021004 | D180: ANCASH | E180: MD DE CHAVIN DE HUANTAR | F180: =VLOOKUP(C180,'Anexo_GL '!$B$9:$N$1882,4,FALSE) -> 4347.95478 | H180: =VLOOKUP(C180,'Anexo_GL '!$B$9:$N$1882,5,FALSE) -> 31003.64824 | I180: =VLOOKUP(C180,'Anexo_GL '!$B$9:$N$1882,6,FALSE) -> 61882.32792 | L180: =VLOOKUP(C180,'Anexo_GL '!$B$9:$N$1882,7,FALSE) -> 7.026165508 | N180: =VLOOKUP(C180,'Anexo_GL '!$B$9:$N$1882,8,FALSE) -> Cumple | P180: =VLOOKUP(C180,'Anexo_GL '!$B$9:$N$1882,10,FALSE) -> 56763.32437 | Q180: =VLOOKUP(C180,'Anexo_GL '!$B$9:$N$1882,11,FALSE) -> 5476.11851 | R180: =VLOOKUP(C180,'Anexo_GL '!$B$9:$N$1882,12,FALSE) -> 51287.20586 | S180: =VLOOKUP(C180,'Anexo_GL '!$B$9:$N$1882,13,FALSE) -> Cumple
A181: 021005 : MD DE HUACACHI | B181: 154 | C181: 021005 | D181: ANCASH | E181: MD DE HUACACHI | F181: =VLOOKUP(C181,'Anexo_GL '!$B$9:$N$1882,4,FALSE) -> 911.23037 | H181: =VLOOKUP(C181,'Anexo_GL '!$B$9:$N$1882,5,FALSE) -> 4089.78543 | I181: =VLOOKUP(C181,'Anexo_GL '!$B$9:$N$1882,6,FALSE) -> 12820.17206 | L181: =VLOOKUP(C181,'Anexo_GL '!$B$9:$N$1882,7,FALSE) -> 7.107785806 | N181: =VLOOKUP(C181,'Anexo_GL '!$B$9:$N$1882,8,FALSE) -> Cumple | P181: =VLOOKUP(C181,'Anexo_GL '!$B$9:$N$1882,10,FALSE) -> 1812.01983 | Q181: =VLOOKUP(C181,'Anexo_GL '!$B$9:$N$1882,11,FALSE) -> 1330.05121 | R181: =VLOOKUP(C181,'Anexo_GL '!$B$9:$N$1882,12,FALSE) -> 481.96862 | S181: =VLOOKUP(C181,'Anexo_GL '!$B$9:$N$1882,13,FALSE) -> Cumple
A182: 021006 : MD DE HUACCHIS | B182: 155 | C182: 021006 | D182: ANCASH | E182: MD DE HUACCHIS | F182: =VLOOKUP(C182,'Anexo_GL '!$B$9:$N$1882,4,FALSE) -> 641.83324 | H182: =VLOOKUP(C182,'Anexo_GL '!$B$9:$N$1882,5,FALSE) -> 6879.648858 | I182: =VLOOKUP(C182,'Anexo_GL '!$B$9:$N$1882,6,FALSE) -> 13395.23019 | L182: =VLOOKUP(C182,'Anexo_GL '!$B$9:$N$1882,7,FALSE) -> 4.791505864 | N182: =VLOOKUP(C182,'Anexo_GL '!$B$9:$N$1882,8,FALSE) -> Cumple | P182: =VLOOKUP(C182,'Anexo_GL '!$B$9:$N$1882,10,FALSE) -> 12250.30664 | Q182: =VLOOKUP(C182,'Anexo_GL '!$B$9:$N$1882,11,FALSE) -> 2913.90398 | R182: =VLOOKUP(C182,'Anexo_GL '!$B$9:$N$1882,12,FALSE) -> 9336.40266 | S182: =VLOOKUP(C182,'Anexo_GL '!$B$9:$N$1882,13,FALSE) -> Cumple
A183: 021007 : MD DE HUACHIS | B183: 156 | C183: 021007 | D183: ANCASH | E183: MD DE HUACHIS | F183: =VLOOKUP(C183,'Anexo_GL '!$B$9:$N$1882,4,FALSE) -> 8664.12823 | H183: =VLOOKUP(C183,'Anexo_GL '!$B$9:$N$1882,5,FALSE) -> 13963.09317 | I183: =VLOOKUP(C183,'Anexo_GL '!$B$9:$N$1882,6,FALSE) -> 27416.44628 | L183: =VLOOKUP(C183,'Anexo_GL '!$B$9:$N$1882,7,FALSE) -> 31.60193754 | N183: =VLOOKUP(C183,'Anexo_GL '!$B$9:$N$1882,8,FALSE) -> Cumple | P183: =VLOOKUP(C183,'Anexo_GL '!$B$9:$N$1882,10,FALSE) -> 24606.54095 | Q183: =VLOOKUP(C183,'Anexo_GL '!$B$9:$N$1882,11,FALSE) -> 4570.32859 | R183: =VLOOKUP(C183,'Anexo_GL '!$B$9:$N$1882,12,FALSE) -> 20036.21236 | S183: =VLOOKUP(C183,'Anexo_GL '!$B$9:$N$1882,13,FALSE) -> Cumple
A184: 021008 : MD DE HUANTAR | B184: 157 | C184: 021008 | D184: ANCASH | E184: MD DE HUANTAR | F184: =VLOOKUP(C184,'Anexo_GL '!$B$9:$N$1882,4,FALSE) -> 4141.39836 | H184: =VLOOKUP(C184,'Anexo_GL '!$B$9:$N$1882,5,FALSE) -> 5343.97043 | I184: =VLOOKUP(C184,'Anexo_GL '!$B$9:$N$1882,6,FALSE) -> 17684.23848 | L184: =VLOOKUP(C184,'Anexo_GL '!$B$9:$N$1882,7,FALSE) -> 23.41858466 | N184: =VLOOKUP(C184,'Anexo_GL '!$B$9:$N$1882,8,FALSE) -> Cumple | P184: =VLOOKUP(C184,'Anexo_GL '!$B$9:$N$1882,10,FALSE) -> 2508.54972 | Q184: =VLOOKUP(C184,'Anexo_GL '!$B$9:$N$1882,11,FALSE) -> 1171.90949 | R184: =VLOOKUP(C184,'Anexo_GL '!$B$9:$N$1882,12,FALSE) -> 1336.64023 | S184: =VLOOKUP(C184,'Anexo_GL '!$B$9:$N$1882,13,FALSE) -> Cumple
A185: 021009 : MD DE MASIN | B185: 158 | C185: 021009 | D185: ANCASH | E185: MD DE MASIN | F185: =VLOOKUP(C185,'Anexo_GL '!$B$9:$N$1882,4,FALSE) -> 318.99197 | H185: =VLOOKUP(C185,'Anexo_GL '!$B$9:$N$1882,5,FALSE) -> 5984.235675 | I185: =VLOOKUP(C185,'Anexo_GL '!$B$9:$N$1882,6,FALSE) -> 11556.21119 | L185: =VLOOKUP(C185,'Anexo_GL '!$B$9:$N$1882,7,FALSE) -> 2.760350817 | N185: =VLOOKUP(C185,'Anexo_GL '!$B$9:$N$1882,8,FALSE) -> Cumple | P185: =VLOOKUP(C185,'Anexo_GL '!$B$9:$N$1882,10,FALSE) -> 10473.93935 | Q185: =VLOOKUP(C185,'Anexo_GL '!$B$9:$N$1882,11,FALSE) -> 763.37502 | R185: =VLOOKUP(C185,'Anexo_GL '!$B$9:$N$1882,12,FALSE) -> 9710.56433 | S185: =VLOOKUP(C185,'Anexo_GL '!$B$9:$N$1882,13,FALSE) -> Cumple
A186: 021010 : MD DE PAUCAS | B186: 159 | C186: 021010 | D186: ANCASH | E186: MD DE PAUCAS | F186: =VLOOKUP(C186,'Anexo_GL '!$B$9:$N$1882,4,FALSE) -> 111.36113 | H186: =VLOOKUP(C186,'Anexo_GL '!$B$9:$N$1882,5,FALSE) -> 6781.064178 | I186: =VLOOKUP(C186,'Anexo_GL '!$B$9:$N$1882,6,FALSE) -> 13255.5815 | L186: =VLOOKUP(C186,'Anexo_GL '!$B$9:$N$1882,7,FALSE) -> 0.8401074672 | N186: =VLOOKUP(C186,'Anexo_GL '!$B$9:$N$1882,8,FALSE) -> Cumple | P186: =VLOOKUP(C186,'Anexo_GL '!$B$9:$N$1882,10,FALSE) -> 12067.0114 | Q186: =VLOOKUP(C186,'Anexo_GL '!$B$9:$N$1882,11,FALSE) -> 1430.79012 | R186: =VLOOKUP(C186,'Anexo_GL '!$B$9:$N$1882,12,FALSE) -> 10636.22128 | S186: =VLOOKUP(C186,'Anexo_GL '!$B$9:$N$1882,13,FALSE) -> Cumple
A187: 021011 : MD DE PONTO | B187: 160 | C187: 021011 | D187: ANCASH | E187: MD DE PONTO | F187: =VLOOKUP(C187,'Anexo_GL '!$B$9:$N$1882,4,FALSE) -> 587.8449 | H187: =VLOOKUP(C187,'Anexo_GL '!$B$9:$N$1882,5,FALSE) -> 13051.42516 | I187: =VLOOKUP(C187,'Anexo_GL '!$B$9:$N$1882,6,FALSE) -> 25922.16688 | L187: =VLOOKUP(C187,'Anexo_GL '!$B$9:$N$1882,7,FALSE) -> 2.267730559 | N187: =VLOOKUP(C187,'Anexo_GL '!$B$9:$N$1882,8,FALSE) -> Cumple | P187: =VLOOKUP(C187,'Anexo_GL '!$B$9:$N$1882,10,FALSE) -> 23475.98345 | Q187: =VLOOKUP(C187,'Anexo_GL '!$B$9:$N$1882,11,FALSE) -> 2519.83267 | R187: =VLOOKUP(C187,'Anexo_GL '!$B$9:$N$1882,12,FALSE) -> 20956.15078 | S187: =VLOOKUP(C187,'Anexo_GL '!$B$9:$N$1882,13,FALSE) -> Cumple
A188: 021012 : MD DE RAHUAPAMPA | B188: 161 | C188: 021012 | D188: ANCASH | E188: MD DE RAHUAPAMPA | F188: =VLOOKUP(C188,'Anexo_GL '!$B$9:$N$1882,4,FALSE) -> 529.39993 | H188: =VLOOKUP(C188,'Anexo_GL '!$B$9:$N$1882,5,FALSE) -> 2359.7287 | I188: =VLOOKUP(C188,'Anexo_GL '!$B$9:$N$1882,6,FALSE) -> 3861.94346 | L188: =VLOOKUP(C188,'Anexo_GL '!$B$9:$N$1882,7,FALSE) -> 13.70812223 | N188: =VLOOKUP(C188,'Anexo_GL '!$B$9:$N$1882,8,FALSE) -> Cumple | P188: =VLOOKUP(C188,'Anexo_GL '!$B$9:$N$1882,10,FALSE) -> 3852.10753 | Q188: =VLOOKUP(C188,'Anexo_GL '!$B$9:$N$1882,11,FALSE) -> 587.99027 | R188: =VLOOKUP(C188,'Anexo_GL '!$B$9:$N$1882,12,FALSE) -> 3264.11726 | S188: =VLOOKUP(C188,'Anexo_GL '!$B$9:$N$1882,13,FALSE) -> Cumple
A189: 021013 : MD DE RAPAYAN | B189: 162 | C189: 021013 | D189: ANCASH | E189: MD DE RAPAYAN | F189: =VLOOKUP(C189,'Anexo_GL '!$B$9:$N$1882,4,FALSE) -> 435.78443 | H189: =VLOOKUP(C189,'Anexo_GL '!$B$9:$N$1882,5,FALSE) -> 6841.10454 | I189: =VLOOKUP(C189,'Anexo_GL '!$B$9:$N$1882,6,FALSE) -> 13349.53881 | L189: =VLOOKUP(C189,'Anexo_GL '!$B$9:$N$1882,7,FALSE) -> 3.264415619 | N189: =VLOOKUP(C189,'Anexo_GL '!$B$9:$N$1882,8,FALSE) -> Cumple | P189: =VLOOKUP(C189,'Anexo_GL '!$B$9:$N$1882,10,FALSE) -> 12321.21531 | Q189: =VLOOKUP(C189,'Anexo_GL '!$B$9:$N$1882,11,FALSE) -> 3338.56392 | R189: =VLOOKUP(C189,'Anexo_GL '!$B$9:$N$1882,12,FALSE) -> 8982.65139 | S189: =VLOOKUP(C189,'Anexo_GL '!$B$9:$N$1882,13,FALSE) -> Cumple
A190: 021014 : MD DE SAN MARCOS | B190: 163 | C190: 021014 | D190: ANCASH | E190: MD DE SAN MARCOS | F190: =VLOOKUP(C190,'Anexo_GL '!$B$9:$N$1882,4,FALSE) -> 8752.46316 | H190: =VLOOKUP(C190,'Anexo_GL '!$B$9:$N$1882,5,FALSE) -> 124048.5674 | I190: =VLOOKUP(C190,'Anexo_GL '!$B$9:$N$1882,6,FALSE) -> 284042.0894 | L190: =VLOOKUP(C190,'Anexo_GL '!$B$9:$N$1882,7,FALSE) -> 3.081396556 | N190: =VLOOKUP(C190,'Anexo_GL '!$B$9:$N$1882,8,FALSE) -> Cumple | P190: =VLOOKUP(C190,'Anexo_GL '!$B$9:$N$1882,10,FALSE) -> 220422.975 | Q190: =VLOOKUP(C190,'Anexo_GL '!$B$9:$N$1882,11,FALSE) -> 23224.58186 | R190: =VLOOKUP(C190,'Anexo_GL '!$B$9:$N$1882,12,FALSE) -> 197198.3932 | S190: =VLOOKUP(C190,'Anexo_GL '!$B$9:$N$1882,13,FALSE) -> Cumple
A191: 021015 : MD DE SAN PEDRO DE CHANA | B191: 164 | C191: 021015 | D191: ANCASH | E191: MD DE SAN PEDRO DE CHANA | F191: =VLOOKUP(C191,'Anexo_GL '!$B$9:$N$1882,4,FALSE) -> 265.03067 | H191: =VLOOKUP(C191,'Anexo_GL '!$B$9:$N$1882,5,FALSE) -> 11488.39614 | I191: =VLOOKUP(C191,'Anexo_GL '!$B$9:$N$1882,6,FALSE) -> 21208.84503 | L191: =VLOOKUP(C191,'Anexo_GL '!$B$9:$N$1882,7,FALSE) -> 1.249623304 | N191: =VLOOKUP(C191,'Anexo_GL '!$B$9:$N$1882,8,FALSE) -> Cumple | P191: =VLOOKUP(C191,'Anexo_GL '!$B$9:$N$1882,10,FALSE) -> 19741.54725 | Q191: =VLOOKUP(C191,'Anexo_GL '!$B$9:$N$1882,11,FALSE) -> 1590.38547 | R191: =VLOOKUP(C191,'Anexo_GL '!$B$9:$N$1882,12,FALSE) -> 18151.16178 | S191: =VLOOKUP(C191,'Anexo_GL '!$B$9:$N$1882,13,FALSE) -> Cumple
A192: 021016 : MD DE UCO | B192: 165 | C192: 021016 | D192: ANCASH | E192: MD DE UCO | F192: =VLOOKUP(C192,'Anexo_GL '!$B$9:$N$1882,4,FALSE) -> 141.89037 | H192: =VLOOKUP(C192,'Anexo_GL '!$B$9:$N$1882,5,FALSE) -> 5643.46327 | I192: =VLOOKUP(C192,'Anexo_GL '!$B$9:$N$1882,6,FALSE) -> 10866.57469 | L192: =VLOOKUP(C192,'Anexo_GL '!$B$9:$N$1882,7,FALSE) -> 1.305750653 | N192: =VLOOKUP(C192,'Anexo_GL '!$B$9:$N$1882,8,FALSE) -> Cumple | P192: =VLOOKUP(C192,'Anexo_GL '!$B$9:$N$1882,10,FALSE) -> 9905.84204 | Q192: =VLOOKUP(C192,'Anexo_GL '!$B$9:$N$1882,11,FALSE) -> 727.12776 | R192: =VLOOKUP(C192,'Anexo_GL '!$B$9:$N$1882,12,FALSE) -> 9178.71428 | S192: =VLOOKUP(C192,'Anexo_GL '!$B$9:$N$1882,13,FALSE) -> Cumple
A193: 021101 : MP DE HUARMEY | B193: 166 | C193: 021101 | D193: ANCASH | E193: MP DE HUARMEY | F193: =VLOOKUP(C193,'Anexo_GL '!$B$9:$N$1882,4,FALSE) -> 22162.44254 | H193: =VLOOKUP(C193,'Anexo_GL '!$B$9:$N$1882,5,FALSE) -> 17481.75172 | I193: =VLOOKUP(C193,'Anexo_GL '!$B$9:$N$1882,6,FALSE) -> 15346.77702 | L193: =VLOOKUP(C193,'Anexo_GL '!$B$9:$N$1882,7,FALSE) -> 126.7747242 | N193: =VLOOKUP(C193,'Anexo_GL '!$B$9:$N$1882,8,FALSE) -> No Cumple | P193: =VLOOKUP(C193,'Anexo_GL '!$B$9:$N$1882,10,FALSE) -> 19553.13741 | Q193: =VLOOKUP(C193,'Anexo_GL '!$B$9:$N$1882,11,FALSE) -> 8030.61283 | R193: =VLOOKUP(C193,'Anexo_GL '!$B$9:$N$1882,12,FALSE) -> 11522.52458 | S193: =VLOOKUP(C193,'Anexo_GL '!$B$9:$N$1882,13,FALSE) -> Cumple
A194: 021102 : MD DE COCHAPETI | B194: 167 | C194: 021102 | D194: ANCASH | E194: MD DE COCHAPETI | F194: =VLOOKUP(C194,'Anexo_GL '!$B$9:$N$1882,4,FALSE) -> 8.41428 | H194: =VLOOKUP(C194,'Anexo_GL '!$B$9:$N$1882,5,FALSE) -> 891.1638325 | I194: =VLOOKUP(C194,'Anexo_GL '!$B$9:$N$1882,6,FALSE) -> 842.30999 | L194: =VLOOKUP(C194,'Anexo_GL '!$B$9:$N$1882,7,FALSE) -> 0.9441900236 | N194: =VLOOKUP(C194,'Anexo_GL '!$B$9:$N$1882,8,FALSE) -> Cumple | P194: =VLOOKUP(C194,'Anexo_GL '!$B$9:$N$1882,10,FALSE) -> 965.86257 | Q194: =VLOOKUP(C194,'Anexo_GL '!$B$9:$N$1882,11,FALSE) -> 319.28725 | R194: =VLOOKUP(C194,'Anexo_GL '!$B$9:$N$1882,12,FALSE) -> 646.57532 | S194: =VLOOKUP(C194,'Anexo_GL '!$B$9:$N$1882,13,FALSE) -> Cumple
A195: 021103 : MD DE CULEBRAS | B195: 168 | C195: 021103 | D195: ANCASH | E195: MD DE CULEBRAS | F195: =VLOOKUP(C195,'Anexo_GL '!$B$9:$N$1882,4,FALSE) -> 4691.42008 | H195: =VLOOKUP(C195,'Anexo_GL '!$B$9:$N$1882,5,FALSE) -> 2916.195263 | I195: =VLOOKUP(C195,'Anexo_GL '!$B$9:$N$1882,6,FALSE) -> 4774.25868 | L195: =VLOOKUP(C195,'Anexo_GL '!$B$9:$N$1882,7,FALSE) -> 98.26489083 | N195: =VLOOKUP(C195,'Anexo_GL '!$B$9:$N$1882,8,FALSE) -> Cumple | P195: =VLOOKUP(C195,'Anexo_GL '!$B$9:$N$1882,10,FALSE) -> 3446.32103 | Q195: =VLOOKUP(C195,'Anexo_GL '!$B$9:$N$1882,11,FALSE) -> 885.55123 | R195: =VLOOKUP(C195,'Anexo_GL '!$B$9:$N$1882,12,FALSE) -> 2560.7698 | S195: =VLOOKUP(C195,'Anexo_GL '!$B$9:$N$1882,13,FALSE) -> Cumple
A196: 021104 : MD DE HUAYAN | B196: 169 | C196: 021104 | D196: ANCASH | E196: MD DE HUAYAN | F196: =VLOOKUP(C196,'Anexo_GL '!$B$9:$N$1882,4,FALSE) -> 33.37342 | H196: =VLOOKUP(C196,'Anexo_GL '!$B$9:$N$1882,5,FALSE) -> 944.4374075 | I196: =VLOOKUP(C196,'Anexo_GL '!$B$9:$N$1882,6,FALSE) -> 1046.45725 | L196: =VLOOKUP(C196,'Anexo_GL '!$B$9:$N$1882,7,FALSE) -> 3.189181402 | N196: =VLOOKUP(C196,'Anexo_GL '!$B$9:$N$1882,8,FALSE) -> Cumple | P196: =VLOOKUP(C196,'Anexo_GL '!$B$9:$N$1882,10,FALSE) -> 1093.84067 | Q196: =VLOOKUP(C196,'Anexo_GL '!$B$9:$N$1882,11,FALSE) -> 600.15003 | R196: =VLOOKUP(C196,'Anexo_GL '!$B$9:$N$1882,12,FALSE) -> 493.69064 | S196: =VLOOKUP(C196,'Anexo_GL '!$B$9:$N$1882,13,FALSE) -> Cumple
A197: 021105 : MD DE MALVAS | B197: 170 | C197: 021105 | D197: ANCASH | E197: MD DE MALVAS | F197: =VLOOKUP(C197,'Anexo_GL '!$B$9:$N$1882,4,FALSE) -> 295.03764 | H197: =VLOOKUP(C197,'Anexo_GL '!$B$9:$N$1882,5,FALSE) -> 958.7280025 | I197: =VLOOKUP(C197,'Anexo_GL '!$B$9:$N$1882,6,FALSE) -> 878.37221 | L197: =VLOOKUP(C197,'Anexo_GL '!$B$9:$N$1882,7,FALSE) -> 30.77386279 | N197: =VLOOKUP(C197,'Anexo_GL '!$B$9:$N$1882,8,FALSE) -> Cumple | P197: =VLOOKUP(C197,'Anexo_GL '!$B$9:$N$1882,10,FALSE) -> 1027.95861 | Q197: =VLOOKUP(C197,'Anexo_GL '!$B$9:$N$1882,11,FALSE) -> 213.80388 | R197: =VLOOKUP(C197,'Anexo_GL '!$B$9:$N$1882,12,FALSE) -> 814.15473 | S197: =VLOOKUP(C197,'Anexo_GL '!$B$9:$N$1882,13,FALSE) -> Cumple
A198: 021201 : MP DE HUAYLAS - CARAZ | B198: 171 | C198: 021201 | D198: ANCASH | E198: MP DE HUAYLAS - CARAZ | F198: =VLOOKUP(C198,'Anexo_GL '!$B$9:$N$1882,4,FALSE) -> 964.59151 | H198: =VLOOKUP(C198,'Anexo_GL '!$B$9:$N$1882,5,FALSE) -> 19966.82855 | I198: =VLOOKUP(C198,'Anexo_GL '!$B$9:$N$1882,6,FALSE) -> 18632.5657 | L198: =VLOOKUP(C198,'Anexo_GL '!$B$9:$N$1882,7,FALSE) -> 4.830970064 | N198: =VLOOKUP(C198,'Anexo_GL '!$B$9:$N$1882,8,FALSE) -> Cumple | P198: =VLOOKUP(C198,'Anexo_GL '!$B$9:$N$1882,10,FALSE) -> 20006.20945 | Q198: =VLOOKUP(C198,'Anexo_GL '!$B$9:$N$1882,11,FALSE) -> 6834.11971 | R198: =VLOOKUP(C198,'Anexo_GL '!$B$9:$N$1882,12,FALSE) -> 13172.08974 | S198: =VLOOKUP(C198,'Anexo_GL '!$B$9:$N$1882,13,FALSE) -> Cumple
A199: 021202 : MD DE HUALLANCA | B199: 172 | C199: 021202 | D199: ANCASH | E199: MD DE HUALLANCA | F199: =VLOOKUP(C199,'Anexo_GL '!$B$9:$N$1882,4,FALSE) -> 342.14015 | H199: =VLOOKUP(C199,'Anexo_GL '!$B$9:$N$1882,5,FALSE) -> 2962.25622 | I199: =VLOOKUP(C199,'Anexo_GL '!$B$9:$N$1882,6,FALSE) -> 4066.86511 | L199: =VLOOKUP(C199,'Anexo_GL '!$B$9:$N$1882,7,FALSE) -> 8.41287185 | N199: =VLOOKUP(C199,'Anexo_GL '!$B$9:$N$1882,8,FALSE) -> Cumple | P199: =VLOOKUP(C199,'Anexo_GL '!$B$9:$N$1882,10,FALSE) -> 1912.30045 | Q199: =VLOOKUP(C199,'Anexo_GL '!$B$9:$N$1882,11,FALSE) -> 546.72155 | R199: =VLOOKUP(C199,'Anexo_GL '!$B$9:$N$1882,12,FALSE) -> 1365.5789 | S199: =VLOOKUP(C199,'Anexo_GL '!$B$9:$N$1882,13,FALSE) -> Cumple
A200: 021203 : MD DE HUATA | B200: 173 | C200: 021203 | D200: ANCASH | E200: MD DE HUATA | F200: =VLOOKUP(C200,'Anexo_GL '!$B$9:$N$1882,4,FALSE) -> 281.14604 | H200: =VLOOKUP(C200,'Anexo_GL '!$B$9:$N$1882,5,FALSE) -> 1372.609012 | I200: =VLOOKUP(C200,'Anexo_GL '!$B$9:$N$1882,6,FALSE) -> 1632.22981 | L200: =VLOOKUP(C200,'Anexo_GL '!$B$9:$N$1882,7,FALSE) -> 17.22466029 | N200: =VLOOKUP(C200,'Anexo_GL '!$B$9:$N$1882,8,FALSE) -> Cumple | P200: =VLOOKUP(C200,'Anexo_GL '!$B$9:$N$1882,10,FALSE) -> 1510.6753 | Q200: =VLOOKUP(C200,'Anexo_GL '!$B$9:$N$1882,11,FALSE) -> 452.94343 | R200: =VLOOKUP(C200,'Anexo_GL '!$B$9:$N$1882,12,FALSE) -> 1057.73187 | S200: =VLOOKUP(C200,'Anexo_GL '!$B$9:$N$1882,13,FALSE) -> Cumple
... 1701 more rows

Sheet Anexo_GR
B1: Anexo N° 2: Seguimiento al Cumplimiento de las Reglas Fiscales Subnacionales 3T2018
B2: Gobiernos Regionales
B5: N° | C5: UBIGEO | D5: Gobiernos Regional | E5: R1: Regla Fiscal de Saldo de Deuda Total | K5: R2: Regla Fiscal de Ahorro en Cuenta Corriente
E6: 3T2018 | K6: 3T2018
E7: S/ Miles | H7: SDT/Prom. ICT IVT2014-IIIT2018 % | I7: Cumple R1 | K7: S/ Miles | N7: Cumple R2
E8: Saldo de Deuda Total | F8: Prom. ICT IVT2014-IIIT2018 | G8: Límite Ley N° 29230 1/ | K8: Ingreso Corriente Total | L8: Gasto Corriente Total | M8: Ahorro en Cuenta Corriente
B9: 1 | C9: 010000 | D9: AMAZONAS | E9: 448252.6431 | F9: 533622.7484 | G9: 4.56198 | H9: 84.00178674 | I9: Cumple | K9: 462771.6736 | L9: 444609.3496 | M9: 18162.32406 | N9: Cumple
B10: 2 | C10: 020000 | D10: ANCASH | E10: 457110.6689 | F10: 1316894.211 | G10: 324314.3632 | H10: 34.71126725 | I10: Cumple | K10: 1243107.175 | L10: 971429.7775 | M10: 271677.3975 | N10: Cumple
B11: 3 | C11: 030000 | D11: APURIMAC | E11: 554494.3644 | F11: 680098.7637 | G11: 64571.57428 | H11: 81.5314472 | I11: Cumple | K11: 577539.4486 | L11: 535060.2028 | M11: 42479.24583 | N11: Cumple
B12: 4 | C12: 040000 | D12: AREQUIPA | E12: 1337498.362 | F12: 1232405.415 | G12: 243356.3318 | H12: 108.5274655 | I12: No Cumple | K12: 1125277.704 | L12: 922150.5832 | M12: 203127.1206 | N12: Cumple
B13: 5 | C13: 050000 | D13: AYACUCHO | E13: 565735.8989 | F13: 954626.2014 | G13: 78543.27508 | H13: 59.26255723 | I13: Cumple | K13: 808482.2286 | L13: 751255.0008 | M13: 57227.22777 | N13: Cumple
B14: 6 | C14: 060000 | D14: CAJAMARCA | E14: 1421251.421 | F14: 1509803.575 | G14: 136385.8685 | H14: 94.13485598 | I14: Cumple | K14: 1286433.141 | L14: 1214636.873 | M14: 71796.26791 | N14: Cumple
B15: 7 | C15: 070000 | D15: CALLAO | E15: 533673.7137 | F15: 899764.0148 | G15: 683824.6884 | H15: 59.31263142 | I15: Cumple | K15: 745005.156 | L15: 664211.8929 | M15: 80793.2631 | N15: Cumple
B16: 8 | C16: 080000 | D16: CUSCO | E16: 1104262.764 | F16: 1585531.853 | G16: 880874.3049 | H16: 69.64620495 | I16: Cumple | K16: 1337381.18 | L16: 1008284.82 | M16: 329096.3608 | N16: Cumple
B17: 9 | C17: 090000 | D17: HUANCAVELICA | E17: 240418.1601 | F17: 714724.7944 | G17: 93945.67433 | H17: 33.6378648 | I17: Cumple | K17: 594079.0899 | L17: 558556.2729 | M17: 35522.81703 | N17: Cumple
B18: 10 | C18: 100000 | D18: HUANUCO | E18: 226543.3086 | F18: 783099.1466 | G18: 2148.02378 | H18: 28.92907106 | I18: Cumple | K18: 674529.6972 | L18: 653217.4588 | M18: 21312.23843 | N18: Cumple
B19: 11 | C19: 110000 | D19: ICA | E19: 221197.4945 | F19: 810804.9631 | G19: 111349.0152 | H19: 27.28122108 | I19: Cumple | K19: 691733.2933 | L19: 620614.7775 | M19: 71118.51577 | N19: Cumple
B20: 12 | C20: 120000 | D20: JUNIN | E20: 747643.7642 | F20: 1233507.446 | G20: 44458.64268 | H20: 60.61120805 | I20: Cumple | K20: 1093095.08 | L20: 1014447.976 | M20: 78647.10455 | N20: Cumple
B21: 13 | C21: 130000 | D21: LA LIBERTAD | E21: 1479021.525 | F21: 1498845.989 | G21: 163627.1163 | H21: 98.67735149 | I21: Cumple | K21: 1300211.126 | L21: 1154751.388 | M21: 145459.7375 | N21: Cumple
B22: 14 | C22: 140000 | D22: LAMBAYEQUE | E22: 518527.6783 | F22: 897782.1079 | G22: 7.75708 | H22: 57.75651728 | I22: Cumple | K22: 760326.0619 | L22: 706596.5158 | M22: 53729.54611 | N22: Cumple
B23: 15 | C23: 150000 | D23: LIMA | E23: 163659.884 | F23: 999171.0988 | G23: 123361.3261 | H23: 16.37956544 | I23: Cumple | K23: 810097.5305 | L23: 786738.5919 | M23: 23358.93858 | N23: Cumple
B24: 16 | C24: 160000 | D24: LORETO | E24: 496715.0225 | F24: 1219055.481 | G24: 68078.28517 | H24: 40.7458914 | I24: Cumple | K24: 1094786.683 | L24: 1056068.93 | M24: 38717.75333 | N24: Cumple
B25: 17 | C25: 170000 | D25: MADRE DE DIOS | E25: 113143.7377 | F25: 199271.7988 | G25: 461.36884 | H25: 56.77860006 | I25: Cumple | K25: 168379.1287 | L25: 160062.607 | M25: 8316.52168 | N25: Cumple
B26: 18 | C26: 180000 | D26: MOQUEGUA | E26: 398717.6896 | F26: 306277.6638 | G26: 90747.22613 | H26: 130.1817719 | I26: No Cumple | K26: 267414.446 | L26: 225447.8125 | M26: 41966.63346 | N26: Cumple
B27: 19 | C27: 190000 | D27: PASCO | E27: 303298.6245 | F27: 356572.5483 | G27: 28508.24556 | H27: 85.05944328 | I27: Cumple | K27: 306035.8693 | L27: 279562.2493 | M27: 26473.62 | N27: Cumple
B28: 20 | C28: 200000 | D28: PIURA | E28: 1475806.721 | F28: 1453530.455 | G28: 195954.8462 | H28: 101.5325627 | I28: No Cumple | K28: 1207270.499 | L28: 1135588.264 | M28: 71682.23559 | N28: Cumple
B29: 21 | C29: 210000 | D29: PUNO | E29: 1289083.411 | F29: 1302453.677 | G29: 66805.87353 | H29: 98.97345551 | I29: Cumple | K29: 1088462.142 | L29: 1036053.207 | M29: 52408.935 | N29: Cumple
B30: 22 | C30: 220000 | D30: SAN MARTIN | E30: 576016.8786 | F30: 894571.5964 | G30: 1198.14807 | H30: 64.39024902 | I30: Cumple | K30: 764290.032 | L30: 687468.3992 | M30: 76821.63283 | N30: Cumple
B31: 23 | C31: 230000 | D31: TACNA | E31: 355316.1195 | F31: 418222.8315 | G31: 89307.64346 | H31: 84.95856581 | I31: Cumple | K31: 357291.0022 | L31: 299861.7535 | M31: 57429.24871 | N31: Cumple
B32: 24 | C32: 240000 | D32: TUMBES | E32: 186585.6065 | F32: 368616.3888 | G32: 72768.68037 | H32: 50.61782713 | I32: Cumple | K32: 299482.1025 | L32: 275474.5158 | M32: 24007.58668 | N32: Cumple
B33: 25 | C33: 250000 | D33: UCAYALI | E33: 344148.4089 | F33: 549099.1354 | G33: 51203.07898 | H33: 62.67509576 | I33: Cumple | K33: 501360.6928 | L33: 467437.8109 | M33: 33922.88193 | N33: Cumple
B34: 26 | C34: 260000 | D34: MM LIMA | E34: 2607.93129 | F34: 21604.62081 | G34: 7106.95294 | H34: 12.07117363 | I34: Cumple | K34: 12084.69537 | L34: 10435.64019 | M34: 1649.05518 | N34: Cumple
B36: TOTAL | E36: =+SUM(E9:E34) -> 15560731.8 | F36: =+SUM(F9:F34) -> 22739958.53 | G36: =+SUM(G9:G34) -> 3622912.873 | K36: =+SUM(K9:K34) -> 19576926.88 | L36: =+SUM(L9:L34) -> 17640022.67 | M36: =+SUM(M9:M34) -> 1936904.21
B38: 1/ Corresponde a la suma de los flujos transferidos por concepto de Recursos Determinados provenientes de Canon, Sobrecanon, Regalías, Renta de Aduanas y Participaciones de los años 2016 y 2017, más el tope presupuestal por el mismo concepto incluido en el Presupuesto Institucional de Apertura 2018, aprobado mediante Ley N° 30693 – Ley de Presupuesto del Sector Público para el Año Fiscal 2018, informado a través de Memorando N° 179-2018-EF/50.03 por la Dirección General de Política de Presupuesto Público del Ministerio de Economía y Finanzas.
B39: Nota: En el caso de saldo de pasivos la información disponible es al 2do trimestre de 2018, deuda exigible al 3er trimestre de 2018 y deuda real a julio de 2018.
B40: Fuente: SICON-MEF, SIAF-MEF, SUNAT, SBS y AFP.

Sheet Anexo_GL
A1: Anexo N° 2: Seguimiento al Cumplimiento de las Reglas Fiscales Subnacionales 3T2018
A2: Gobiernos Locales
A5: N° | B5: Ubigeo | C5: Departamento | D5: Municipalidad | E5: R1: Regla Fiscal de Saldo de Deuda Total | K5: R2: Regla Fiscal de Ahorro en Cuenta Corriente
E6: 3T2018 | K6: 3T2018
E7: S/ Miles | H7: SDT/Prom. ICT IVT2014-IIIT2018 ó SDT/ Lím Ley N° 29230 ó SDT/ ICT 2018 % | I7: Cumple R1 | K7: S/ Miles | N7: Cumple R2
E8: Saldo de Deuda Total | F8: Prom. ICT IVT2014-IIIT2018 ó ICT 2018 | G8: Límite Ley N° 29230 1/ | K8: Ingreso Corriente Total | L8: Gasto Corriente Total | M8: Ahorro en Cuenta Corriente
A9: 1 | B9: 010101 | C9: AMAZONAS | D9: MUNICIPALIDAD PROVINCIAL DE CHACHAPOYAS | E9: 7748.8243 | F9: 14275.67783 | G9: 0.93111 | H9: 54.27990456 | I9: Cumple | J9: 54.27990456 | K9: 10647.71411 | L9: 8473.00786 | M9: 2174.70625 | N9: Cumple
A10: 2 | B10: 010102 | C10: AMAZONAS | D10: MUNICIPALIDAD DISTRITAL DE ASUNCION | E10: 15.20119 | F10: 695.1270775 | G10: 0.00032 | H10: 2.186821733 | I10: Cumple | J10: 2.186821733 | K10: 331.85695 | L10: 271.20787 | M10: 60.64908 | N10: Cumple
A11: 3 | B11: 010103 | C11: AMAZONAS | D11: MUNICIPALIDAD DISTRITAL DE BALSAS | E11: 17.52934 | F11: 656.184705 | G11: 0.02982 | H11: 2.671403321 | I11: Cumple | J11: 2.671403321 | K11: 539.5297 | L11: 233.11088 | M11: 306.41882 | N11: Cumple
A12: 4 | B12: 010104 | C12: AMAZONAS | D12: MUNICIPALIDAD DISTRITAL DE CHETO | E12: 26.41845 | F12: 492.6535775 | G12: 0.00075 | H12: 5.362480089 | I12: Cumple | J12: 5.362480089 | K12: 340.15156 | L12: 194.06774 | M12: 146.08382 | N12: Cumple
A13: 5 | B13: 010105 | C13: AMAZONAS | D13: MUNICIPALIDAD DISTRITAL DE CHILIQUIN | E13: 9.37622 | F13: 831.83713 | G13: 0.0008 | H13: 1.127170171 | I13: Cumple | J13: 1.127170171 | K13: 342.51194 | L13: 189.57252 | M13: 152.93942 | N13: Cumple
A14: 6 | B14: 010106 | C14: AMAZONAS | D14: MUNICIPALIDAD DISTRITAL DE CHUQUIBAMBA | E14: 54.95646 | F14: 593.85582 | G14: 0.00138 | H14: 9.254175534 | I14: Cumple | J14: 9.254175534 | K14: 439.29434 | L14: 307.10717 | M14: 132.18717 | N14: Cumple
A15: 7 | B15: 010107 | C15: AMAZONAS | D15: MUNICIPALIDAD DISTRITAL DE GRANADA | E15: 193.64254 | F15: 552.714615 | G15: 0.0004 | H15: 35.03481449 | I15: Cumple | J15: 35.03481449 | K15: 349.74443 | L15: 281.33188 | M15: 68.41255 | N15: Cumple
A16: 8 | B16: 010108 | C16: AMAZONAS | D16: MUNICIPALIDAD DISTRITAL DE HUANCAS | E16: 133.65872 | F16: 725.984445 | G16: 0.00155 | H16: 18.41068647 | I16: Cumple | J16: 18.41068647 | K16: 490.35706 | L16: 340.43187 | M16: 149.92519 | N16: Cumple
A17: 9 | B17: 010109 | C17: AMAZONAS | D17: MUNICIPALIDAD DISTRITAL DE JALCA GRANDE | E17: 18.58307 | F17: 1253.142428 | G17: 0.97817 | H17: 1.482917631 | I17: Cumple | J17: 1.482917631 | K17: 933.24526 | L17: 609.21154 | M17: 324.03372 | N17: Cumple
A18: 10 | B18: 010110 | C18: AMAZONAS | D18: MUNICIPALIDAD DISTRITAL DE LEIMEBAMBA | E18: 67.06438 | F18: 982.1844 | G18: 0.00213 | H18: 6.828084421 | I18: Cumple | J18: 6.828084421 | K18: 709.76161 | L18: 494.66585 | M18: 215.09576 | N18: Cumple
A19: 11 | B19: 010111 | C19: AMAZONAS | D19: MUNICIPALIDAD DISTRITAL DE LEVANTO | E19: 9.57794 | F19: 644.05955 | G19: 0.00106 | H19: 1.487120252 | I19: Cumple | J19: 1.487120252 | K19: 403.65108 | L19: 325.78328 | M19: 77.8678 | N19: Cumple
A20: 12 | B20: 010112 | C20: AMAZONAS | D20: MUNICIPALIDAD DISTRITAL DE MAGDALENA | E20: 10.87559 | F20: 672.9852075 | G20: 0.00098 | H20: 1.616022147 | I20: Cumple | J20: 1.616022147 | K20: 351.83674 | L20: 373.87129 | M20: -22.03455 | N20: No Cumple
A21: 13 | B21: 010113 | C21: AMAZONAS | D21: MUNICIPALIDAD DISTRITAL DE MARISCAL CASTILLA | E21: 4.15599 | F21: 608.9066425 | G21: 0.00044 | H21: 0.6825332013 | I21: Cumple | J21: 0.6825332013 | K21: 364.67052 | L21: 161.82434 | M21: 202.84618 | N21: Cumple
A22: 14 | B22: 010114 | C22: AMAZONAS | D22: MUNICIPALIDAD DISTRITAL DE MOLINOPAMPA | E22: 56.09112 | F22: 951.0908425 | G22: 0.00231 | H22: 5.897556521 | I22: Cumple | J22: 5.897556521 | K22: 744.69685 | L22: 343.77421 | M22: 400.92264 | N22: Cumple
A23: 15 | B23: 010115 | C23: AMAZONAS | D23: MUNICIPALIDAD DISTRITAL DE MONTEVIDEO | E23: 26.23355 | F23: 547.6731425 | G23: 0.00074 | H23: 4.790001182 | I23: Cumple | J23: 4.790001182 | K23: 353.58053 | L23: 294.0508 | M23: 59.52973 | N23: Cumple
A24: 16 | B24: 010116 | C24: AMAZONAS | D24: MUNICIPALIDAD DISTRITAL DE OLLEROS | E24: 60.3832 | F24: 529.8096725 | G24: 0.00036 | H24: 11.39714942 | I24: Cumple | J24: 11.39714942 | K24: 339.09671 | L24: 210.74204 | M24: 128.35467 | N24: Cumple
A25: 17 | B25: 010117 | C25: AMAZONAS | D25: MUNICIPALIDAD DISTRITAL DE QUINJALCA | E25: 7.48186 | F25: 560.7093525 | G25: 0.0009 | H25: 1.334356198 | I25: Cumple | J25: 1.334356198 | K25: 359.90445 | L25: 172.50581 | M25: 187.39864 | N25: Cumple
A26: 18 | B26: 010118 | C26: AMAZONAS | D26: MUNICIPALIDAD DISTRITAL DE SAN FRANCISCO DE DAGUAS | E26: 32.17957 | F26: 554.5166175 | G26: 0.00034 | H26: 5.803175051 | I26: Cumple | J26: 5.803175051 | K26: 363.05278 | L26: 174.87718 | M26: 188.1756 | N26: Cumple
A27: 19 | B27: 010119 | C27: AMAZONAS | D27: MUNICIPALIDAD DISTRITAL DE SAN ISIDRO DE MAYNO | E27: 16.25279 | F27: 517.1443425 | G27: 0.00088 | H27: 3.142795669 | I27: Cumple | J27: 3.142795669 | K27: 381.48573 | L27: 176.2367 | M27: 205.24903 | N27: Cumple
A28: 20 | B28: 010120 | C28: AMAZONAS | D28: MUNICIPALIDAD DISTRITAL DE SOLOCO | E28: 932.4456 | F28: 888.984105 | G28: 0.00084 | H28: 104.8888945 | I28: No Cumple | J28: 104.8888945 | K28: 393.36802 | L28: 241.8469 | M28: 151.52112 | N28: Cumple
A29: 21 | B29: 010121 | C29: AMAZONAS | D29: MUNICIPALIDAD DISTRITAL DE SONCHE | E29: 20.51209 | F29: 467.158775 | G29: 0.00022 | H29: 4.390817662 | I29: Cumple | J29: 4.390817662 | K29: 333.02914 | L29: 197.96807 | M29: 135.06107 | N29: Cumple
A30: 22 | B30: 010201 | C30: AMAZONAS | D30: MUNICIPALIDAD PROVINCIAL DE BAGUA - LA PECA | E30: 1285.19983 | F30: 11975.36998 | G30: 0.79891 | H30: 10.73202609 | I30: Cumple | J30: 10.73202609 | K30: 9211.95586 | L30: 7671.22616 | M30: 1540.7297 | N30: Cumple
A31: 23 | B31: 010202 | C31: AMAZONAS | D31: MUNICIPALIDAD DISTRITAL DE ARAMANGO | E31: 818.92891 | F31: 3766.419478 | G31: 1.10553 | H31: 21.74290237 | I31: Cumple | J31: 21.74290237 | K31: 2836.42521 | L31: 1457.27213 | M31: 1379.15308 | N31: Cumple
A32: 24 | B32: 010203 | C32: AMAZONAS | D32: MUNICIPALIDAD DISTRITAL DE COPALLIN | E32: 306.28421 | F32: 1909.8894 | G32: 0.00088 | H32: 16.03675113 | I32: Cumple | J32: 16.03675113 | K32: 1462.25952 | L32: 1324.62757 | M32: 137.63195 | N32: Cumple
A33: 25 | B33: 010204 | C33: AMAZONAS | D33: MUNICIPALIDAD DISTRITAL DE EL PARCO | E33: 125.98604 | F33: 1965.088438 | G33: 0.00023 | H33: 6.411214762 | I33: Cumple | J33: 6.411214762 | K33: 5775.24426 | L33: 419.98509 | M33: 5355.25917 | N33: Cumple
A34: 26 | B34: 010205 | C34: AMAZONAS | D34: MUNICIPALIDAD DISTRITAL DE IMAZA | E34: 6579.15052 | F34: 8156.69282 | G34: 2.1932 | H34: 80.65953525 | I34: Cumple | J34: 80.65953525 | K34: 6484.27465 | L34: 3451.7649 | M34: 3032.50975 | N34: Cumple
A35: 27 | B35: 010206 | C35: AMAZONAS | D35: MUNICIPALIDAD DISTRITAL DE LA PECA | E35: 166.45484 | F35: 2228.21993 | G35: 0.00127 | H35: 7.47030568 | I35: Cumple | J35: 7.47030568 | K35: 1664.55479 | L35: 1127.14657 | M35: 537.40822 | N35: Cumple
A36: 28 | B36: 010301 | C36: AMAZONAS | D36: MUNICIPALIDAD PROVINCIAL DE BONGARA - JUMBILLA | E36: 1705.5086 | F36: 3159.8858 | G36: 0.00029 | H36: 53.97374171 | I36: Cumple | J36: 53.97374171 | K36: 2200.41659 | L36: 1494.75237 | M36: 705.66422 | N36: Cumple
A37: 29 | B37: 010302 | C37: AMAZONAS | D37: MUNICIPALIDAD DISTRITAL DE CHISQUILLA | E37: 26.82004 | F37: 1009.526195 | G37: 2e-05 | H37: 2.656695798 | I37: Cumple | J37: 2.656695798 | K37: 324.88286 | L37: 412.11937 | M37: -87.23651 | N37: No Cumple
A38: 30 | B38: 010303 | C38: AMAZONAS | D38: MUNICIPALIDAD DISTRITAL DE CHURUJA | E38: 6.51226 | F38: 3586.419195 | G38: 2e-05 | H38: 0.181581116 | I38: Cumple | J38: 0.181581116 | K38: 348.32039 | L38: 192.61252 | M38: 155.70787 | N38: Cumple
A39: 31 | B39: 010304 | C39: AMAZONAS | D39: MUNICIPALIDAD DISTRITAL DE COROSHA | E39: 140.03374 | F39: 752.475865 | G39: 0.00018 | H39: 18.60973176 | I39: Cumple | J39: 18.60973176 | K39: 328.18875 | L39: 277.60408 | M39: 50.58467 | N39: Cumple
A40: 32 | B40: 010305 | C40: AMAZONAS | D40: MUNICIPALIDAD DISTRITAL DE CUISPES | E40: 20.24362 | F40: 569.05158 | G40: 0.00012 | H40: 3.557431472 | I40: Cumple | J40: 3.557431472 | K40: 391.84105 | L40: 177.12084 | M40: 214.72021 | N40: Cumple
A41: 33 | B41: 010306 | C41: AMAZONAS | D41: MUNICIPALIDAD DISTRITAL DE FLORIDA | E41: 376.6584 | F41: 1935.164548 | G41: 0.00122 | H41: 19.46389523 | I41: Cumple | J41: 19.46389523 | K41: 1555.01881 | L41: 1168.78984 | M41: 386.22897 | N41: Cumple
A42: 34 | B42: 010307 | C42: AMAZONAS | D42: MUNICIPALIDAD DISTRITAL DE JAZAN | E42: 1046.51766 | F42: 2389.539247 | G42: 0.00078 | H42: 43.7957929 | I42: Cumple | J42: 43.7957929 | K42: 1816.3213 | L42: 1278.31343 | M42: 538.00787 | N42: Cumple
A43: 35 | B43: 010308 | C43: AMAZONAS | D43: MUNICIPALIDAD DISTRITAL DE RECTA | E43: 16.51 | F43: 431.7747775 | G43: 1e-05 | H43: 3.823752767 | I43: Cumple | J43: 3.823752767 | K43: 321.63187 | L43: 185.8923 | M43: 135.73957 | N43: Cumple
A44: 36 | B44: 010309 | C44: AMAZONAS | D44: MUNICIPALIDAD DISTRITAL DE SAN CARLOS | E44: 55.14706 | F44: 1666.229392 | G44: 1e-05 | H44: 3.309691946 | I44: Cumple | J44: 3.309691946 | K44: 314.33348 | L44: 223.47247 | M44: 90.86101 | N44: Cumple
A45: 37 | B45: 010310 | C45: AMAZONAS | D45: MUNICIPALIDAD DISTRITAL DE SHIPASBAMBA | E45: 13.22011 | F45: 716.7721875 | G45: 0.00029 | H45: 1.844394946 | I45: Cumple | J45: 1.844394946 | K45: 500.67115 | L45: 306.95721 | M45: 193.71394 | N45: Cumple
A46: 38 | B46: 010311 | C46: AMAZONAS | D46: MUNICIPALIDAD DISTRITAL DE VALERA | E46: 70.44122 | F46: 613.58208 | G46: 0.00021 | H46: 11.4803255 | I46: Cumple | J46: 11.4803255 | K46: 481.76278 | L46: 263.45614 | M46: 218.30664 | N46: Cumple
A47: 39 | B47: 010312 | C47: AMAZONAS | D47: MUNICIPALIDAD DISTRITAL DE YAMBRASBAMBA | E47: 526.82605 | F47: 2518.869438 | G47: 0.00145 | H47: 20.91517894 | I47: Cumple | J47: 20.91517894 | K47: 2492.77912 | L47: 1232.50568 | M47: 1260.27344 | N47: Cumple
A48: 40 | B48: 010401 | C48: AMAZONAS | D48: MUNICIPALIDAD PROVINCIAL DE CONDORCANQUI - NIEVA | E48: 1196.07533 | F48: 16732.21104 | G48: 2.38616 | H48: 7.148339973 | I48: Cumple | J48: 7.148339973 | K48: 13242.60719 | L48: 8416.78054 | M48: 4825.82665 | N48: Cumple
A49: 41 | B49: 010402 | C49: AMAZONAS | D49: MUNICIPALIDAD DISTRITAL DE EL CENEPA | E49: 600.25045 | F49: 4088.76121 | G49: 0.60467 | H49: 14.68049659 | I49: Cumple | J49: 14.68049659 | K49: 3056.40434 | L49: 2206.59135 | M49: 849.81299 | N49: Cumple
A50: 42 | B50: 010403 | C50: AMAZONAS | D50: MUNICIPALIDAD DISTRITAL DE RIO SANTIAGO | E50: 2072.09547 | F50: 6983.853825 | G50: 1.03501 | H50: 29.66980011 | I50: Cumple | J50: 29.66980011 | K50: 6236.86367 | L50: 3857.6425 | M50: 2379.22117 | N50: Cumple
A51: 43 | B51: 010501 | C51: AMAZONAS | D51: MUNICIPALIDAD PROVINCIAL DE LUYA - LAMUD | E51: 2248.02841 | F51: 6025.37893 | G51: 0.00021 | H51: 37.30932836 | I51: Cumple | J51: 37.30932836 | K51: 4357.73155 | L51: 2164.90512 | M51: 2192.82643 | N51: Cumple
A52: 44 | B52: 010502 | C52: AMAZONAS | D52: MUNICIPALIDAD DISTRITAL DE CAMPORREDONDO | E52: 60.05655 | F52: 1995.763993 | G52: 0.00126 | H52: 3.009200999 | I52: Cumple | J52: 3.009200999 | K52: 1308.52443 | L52: 889.34001 | M52: 419.18442 | N52: Cumple
A53: 45 | B53: 010503 | C53: AMAZONAS | D53: MUNICIPALIDAD DISTRITAL DE COCABAMBA | E53: 357.93725 | F53: 961.166335 | G53: 0.00041 | H53: 37.23988627 | I53: Cumple | J53: 37.23988627 | K53: 713.75354 | L53: 299.46116 | M53: 414.29238 | N53: Cumple
A54: 46 | B54: 010504 | C54: AMAZONAS | D54: MUNICIPALIDAD DISTRITAL DE COLCAMAR | E54: 46.63015 | F54: 707.55216 | G54: 0.00024 | H54: 6.590348053 | I54: Cumple | J54: 6.590348053 | K54: 541.61403 | L54: 267.31255 | M54: 274.30148 | N54: Cumple
A55: 47 | B55: 010505 | C55: AMAZONAS | D55: MUNICIPALIDAD DISTRITAL DE CONILA | E55: 391.06812 | F55: 927.3481225 | G55: 0.00032 | H55: 42.17058411 | I55: Cumple | J55: 42.17058411 | K55: 478.95889 | L55: 362.39294 | M55: 116.56595 | N55: Cumple
A56: 48 | B56: 010506 | C56: AMAZONAS | D56: MUNICIPALIDAD DISTRITAL DE INGUILPATA | E56: 27.50933 | F56: 554.116855 | G56: 4e-05 | H56: 4.964535865 | I56: Cumple | J56: 4.964535865 | K56: 348.24456 | L56: 208.96474 | M56: 139.27982 | N56: Cumple
A57: 49 | B57: 010507 | C57: AMAZONAS | D57: MUNICIPALIDAD DISTRITAL DE LONGUITA | E57: 8.97594 | F57: 600.0214075 | G57: 0.00021 | H57: 1.495936626 | I57: Cumple | J57: 1.495936626 | K57: 363.97153 | L57: 286.95706 | M57: 77.01447 | N57: Cumple
A58: 50 | B58: 010508 | C58: AMAZONAS | D58: MUNICIPALIDAD DISTRITAL DE LONYA CHICO | E58: 95.47501 | F58: 710.69617 | G58: 8e-05 | H58: 13.43401217 | I58: Cumple | J58: 13.43401217 | K58: 415.46583 | L58: 256.83518 | M58: 158.63065 | N58: Cumple
A59: 51 | B59: 010509 | C59: AMAZONAS | D59: MUNICIPALIDAD DISTRITAL DE LUYA | E59: 340.28788 | F59: 1249.340948 | G59: 0.00041 | H59: 27.2373911 | I59: Cumple | J59: 27.2373911 | K59: 1050.40083 | L59: 606.13293 | M59: 444.2679 | N59: Cumple
A60: 52 | B60: 010510 | C60: AMAZONAS | D60: MUNICIPALIDAD DISTRITAL DE LUYA VIEJO | E60: 50.91212 | F60: 499.158255 | G60: 6e-05 | H60: 10.19959492 | I60: Cumple | J60: 10.19959492 | K60: 347.20607 | L60: 199.30608 | M60: 147.89999 | N60: Cumple
A61: 53 | B61: 010511 | C61: AMAZONAS | D61: MUNICIPALIDAD DISTRITAL DE MARIA | E61: 23.27568 | F61: 566.71604 | G61: 6e-05 | H61: 4.107115091 | I61: Cumple | J61: 4.107115091 | K61: 347.32154 | L61: 189.89974 | M61: 157.4218 | N61: Cumple
A62: 54 | B62: 010512 | C62: AMAZONAS | D62: MUNICIPALIDAD DISTRITAL DE OCALLI | E62: 107.30416 | F62: 1300.307833 | G62: 0.00082 | H62: 8.252212078 | I62: Cumple | J62: 8.252212078 | K62: 951.70362 | L62: 539.31669 | M62: 412.38693 | N62: Cumple
A63: 55 | B63: 010513 | C63: AMAZONAS | D63: MUNICIPALIDAD DISTRITAL DE OCUMAL | E63: 54.65578 | F63: 1411.552653 | G63: 0.00078 | H63: 3.87203268 | I63: Cumple | J63: 3.87203268 | K63: 1041.26146 | L63: 438.26471 | M63: 602.99675 | N63: Cumple
A64: 56 | B64: 010514 | C64: AMAZONAS | D64: MUNICIPALIDAD DISTRITAL DE PIZUQUIA | E64: 2003.47164 | F64: 2110.712415 | G64: 0.00095 | H64: 94.91921428 | I64: Cumple | J64: 94.91921428 | K64: 1533.1287 | L64: 836.73323 | M64: 696.39547 | N64: Cumple
A65: 57 | B65: 010515 | C65: AMAZONAS | D65: MUNICIPALIDAD DISTRITAL DE PROVIDENCIA | E65: 100.77996 | F65: 633.720555 | G65: 0.00023 | H65: 15.90290219 | I65: Cumple | J65: 15.90290219 | K65: 420.89591 | L65: 321.96391 | M65: 98.932 | N65: Cumple
A66: 58 | B66: 010516 | C66: AMAZONAS | D66: MUNICIPALIDAD DISTRITAL DE SAN CRISTOBAL DE OLTO | E66: 27.49535 | F66: 553.184535 | G66: 0.00012 | H66: 4.970375754 | I66: Cumple | J66: 4.970375754 | K66: 355.62307 | L66: 202.70243 | M66: 152.92064 | N66: Cumple
A67: 59 | B67: 010517 | C67: AMAZONAS | D67: MUNICIPALIDAD DISTRITAL DE SAN FRANCISCO DE YESO | E67: 39.67446 | F67: 522.98192 | G67: 0.00014 | H67: 7.586201068 | I67: Cumple | J67: 7.586201068 | K67: 350.95598 | L67: 226.9559 | M67: 124.00008 | N67: Cumple
A68: 60 | B68: 010518 | C68: AMAZONAS | D68: MUNICIPALIDAD DISTRITAL DE SAN JERONIMO DE PACLAS | E68: 37.7659 | F68: 536.2671425 | G68: 0.00014 | H68: 7.042366949 | I68: Cumple | J68: 7.042366949 | K68: 334.28027 | L68: 182.27361 | M68: 152.00666 | N68: Cumple
A69: 61 | B69: 010519 | C69: AMAZONAS | D69: MUNICIPALIDAD DISTRITAL DE SAN JUAN DE LOPECANCHA | E69: 74.93778 | F69: 652.980025 | G69: 8e-05 | H69: 11.47627448 | I69: Cumple | J69: 11.47627448 | K69: 351.99974 | L69: 170.8237 | M69: 181.17604 | N69: Cumple
A70: 62 | B70: 010520 | C70: AMAZONAS | D70: MUNICIPALIDAD DISTRITAL DE SANTA CATALINA | E70: 51.59194 | F70: 796.7951425 | G70: 0.00023 | H70: 6.474931541 | I70: Cumple | J70: 6.474931541 | K70: 499.01591 | L70: 285.60032 | M70: 213.41559 | N70: Cumple
A71: 63 | B71: 010521 | C71: AMAZONAS | D71: MUNICIPALIDAD DISTRITAL DE SANTO TOMAS | E71: 68.37071 | F71: 1312.757987 | G71: 0.00057 | H71: 5.208173224 | I71: Cumple | J71: 5.208173224 | K71: 900.23014 | L71: 625.84031 | M71: 274.38983 | N71: Cumple
A72: 64 | B72: 010522 | C72: AMAZONAS | D72: MUNICIPALIDAD DISTRITAL DE TINGO | E72: 47.72496 | F72: 583.73143 | G72: 0.00014 | H72: 8.175842099 | I72: Cumple | J72: 8.175842099 | K72: 378.61136 | L72: 432.56066 | M72: -53.9493 | N72: No Cumple
A73: 65 | B73: 010523 | C73: AMAZONAS | D73: MUNICIPALIDAD DISTRITAL DE TRITA | E73: 10.11122 | F73: 508.347565 | G73: 0.00021 | H73: 1.989036773 | I73: Cumple | J73: 1.989036773 | K73: 351.01418 | L73: 235.04257 | M73: 115.97161 | N73: Cumple
A74: 66 | B74: 010601 | C74: AMAZONAS | D74: MUNICIPALIDAD PROVINCIAL DE RODRIGUEZ DE MENDOZA - SAN NICOLAS | E74: 5117.62784 | F74: 5746.534305 | G74: 0.00029 | H74: 89.05589993 | I74: Cumple | J74: 89.05589993 | K74: 2900.47416 | L74: 2367.691 | M74: 532.78316 | N74: Cumple
A75: 67 | B75: 010602 | C75: AMAZONAS | D75: MUNICIPALIDAD DISTRITAL DE CHIRIMOTO | E75: 2095.26657 | F75: 905.3907025 | G75: 0.00032 | H75: 231.4212598 | I75: No Cumple | J75: 231.4212598 | K75: 488.13734 | L75: 313.17695 | M75: 174.96039 | N75: Cumple
A76: 68 | B76: 010603 | C76: AMAZONAS | D76: MUNICIPALIDAD DISTRITAL DE COCHAMAL | E76: 8.59298 | F76: 454.991715 | G76: 8e-05 | H76: 1.888601422 | I76: Cumple | J76: 1.888601422 | K76: 347.72634 | L76: 215.91968 | M76: 131.80666 | N76: Cumple
A77: 69 | B77: 010604 | C77: AMAZONAS | D77: MUNICIPALIDAD DISTRITAL DE HUAMBO | E77: 181.37503 | F77: 725.7712425 | G77: 0.00041 | H77: 24.99066088 | I77: Cumple | J77: 24.99066088 | K77: 560.73478 | L77: 371.81472 | M77: 188.92006 | N77: Cumple
A78: 70 | B78: 010605 | C78: AMAZONAS | D78: MUNICIPALIDAD DISTRITAL DE LIMABAMBA | E78: 2207.95968 | F78: 973.5744575 | G78: 0.00049 | H78: 226.7889901 | I78: No Cumple | J78: 226.7889901 | K78: 691.62195 | L78: 398.16909 | M78: 293.45286 | N78: Cumple
A79: 71 | B79: 010606 | C79: AMAZONAS | D79: MUNICIPALIDAD DISTRITAL DE LONGAR | E79: 88.29808 | F79: 547.52106 | G79: 0.00017 | H79: 16.12688286 | I79: Cumple | J79: 16.12688286 | K79: 369.25621 | L79: 308.24362 | M79: 61.01259 | N79: Cumple
A80: 72 | B80: 010607 | C80: AMAZONAS | D80: MUNICIPALIDAD DISTRITAL DE MARISCAL BENAVIDES | E80: 759.93128 | F80: 1002.941445 | G80: 8e-05 | H80: 75.77025397 | I80: Cumple | J80: 75.77025397 | K80: 383.55089 | L80: 260.46926 | M80: 123.08163 | N80: Cumple
A81: 73 | B81: 010608 | C81: AMAZONAS | D81: MUNICIPALIDAD DISTRITAL DE MILPUC | E81: 97.83723 | F81: 507.1150425 | G81: 0.0001 | H81: 19.2929063 | I81: Cumple | J81: 19.2929063 | K81: 346.36367 | L81: 214.7287 | M81: 131.63497 | N81: Cumple
A82: 74 | B82: 010609 | C82: AMAZONAS | D82: MUNICIPALIDAD DISTRITAL DE OMIA | E82: 109.81517 | F82: 3979.942813 | G82: 0.0015 | H82: 2.759214772 | I82: Cumple | J82: 2.759214772 | K82: 3677.54277 | L82: 1555.45582 | M82: 2122.08695 | N82: Cumple
A83: 75 | B83: 010610 | C83: AMAZONAS | D83: MUNICIPALIDAD DISTRITAL DE SANTA ROSA | E83: 44.64216 | F83: 507.6491875 | G83: 6e-05 | H83: 8.793899626 | I83: Cumple | J83: 8.793899626 | K83: 381.18138 | L83: 241.49708 | M83: 139.6843 | N83: Cumple
A84: 76 | B84: 010611 | C84: AMAZONAS | D84: MUNICIPALIDAD DISTRITAL DE TOTORA | E84: 51.36117 | F84: 556.8195275 | G84: 6e-05 | H84: 9.224024565 | I84: Cumple | J84: 9.224024565 | K84: 371.02393 | L84: 198.91857 | M84: 172.10536 | N84: Cumple
A85: 77 | B85: 010612 | C85: AMAZONAS | D85: MUNICIPALIDAD DISTRITAL DE VISTA ALEGRE | E85: 52.52734 | F85: 1129.148478 | G85: 0.00061 | H85: 4.651942685 | I85: Cumple | J85: 4.651942685 | K85: 793.95319 | L85: 347.41578 | M85: 446.53741 | N85: Cumple
A86: 78 | B86: 010701 | C86: AMAZONAS | D86: MUNICIPALIDAD PROVINCIA DE UTCUBAMBA - BAGUA GRANDE | E86: 3422.04716 | F86: 25719.85105 | G86: 0.98475 | H86: 13.30508156 | I86: Cumple | J86: 13.30508156 | K86: 19459.66353 | L86: 10983.27738 | M86: 8476.38615 | N86: Cumple
A87: 79 | B87: 010702 | C87: AMAZONAS | D87: MUNICIPALIDAD DISTRITAL DE CAJARURO | E87: 1397.93347 | F87: 9825.860905 | G87: 0.79954 | H87: 14.22708385 | I87: Cumple | J87: 14.22708385 | K87: 7673.79821 | L87: 3937.07887 | M87: 3736.71934 | N87: Cumple
A88: 80 | B88: 010703 | C88: AMAZONAS | D88: MUNICIPALIDAD DISTRITAL DE CUMBA | E88: 76.82849 | F88: 3301.99406 | G88: 0.00157 | H88: 2.326730109 | I88: Cumple | J88: 2.326730109 | K88: 2624.01053 | L88: 1373.22729 | M88: 1250.78324 | N88: Cumple
A89: 81 | B89: 010704 | C89: AMAZONAS | D89: MUNICIPALIDAD DISTRITAL DE EL MILAGRO | E89: 305.80737 | F89: 2649.563118 | G89: 0.0009 | H89: 11.54180355 | I89: Cumple | J89: 11.54180355 | K89: 2131.65947 | L89: 1594.64042 | M89: 537.01905 | N89: Cumple
A90: 82 | B90: 010705 | C90: AMAZONAS | D90: MUNICIPALIDAD DISTRITAL DE JAMALCA | E90: 582.821 | F90: 3507.206925 | G90: 0.00138 | H90: 16.61781048 | I90: Cumple | J90: 16.61781048 | K90: 2440.7834 | L90: 1333.29741 | M90: 1107.48599 | N90: Cumple
A91: 83 | B91: 010706 | C91: AMAZONAS | D91: MUNICIPALIDAD DISTRITAL DE LONYA GRANDE | E91: 263.98276 | F91: 3381.550727 | G91: 0.00179 | H91: 7.806559217 | I91: Cumple | J91: 7.806559217 | K91: 2668.16639 | L91: 1353.41432 | M91: 1314.75207 | N91: Cumple
A92: 84 | B92: 010707 | C92: AMAZONAS | D92: MUNICIPALIDAD DISTRITAL DE YAMON | E92: 8456.55589 | F92: 1525.000965 | G92: 0.00044 | H92: 554.5279042 | I92: No Cumple | J92: 554.5279042 | K92: 1061.9591 | L92: 762.35649 | M92: 299.60261 | N92: Cumple
A93: 85 | B93: 020101 | C93: ANCASH | D93: MUNICIPALIDAD PROVINCIAL DE HUARAZ | E93: 19546.0453 | F93: 35917.88308 | G93: 26591.10715 | H93: 54.41870073 | I93: Cumple | J93: 54.41870073 | K93: 35740.25417 | L93: 20356.33183 | M93: 15383.92234 | N93: Cumple
A94: 86 | B94: 020102 | C94: ANCASH | D94: MUNICIPALIDAD DISTRITAL DE COCHABAMBA | E94: 183.09807 | F94: 1819.96513 | G94: 2558.84951 | H94: 7.155484107 | I94: Cumple | J94: 7.155484107 | K94: 2616.6651 | L94: 625.76625 | M94: 1990.89885 | N94: Cumple
A95: 87 | B95: 020103 | C95: ANCASH | D95: MUNICIPALIDAD DISTRITAL DE COLCABAMBA | E95: 61.57227 | F95: 809.1782375 | G95: 773.51017 | H95: 7.609234548 | I95: Cumple | J95: 7.609234548 | K95: 962.17188 | L95: 400.72735 | M95: 561.44453 | N95: Cumple
A96: 88 | B96: 020104 | C96: ANCASH | D96: MUNICIPALIDAD DISTRITAL DE HUANCHAY | E96: 65.55881 | F96: 1670.938138 | G96: 2226.51157 | H96: 2.944463028 | I96: Cumple | J96: 2.944463028 | K96: 2242.72042 | L96: 481.91849 | M96: 1760.80193 | N96: Cumple
A97: 89 | B97: 020105 | C97: ANCASH | D97: MUNICIPALIDAD DISTRITAL DE INDEPENDENCIA | E97: 12361.40405 | F97: 30444.49531 | G97: 39138.78392 | H97: 31.58351592 | I97: Cumple | J97: 31.58351592 | K97: 42285.7798 | L97: 9600.36583 | M97: 32685.41397 | N97: Cumple
A98: 90 | B98: 020106 | C98: ANCASH | D98: MUNICIPALIDAD DISTRITAL DE JANGAS | E98: 283.8925 | F98: 3533.94551 | G98: 6326.31549 | H98: 4.487485653 | I98: Cumple | J98: 4.487485653 | K98: 4642.75495 | L98: 1185.72142 | M98: 3457.03353 | N98: Cumple
A99: 91 | B99: 020107 | C99: ANCASH | D99: MUNICIPALIDAD DISTRITAL DE LA LIBERTAD | E99: 51.34631 | F99: 1052.59489 | G99: 1153.4342 | H99: 4.451602874 | I99: Cumple | J99: 4.451602874 | K99: 399.62539 | L99: 514.62903 | M99: -115.00364 | N99: No Cumple
A100: 92 | B100: 020108 | C100: ANCASH | D100: MUNICIPALIDAD DISTRITAL DE OLLEROS | E100: 854.15512 | F100: 1383.784595 | G100: 1730.49839 | H100: 49.35890868 | I100: Cumple | J100: 49.35890868 | K100: 1818.09074 | L100: 544.72061 | M100: 1273.37013 | N100: Cumple
A101: 93 | B101: 020109 | C101: ANCASH | D101: MUNICIPALIDAD DISTRITAL DE PAMPAS | E101: 72.96025 | F101: 1489.429195 | G101: 1499.92944 | H101: 4.864245481 | I101: Cumple | J101: 4.864245481 | K101: 1638.19959 | L101: 455.40905 | M101: 1182.79054 | N101: Cumple
A102: 94 | B102: 020110 | C102: ANCASH | D102: MUNICIPALIDAD DISTRITAL DE PARIACOTO | E102: 319.00465 | F102: 3148.414452 | G102: 3968.18645 | H102: 8.039053961 | I102: Cumple | J102: 8.039053961 | K102: 3914.36367 | L102: 2583.6493 | M102: 1330.71437 | N102: Cumple
A103: 95 | B103: 020111 | C103: ANCASH | D103: MUNICIPALIDAD DISTRITAL DE PIRA | E103: 622.0694 | F103: 3120.370107 | G103: 4807.0046 | H103: 12.94089463 | I103: Cumple | J103: 12.94089463 | K103: 4479.75264 | L103: 766.94213 | M103: 3712.81051 | N103: Cumple
A104: 96 | B104: 020112 | C104: ANCASH | D104: MUNICIPALIDAD DISTRITAL DE TARICA | E104: 700.41481 | F104: 3187.108418 | G104: 4200.26662 | H104: 16.67548452 | I104: Cumple | J104: 16.67548452 | K104: 4275.62594 | L104: 1233.92798 | M104: 3041.69796 | N104: Cumple
A105: 97 | B105: 020201 | C105: ANCASH | D105: MUNICIPALIDAD PROVINCIAL DE AIJA | E105: 126.70851 | F105: 2741.144673 | G105: 1404.19305 | H105: 4.622467076 | I105: Cumple | J105: 4.622467076 | K105: 3093.82252 | L105: 955.77953 | M105: 2138.04299 | N105: Cumple
A106: 98 | B106: 020202 | C106: ANCASH | D106: MUNICIPALIDAD DISTRITAL DE CORIS | E106: 94.21239 | F106: 1948.052283 | G106: 2579.49563 | H106: 3.652357031 | I106: Cumple | J106: 3.652357031 | K106: 2965.20855 | L106: 661.08154 | M106: 2304.12701 | N106: Cumple
A107: 99 | B107: 020203 | C107: ANCASH | D107: MUNICIPALIDAD DISTRITAL DE HUACLLAN | E107: 90.96556 | F107: 693.57677 | G107: 760.64043 | H107: 11.95907507 | I107: Cumple | J107: 11.95907507 | K107: 366.18474 | L107: 334.787 | M107: 31.39774 | N107: Cumple
A108: 100 | B108: 020204 | C108: ANCASH | D108: MUNICIPALIDAD DISTRITAL DE LA MERCED | E108: 52.9773 | F108: 1607.332127 | G108: 2731.11341 | H108: 1.939769319 | I108: Cumple | J108: 1.939769319 | K108: 666.34719 | L108: 831.47799 | M108: -165.1308 | N108: No Cumple
A109: 101 | B109: 020205 | C109: ANCASH | D109: MUNICIPALIDAD DISTRITAL DE SUCCHA | E109: 43.45276 | F109: 1002.363522 | G109: 782.72367 | H109: 4.335030059 | I109: Cumple | J109: 4.335030059 | K109: 1106.46046 | L109: 325.05605 | M109: 781.40441 | N109: Cumple
A110: 102 | B110: 020301 | C110: ANCASH | D110: MUNICIPALIDAD PROVINCIAL DE ANTONIO RAYMONDI - LLAMELLIN | E110: 286.49448 | F110: 3696.872145 | G110: 2505.85749 | H110: 7.749645342 | I110: Cumple | J110: 7.749645342 | K110: 4268.16711 | L110: 1545.07363 | M110: 2723.09348 | N110: Cumple
A111: 103 | B111: 020302 | C111: ANCASH | D111: MUNICIPALIDAD DISTRITAL DE ACSO | E111: 49.75044 | F111: 1499.35854 | G111: 1711.4275 | H111: 2.906955743 | I111: Cumple | J111: 2.906955743 | K111: 1770.97457 | L111: 829.17078 | M111: 941.80379 | N111: Cumple
A112: 104 | B112: 020303 | C112: ANCASH | D112: MUNICIPALIDAD DISTRITAL DE CHACCHO | E112: 494.20126 | F112: 1235.929482 | G112: 1573.94675 | H112: 31.39885514 | I112: Cumple | J112: 31.39885514 | K112: 1580.94353 | L112: 310.11414 | M112: 1270.82939 | N112: Cumple
A113: 105 | B113: 020304 | C113: ANCASH | D113: MUNICIPALIDAD DISTRITAL DE CHINGAS | E113: 60.67813 | F113: 947.0924725 | G113: 1531.09463 | H113: 3.963055504 | I113: Cumple | J113: 3.963055504 | K113: 460.78201 | L113: 544.5949 | M113: -83.81289 | N113: No Cumple
A114: 106 | B114: 020305 | C114: ANCASH | D114: MUNICIPALIDAD DISTRITAL DE MIRGAS | E114: 182.13417 | F114: 3570.384373 | G114: 5335.48871 | H114: 3.413636124 | I114: Cumple | J114: 3.413636124 | K114: 5245.75613 | L114: 1160.90979 | M114: 4084.84634 | N114: Cumple
A115: 107 | B115: 020306 | C115: ANCASH | D115: MUNICIPALIDAD DISTRITAL DE SAN JUAN DE RONTOY | E115: 15.98896 | F115: 897.45547 | G115: 1517.35902 | H115: 1.053736116 | I115: Cumple | J115: 1.053736116 | K115: 427.6408 | L115: 521.38587 | M115: -93.74507 | N115: No Cumple
A116: 108 | B116: 020401 | C116: ANCASH | D116: MUNICIPALIDAD PROVINCIAL DE ASUNCION - CHACAS | E116: 351.97773 | F116: 3621.915937 | G116: 3932.11294 | H116: 8.951363691 | I116: Cumple | J116: 8.951363691 | K116: 2536.57771 | L116: 1757.49196 | M116: 779.08575 | N116: Cumple
A117: 109 | B117: 020402 | C117: ANCASH | D117: MUNICIPALIDAD DISTRITAL DE ACOCHACA | E117: 72.39179 | F117: 2341.81632 | G117: 3146.17545 | H117: 2.30094574 | I117: Cumple | J117: 2.30094574 | K117: 3138.66965 | L117: 1174.59671 | M117: 1964.07294 | N117: Cumple
A118: 110 | B118: 020501 | C118: ANCASH | D118: MUNICIPALIDAD PROVINCIAL DE BOLOGNESI - CHIQUIAN | E118: 1399.12392 | F118: 4267.063692 | G118: 1885.82364 | H118: 32.78891577 | I118: Cumple | J118: 32.78891577 | K118: 4011.60915 | L118: 1896.45693 | M118: 2115.15222 | N118: Cumple
A119: 111 | B119: 020502 | C119: ANCASH | D119: MUNICIPALIDAD DISTRITAL DE ABELARDO PARDO LAZAMETA | E119: 146.70373 | F119: 1482.97245 | G119: 1531.50225 | H119: 9.579073749 | I119: Cumple | J119: 9.579073749 | K119: 1830.25268 | L119: 321.11655 | M119: 1509.13613 | N119: Cumple
A120: 112 | B120: 020503 | C120: ANCASH | D120: MUNICIPALIDAD DISTRITAL DE ANTONIO RAYMONDI | E120: 938.57111 | F120: 1210.24784 | G120: 1021.77972 | H120: 77.55197564 | I120: Cumple | J120: 77.55197564 | K120: 1372.49721 | L120: 487.65694 | M120: 884.84027 | N120: Cumple
A121: 113 | B121: 020504 | C121: ANCASH | D121: MUNICIPALIDAD DISTRITAL DE AQUIA | E121: 345.60867 | F121: 2430.755713 | G121: 2521.55822 | H121: 13.70615468 | I121: Cumple | J121: 13.70615468 | K121: 3097.17121 | L121: 405.90629 | M121: 2691.26492 | N121: Cumple
A122: 114 | B122: 020505 | C122: ANCASH | D122: MUNICIPALIDAD DISTRITAL DE CAJACAY | E122: 38.13696 | F122: 1470.396355 | G122: 1566.1308 | H122: 2.435106953 | I122: Cumple | J122: 2.435106953 | K122: 1909.65266 | L122: 470.75851 | M122: 1438.89415 | N122: Cumple
A123: 115 | B123: 020506 | C123: ANCASH | D123: MUNICIPALIDAD DISTRITAL DE CANIS | E123: 133.48323 | F123: 1266.011667 | G123: 1574.48507 | H123: 8.477897475 | I123: Cumple | J123: 8.477897475 | K123: 1877.07994 | L123: 446.16852 | M123: 1430.91142 | N123: Cumple
A124: 116 | B124: 020507 | C124: ANCASH | D124: MUNICIPALIDAD DISTRITAL DE COLQUIOC | E124: 3141.10684 | F124: 2502.777088 | G124: 3267.66657 | H124: 96.12690808 | I124: Cumple | J124: 96.12690808 | K124: 3984.8661 | L124: 814.76437 | M124: 3170.10173 | N124: Cumple
A125: 117 | B125: 020508 | C125: ANCASH | D125: MUNICIPALIDAD DISTRITAL DE HUALLANCA | E125: 604.67758 | F125: 7272.754305 | G125: 8480.80374 | H125: 7.129956058 | I125: Cumple | J125: 7.129956058 | K125: 11781.2568 | L125: 4284.48033 | M125: 7496.77647 | N125: Cumple
A126: 118 | B126: 020509 | C126: ANCASH | D126: MUNICIPALIDAD DISTRITAL DE HUASTA | E126: 232.59793 | F126: 2711.716705 | G126: 3147.12607 | H126: 7.390804335 | I126: Cumple | J126: 7.390804335 | K126: 3739.18542 | L126: 461.77815 | M126: 3277.40727 | N126: Cumple
A127: 119 | B127: 020510 | C127: ANCASH | D127: MUNICIPALIDAD DISTRITAL DE HUAYLLACAYAN | E127: 1201.11429 | F127: 1204.375082 | G127: 1260.29079 | H127: 95.30453603 | I127: Cumple | J127: 95.30453603 | K127: 1573.94918 | L127: 369.39509 | M127: 1204.55409 | N127: Cumple
A128: 120 | B128: 020511 | C128: ANCASH | D128: MUNICIPALIDAD DISTRITAL DE LA PRIMAVERA | E128: 97.36336 | F128: 948.4807825 | G128: 842.10294 | H128: 10.26519059 | I128: Cumple | J128: 10.26519059 | K128: 1195.11193 | L128: 311.6482 | M128: 883.46373 | N128: Cumple
A129: 121 | B129: 020512 | C129: ANCASH | D129: MUNICIPALIDAD DISTRITAL DE MANGAS | E129: 73.55328 | F129: 828.2307175 | G129: 690.20223 | H129: 8.8807718 | I129: Cumple | J129: 8.8807718 | K129: 949.98555 | L129: 295.6904 | M129: 654.29515 | N129: Cumple
A130: 122 | B130: 020513 | C130: ANCASH | D130: MUNICIPALIDAD DISTRITAL DE PACLLON | E130: 3197.7568 | F130: 1310.700215 | G130: 1977.2477 | H130: 161.7276783 | I130: No Cumple | J130: 161.7276783 | K130: 884.34118 | L130: 401.74153 | M130: 482.59965 | N130: Cumple
A131: 123 | B131: 020514 | C131: ANCASH | D131: MUNICIPALIDAD DISTRITAL DE SAN MIGUEL DE CORPANQUI | E131: 58.68889 | F131: 1053.022778 | G131: 1217.60979 | H131: 4.820008059 | I131: Cumple | J131: 4.820008059 | K131: 1522.97352 | L131: 328.42167 | M131: 1194.55185 | N131: Cumple
A132: 124 | B132: 020515 | C132: ANCASH | D132: MUNICIPALIDAD DISTRITAL DE TICLLOS | E132: 15.4371 | F132: 1151.010132 | G132: 1317.84369 | H132: 1.171390819 | I132: Cumple | J132: 1.171390819 | K132: 1627.67196 | L132: 330.25729 | M132: 1297.41467 | N132: Cumple
A133: 125 | B133: 020601 | C133: ANCASH | D133: MUNICIPALIDAD PROVINCIAL DE CARHUAZ | E133: 1059.76592 | F133: 11679.58044 | G133: 10331.1638 | H133: 9.073664291 | I133: Cumple | J133: 9.073664291 | K133: 13500.21152 | L133: 4943.22585 | M133: 8556.98567 | N133: Cumple
A134: 126 | B134: 020602 | C134: ANCASH | D134: MUNICIPALIDAD DISTRITAL DE ACOPAMPA | E134: 145.10928 | F134: 1087.320688 | G134: 1610.77634 | H134: 9.008654796 | I134: Cumple | J134: 9.008654796 | K134: 450.34356 | L134: 467.85535 | M134: -17.51179 | N134: No Cumple
A135: 127 | B135: 020603 | C135: ANCASH | D135: MUNICIPALIDAD DISTRITAL DE AMASHCA | E135: 89.32135 | F135: 1269.171288 | G135: 1442.91971 | H135: 6.190320181 | I135: Cumple | J135: 6.190320181 | K135: 1556.30086 | L135: 417.04097 | M135: 1139.25989 | N135: Cumple
A136: 128 | B136: 020604 | C136: ANCASH | D136: MUNICIPALIDAD DISTRITAL DE ANTA | E136: 51.14841 | F136: 1672.075475 | G136: 1940.82779 | H136: 2.635391469 | I136: Cumple | J136: 2.635391469 | K136: 2410.58009 | L136: 656.48571 | M136: 1754.09438 | N136: Cumple
A137: 129 | B137: 020605 | C137: ANCASH | D137: MUNICIPALIDAD DISTRITAL DE ATAQUERO | E137: 116.38896 | F137: 1093.643497 | G137: 1298.23339 | H137: 8.965179982 | I137: Cumple | J137: 8.965179982 | K137: 1421.03442 | L137: 420.42911 | M137: 1000.60531 | N137: Cumple
A138: 130 | B138: 020606 | C138: ANCASH | D138: MUNICIPALIDAD DISTRITAL DE MARCARA | E138: 672.18533 | F138: 5597.246045 | G138: 7540.95889 | H138: 8.913791201 | I138: Cumple | J138: 8.913791201 | K138: 7787.46735 | L138: 2090.21207 | M138: 5697.25528 | N138: Cumple
A139: 131 | B139: 020607 | C139: ANCASH | D139: MUNICIPALIDAD DISTRITAL DE PARIAHUANCA | E139: 37.23831 | F139: 1185.170202 | G139: 1171.64344 | H139: 3.142022127 | I139: Cumple | J139: 3.142022127 | K139: 490.94802 | L139: 474.73808 | M139: 16.20994 | N139: Cumple
A140: 132 | B140: 020608 | C140: ANCASH | D140: MUNICIPALIDAD DISTRITAL DE SAN MIGUEL DE ACO | E140: 72.16549 | F140: 1382.222387 | G140: 1563.74048 | H140: 4.614927536 | I140: Cumple | J140: 4.614927536 | K140: 1619.00332 | L140: 429.87289 | M140: 1189.13043 | N140: Cumple
A141: 133 | B141: 020609 | C141: ANCASH | D141: MUNICIPALIDAD DISTRITAL DE SHILLA | E141: 82.60692 | F141: 2554.613553 | G141: 2362.12598 | H141: 3.233636646 | I141: Cumple | J141: 3.233636646 | K141: 2482.97575 | L141: 604.73892 | M141: 1878.23683 | N141: Cumple
A142: 134 | B142: 020610 | C142: ANCASH | D142: MUNICIPALIDAD DISTRITAL DE TINCO | E142: 2415.7813 | F142: 1924.996985 | G142: 1773.37805 | H142: 125.495329 | I142: No Cumple | J142: 125.495329 | K142: 566.31997 | L142: 609.75611 | M142: -43.43614 | N142: No Cumple
A143: 135 | B143: 020611 | C143: ANCASH | D143: MUNICIPALIDAD DISTRITAL DE YUNGAR | E143: 335.12762 | F143: 1851.59423 | G143: 2333.09138 | H143: 14.36410176 | I143: Cumple | J143: 14.36410176 | K143: 2444.85518 | L143: 848.31014 | M143: 1596.54504 | N143: Cumple
A144: 136 | B144: 020701 | C144: ANCASH | D144: MUNICIPALIDAD PROVINCIAL DE CARLOS FERMIN FITZCARRALD | E144: 21690.20715 | F144: 13197.20908 | G144: 13818.47123 | H144: 156.9653169 | I144: No Cumple | J144: 156.9653169 | K144: 16791.60726 | L144: 6034.57145 | M144: 10757.03581 | N144: Cumple
A145: 137 | B145: 020702 | C145: ANCASH | D145: MUNICIPALIDAD DISTRITAL DE SAN NICOLAS | E145: 89.72969 | F145: 3475.482217 | G145: 4020.68893 | H145: 2.231699382 | I145: Cumple | J145: 2.231699382 | K145: 4432.22075 | L145: 1336.9641 | M145: 3095.25665 | N145: Cumple
A146: 138 | B146: 020703 | C146: ANCASH | D146: MUNICIPALIDAD DISTRITAL DE YAUYA | E146: 810.13551 | F146: 5033.763405 | G146: 5928.16487 | H146: 13.66587347 | I146: Cumple | J146: 13.66587347 | K146: 6615.02785 | L146: 2263.84119 | M146: 4351.18666 | N146: Cumple
A147: 139 | B147: 020801 | C147: ANCASH | D147: MUNICIPALIDAD PROVINCIAL DE CASMA | E147: 5130.89061 | F147: 18044.84502 | G147: 17529.22744 | H147: 28.43410737 | I147: Cumple | J147: 28.43410737 | K147: 22719.97814 | L147: 12970.74109 | M147: 9749.23705 | N147: Cumple
A148: 140 | B148: 020802 | C148: ANCASH | D148: MUNICIPALIDAD DISTRITAL DE BUENA VISTA ALTA | E148: 2590.97392 | F148: 2229.804498 | G148: 3690.82616 | H148: 70.20037812 | I148: Cumple | J148: 70.20037812 | K148: 1092.14095 | L148: 1402.87472 | M148: -310.73377 | N148: No Cumple
A149: 141 | B149: 020803 | C149: ANCASH | D149: MUNICIPALIDAD DISTRITAL DE COMANDANTE NOEL | E149: 340.45511 | F149: 2065.445455 | G149: 2255.0766 | H149: 15.09727474 | I149: Cumple | J149: 15.09727474 | K149: 2664.07415 | L149: 1241.05189 | M149: 1423.02226 | N149: Cumple
A150: 142 | B150: 020804 | C150: ANCASH | D150: MUNICIPALIDAD DISTRITAL DE YAUTAN | E150: 531.36551 | F150: 4997.399275 | G150: 5118.61422 | H150: 10.38104235 | I150: Cumple | J150: 10.38104235 | K150: 8930.71417 | L150: 1839.68556 | M150: 7091.02861 | N150: Cumple
A151: 143 | B151: 020901 | C151: ANCASH | D151: MUNICIPALIDAD PROVINCIAL DE CORONGO | E151: 275.28879 | F151: 2361.99402 | G151: 879.91157 | H151: 11.65493171 | I151: Cumple | J151: 11.65493171 | K151: 1620.1701 | L151: 905.50597 | M151: 714.66413 | N151: Cumple
A152: 144 | B152: 020902 | C152: ANCASH | D152: MUNICIPALIDAD DISTRITAL DE ACO | E152: 247.02137 | F152: 720.9554825 | G152: 489.86425 | H152: 34.26305452 | I152: Cumple | J152: 34.26305452 | K152: 748.24487 | L152: 318.11123 | M152: 430.13364 | N152: Cumple
A153: 145 | B153: 020903 | C153: ANCASH | D153: MUNICIPALIDAD DISTRITAL DE BAMBAS | E153: 21.70584 | F153: 804.80369 | G153: 600.00081 | H153: 2.697035348 | I153: Cumple | J153: 2.697035348 | K153: 921.16506 | L153: 376.67755 | M153: 544.48751 | N153: Cumple
A154: 146 | B154: 020904 | C154: ANCASH | D154: MUNICIPALIDAD DISTRITAL DE CUSCA | E154: 40.67865 | F154: 2608.222615 | G154: 2519.96482 | H154: 1.559631059 | I154: Cumple | J154: 1.559631059 | K154: 2663.90818 | L154: 806.71805 | M154: 1857.19013 | N154: Cumple
A155: 147 | B155: 020905 | C155: ANCASH | D155: MUNICIPALIDAD DISTRITAL DE LA PAMPA | E155: 437.42091 | F155: 861.1107625 | G155: 558.11651 | H155: 50.79728753 | I155: Cumple | J155: 50.79728753 | K155: 781.5659 | L155: 301.65338 | M155: 479.91252 | N155: Cumple
A156: 148 | B156: 020906 | C156: ANCASH | D156: MUNICIPALIDAD DISTRITAL DE YANAC | E156: 36.26263 | F156: 777.4079125 | G156: 479.38718 | H156: 4.664556331 | I156: Cumple | J156: 4.664556331 | K156: 769.78915 | L156: 503.8472 | M156: 265.94195 | N156: Cumple
A157: 149 | B157: 020907 | C157: ANCASH | D157: MUNICIPALIDAD DISTRITAL DE YUPAN | E157: 87.2692 | F157: 653.5842125 | G157: 413.45893 | H157: 13.35240331 | I157: Cumple | J157: 13.35240331 | K157: 679.58329 | L157: 267.49391 | M157: 412.08938 | N157: Cumple
A158: 150 | B158: 021001 | C158: ANCASH | D158: MUNICIPALIDAD PROVINCIAL DE HUARI | E158: 8663.38703 | F158: 32015.62661 | G158: 51184.25685 | H158: 16.92588222 | I158: Cumple | J158: 16.92588222 | K158: 50957.59282 | L158: 6016.02032 | M158: 44941.5725 | N158: Cumple
A159: 151 | B159: 021002 | C159: ANCASH | D159: MUNICIPALIDAD DISTRITAL DE ANRA | E159: 883.1175 | F159: 3720.7344 | G159: 11067.0251 | H159: 7.979718958 | I159: Cumple | J159: 7.979718958 | K159: 1593.73131 | L159: 1403.45284 | M159: 190.27847 | N159: Cumple
A160: 152 | B160: 021003 | C160: ANCASH | D160: MUNICIPALIDAD DISTRITAL DE CAJAY | E160: 520.84839 | F160: 9457.32513 | G160: 18723.1223 | H160: 2.781845793 | I160: Cumple | J160: 2.781845793 | K160: 16816.54016 | L160: 1968.88695 | M160: 14847.65321 | N160: Cumple
A161: 153 | B161: 021004 | C161: ANCASH | D161: MUNICIPALIDAD DISTRITAL DE CHAVIN DE HUANTAR | E161: 4347.95478 | F161: 31003.64824 | G161: 61882.32792 | H161: 7.026165508 | I161: Cumple | J161: 7.026165508 | K161: 56763.32437 | L161: 5476.11851 | M161: 51287.20586 | N161: Cumple
A162: 154 | B162: 021005 | C162: ANCASH | D162: MUNICIPALIDAD DISTRITAL DE HUACACHI | E162: 911.23037 | F162: 4089.78543 | G162: 12820.17206 | H162: 7.107785806 | I162: Cumple | J162: 7.107785806 | K162: 1812.01983 | L162: 1330.05121 | M162: 481.96862 | N162: Cumple
A163: 155 | B163: 021006 | C163: ANCASH | D163: MUNICIPALIDAD DISTRITAL DE HUACCHIS | E163: 641.83324 | F163: 6879.648858 | G163: 13395.23019 | H163: 4.791505864 | I163: Cumple | J163: 4.791505864 | K163: 12250.30664 | L163: 2913.90398 | M163: 9336.40266 | N163: Cumple
A164: 156 | B164: 021007 | C164: ANCASH | D164: MUNICIPALIDAD DISTRITAL DE HUACHIS | E164: 8664.12823 | F164: 13963.09317 | G164: 27416.44628 | H164: 31.60193754 | I164: Cumple | J164: 31.60193754 | K164: 24606.54095 | L164: 4570.32859 | M164: 20036.21236 | N164: Cumple
A165: 157 | B165: 021008 | C165: ANCASH | D165: MUNICIPALIDAD DISTRITAL DE HUANTAR | E165: 4141.39836 | F165: 5343.97043 | G165: 17684.23848 | H165: 23.41858466 | I165: Cumple | J165: 23.41858466 | K165: 2508.54972 | L165: 1171.90949 | M165: 1336.64023 | N165: Cumple
A166: 158 | B166: 021009 | C166: ANCASH | D166: MUNICIPALIDAD DISTRITAL DE MASIN | E166: 318.99197 | F166: 5984.235675 | G166: 11556.21119 | H166: 2.760350817 | I166: Cumple | J166: 2.760350817 | K166: 10473.93935 | L166: 763.37502 | M166: 9710.56433 | N166: Cumple
A167: 159 | B167: 021010 | C167: ANCASH | D167: MUNICIPALIDAD DISTRITAL DE PAUCAS | E167: 111.36113 | F167: 6781.064178 | G167: 13255.5815 | H167: 0.8401074672 | I167: Cumple | J167: 0.8401074672 | K167: 12067.0114 | L167: 1430.79012 | M167: 10636.22128 | N167: Cumple
A168: 160 | B168: 021011 | C168: ANCASH | D168: MUNICIPALIDAD DISTRITAL DE PONTO | E168: 587.8449 | F168: 13051.42516 | G168: 25922.16688 | H168: 2.267730559 | I168: Cumple | J168: 2.267730559 | K168: 23475.98345 | L168: 2519.83267 | M168: 20956.15078 | N168: Cumple
A169: 161 | B169: 021012 | C169: ANCASH | D169: MUNICIPALIDAD DISTRITAL DE RAHUAPAMPA | E169: 529.39993 | F169: 2359.7287 | G169: 3861.94346 | H169: 13.70812223 | I169: Cumple | J169: 13.70812223 | K169: 3852.10753 | L169: 587.99027 | M169: 3264.11726 | N169: Cumple
A170: 162 | B170: 021013 | C170: ANCASH | D170: MUNICIPALIDAD DISTRITAL DE RAPAYAN | E170: 435.78443 | F170: 6841.10454 | G170: 13349.53881 | H170: 3.264415619 | I170: Cumple | J170: 3.264415619 | K170: 12321.21531 | L170: 3338.56392 | M170: 8982.65139 | N170: Cumple
A171: 163 | B171: 021014 | C171: ANCASH | D171: MUNICIPALIDAD DISTRITAL DE SAN MARCOS | E171: 8752.46316 | F171: 124048.5674 | G171: 284042.0894 | H171: 3.081396556 | I171: Cumple | J171: 3.081396556 | K171: 220422.975 | L171: 23224.58186 | M171: 197198.3932 | N171: Cumple
A172: 164 | B172: 021015 | C172: ANCASH | D172: MUNICIPALIDAD DISTRITAL DE SAN PEDRO DE CHANA | E172: 265.03067 | F172: 11488.39614 | G172: 21208.84503 | H172: 1.249623304 | I172: Cumple | J172: 1.249623304 | K172: 19741.54725 | L172: 1590.38547 | M172: 18151.16178 | N172: Cumple
A173: 165 | B173: 021016 | C173: ANCASH | D173: MUNICIPALIDAD DISTRITAL DE UCO | E173: 141.89037 | F173: 5643.46327 | G173: 10866.57469 | H173: 1.305750653 | I173: Cumple | J173: 1.305750653 | K173: 9905.84204 | L173: 727.12776 | M173: 9178.71428 | N173: Cumple
A174: 166 | B174: 021101 | C174: ANCASH | D174: MUNICIPALIDAD PROVINCIAL DE HUARMEY | E174: 22162.44254 | F174: 17481.75172 | G174: 15346.77702 | H174: 126.7747242 | I174: No Cumple | J174: 126.7747242 | K174: 19553.13741 | L174: 8030.61283 | M174: 11522.52458 | N174: Cumple
A175: 167 | B175: 021102 | C175: ANCASH | D175: MUNICIPALIDAD DISTRITAL DE COCHAPETI | E175: 8.41428 | F175: 891.1638325 | G175: 842.30999 | H175: 0.9441900236 | I175: Cumple | J175: 0.9441900236 | K175: 965.86257 | L175: 319.28725 | M175: 646.57532 | N175: Cumple
A176: 168 | B176: 021103 | C176: ANCASH | D176: MUNICIPALIDAD DISTRITAL DE CULEBRAS | E176: 4691.42008 | F176: 2916.195263 | G176: 4774.25868 | H176: 98.26489083 | I176: Cumple | J176: 98.26489083 | K176: 3446.32103 | L176: 885.55123 | M176: 2560.7698 | N176: Cumple
A177: 169 | B177: 021104 | C177: ANCASH | D177: MUNICIPALIDAD DISTRITAL DE HUAYAN | E177: 33.37342 | F177: 944.4374075 | G177: 1046.45725 | H177: 3.189181402 | I177: Cumple | J177: 3.189181402 | K177: 1093.84067 | L177: 600.15003 | M177: 493.69064 | N177: Cumple
A178: 170 | B178: 021105 | C178: ANCASH | D178: MUNICIPALIDAD DISTRITAL DE MALVAS | E178: 295.03764 | F178: 958.7280025 | G178: 878.37221 | H178: 30.77386279 | I178: Cumple | J178: 30.77386279 | K178: 1027.95861 | L178: 213.80388 | M178: 814.15473 | N178: Cumple
A179: 171 | B179: 021201 | C179: ANCASH | D179: MUNICIPALIDAD PROVINCIAL DE HUAYLAS - CARAZ | E179: 964.59151 | F179: 19966.82855 | G179: 18632.5657 | H179: 4.830970064 | I179: Cumple | J179: 4.830970064 | K179: 20006.20945 | L179: 6834.11971 | M179: 13172.08974 | N179: Cumple
A180: 172 | B180: 021202 | C180: ANCASH | D180: MUNICIPALIDAD DISTRITAL DE HUALLANCA | E180: 342.14015 | F180: 2962.25622 | G180: 4066.86511 | H180: 8.41287185 | I180: Cumple | J180: 8.41287185 | K180: 1912.30045 | L180: 546.72155 | M180: 1365.5789 | N180: Cumple
A181: 173 | B181: 021203 | C181: ANCASH | D181: MUNICIPALIDAD DISTRITAL DE HUATA | E181: 281.14604 | F181: 1372.609012 | G181: 1632.22981 | H181: 17.22466029 | I181: Cumple | J181: 17.22466029 | K181: 1510.6753 | L181: 452.94343 | M181: 1057.73187 | N181: Cumple
A182: 174 | B182: 021204 | C182: ANCASH | D182: MUNICIPALIDAD DISTRITAL DE HUAYLAS | E182: 334.2166 | F182: 1236.124485 | G182: 2190.22473 | H182: 15.25946609 | I182: Cumple | J182: 15.25946609 | K182: 542.7736 | L182: 527.55904 | M182: 15.21456 | N182: Cumple
A183: 175 | B183: 021205 | C183: ANCASH | D183: MUNICIPALIDAD DISTRITAL DE MATO | E183: 459.36491 | F183: 1065.552093 | G183: 1691.01447 | H183: 27.16504904 | I183: Cumple | J183: 27.16504904 | K183: 490.42673 | L183: 435.29173 | M183: 55.135 | N183: Cumple
A184: 176 | B184: 021206 | C184: ANCASH | D184: MUNICIPALIDAD DISTRITAL DE PAMPAROMAS | E184: 1425.79976 | F184: 7418.545192 | G184: 11035.62183 | H184: 12.91997662 | I184: Cumple | J184: 12.91997662 | K184: 9113.74076 | L184: 2386.29107 | M184: 6727.44969 | N184: Cumple
A185: 177 | B185: 021207 | C185: ANCASH | D185: MUNICIPALIDAD DISTRITAL DE PUEBLO LIBRE | E185: 657.65222 | F185: 5386.435827 | G185: 8072.9196 | H185: 8.146398733 | I185: Cumple | J185: 8.146398733 | K185: 6869.89294 | L185: 1416.65095 | M185: 5453.24199 | N185: Cumple
A186: 178 | B186: 021208 | C186: ANCASH | D186: MUNICIPALIDAD DISTRITAL DE SANTA CRUZ | E186: 913.793 | F186: 4641.307377 | G186: 7408.44714 | H186: 12.33447419 | I186: Cumple | J186: 12.33447419 | K186: 6038.72956 | L186: 1606.00478 | M186: 4432.72478 | N186: Cumple
A187: 179 | B187: 021209 | C187: ANCASH | D187: MUNICIPALIDAD DISTRITAL DE SANTO TORIBIO | E187: 342.22724 | F187: 1426.352025 | G187: 1529.11773 | H187: 22.38069923 | I187: Cumple | J187: 22.38069923 | K187: 1444.04905 | L187: 645.1481 | M187: 798.90095 | N187: Cumple
A188: 180 | B188: 021210 | C188: ANCASH | D188: MUNICIPALIDAD DISTRITAL DE YURACMARCA | E188: 1282.08422 | F188: 3275.864415 | G188: 5253.75494 | H188: 24.40319799 | I188: Cumple | J188: 24.40319799 | K188: 4989.23581 | L188: 614.70151 | M188: 4374.5343 | N188: Cumple
A189: 181 | B189: 021301 | C189: ANCASH | D189: MUNICIPALIDAD PROVINCIAL DE MARISCAL LUZURIAGA - PISCOBAMBA | E189: 2416.16855 | F189: 4982.415605 | G189: 3226.21002 | H189: 48.49391824 | I189: Cumple | J189: 48.49391824 | K189: 5187.62508 | L189: 1745.80253 | M189: 3441.82255 | N189: Cumple
A190: 182 | B190: 021302 | C190: ANCASH | D190: MUNICIPALIDAD DISTRITAL DE CASCA | E190: 64.45326 | F190: 3848.878678 | G190: 4953.48938 | H190: 1.301168834 | I190: Cumple | J190: 1.301168834 | K190: 5081.53671 | L190: 1378.81253 | M190: 3702.72418 | N190: Cumple
A191: 183 | B191: 021303 | C191: ANCASH | D191: MUNICIPALIDAD DISTRITAL DE ELEAZAR GUZMAN BARRON | E191: 30.94749 | F191: 1266.337713 | G191: 1520.97865 | H191: 2.034709034 | I191: Cumple | J191: 2.034709034 | K191: 1672.3463 | L191: 614.56552 | M191: 1057.78078 | N191: Cumple
A192: 184 | B192: 021304 | C192: ANCASH | D192: MUNICIPALIDAD DISTRITAL DE FIDEL OLIVAS ESCUDERO | E192: 40.59515 | F192: 1900.77721 | G192: 2351.82229 | H192: 1.726114689 | I192: Cumple | J192: 1.726114689 | K192: 2587.37967 | L192: 761.33373 | M192: 1826.04594 | N192: Cumple
A193: 185 | B193: 021305 | C193: ANCASH | D193: MUNICIPALIDAD DISTRITAL DE LLAMA | E193: 66.39326 | F193: 1112.888098 | G193: 1352.66775 | H193: 4.908319874 | I193: Cumple | J193: 4.908319874 | K193: 1400.95894 | L193: 446.3783 | M193: 954.58064 | N193: Cumple
A194: 186 | B194: 021306 | C194: ANCASH | D194: MUNICIPALIDAD DISTRITAL DE LLUMPA | E194: 890.68912 | F194: 5394.079322 | G194: 6849.74367 | H194: 13.00324746 | I194: Cumple | J194: 13.00324746 | K194: 7313.25554 | L194: 1185.62468 | M194: 6127.63086 | N194: Cumple
A195: 187 | B195: 021307 | C195: ANCASH | D195: MUNICIPALIDAD DISTRITAL DE LUCMA | E195: 66.09996 | F195: 2770.098955 | G195: 3592.77429 | H195: 1.839802745 | I195: Cumple | J195: 1.839802745 | K195: 3876.52085 | L195: 718.46969 | M195: 3158.05116 | N195: Cumple
A196: 188 | B196: 021308 | C196: ANCASH | D196: MUNICIPALIDAD DISTRITAL DE MUSGA | E196: 84.17249 | F196: 1035.706927 | G196: 1115.47687 | H196: 7.545874976 | I196: Cumple | J196: 7.545874976 | K196: 1134.52933 | L196: 371.30911 | M196: 763.22022 | N196: Cumple
A197: 189 | B197: 021401 | C197: ANCASH | D197: MUNICIPALIDAD PROVINCIAL DE OCROS | E197: 1046.97292 | F197: 2768.261633 | G197: 695.61069 | H197: 37.82059137 | I197: Cumple | J197: 37.82059137 | K197: 1841.46489 | L197: 926.65829 | M197: 914.8066 | N197: Cumple
A198: 190 | B198: 021402 | C198: ANCASH | D198: MUNICIPALIDAD DISTRITAL DE ACAS | E198: 47.91974 | F198: 1159.29294 | G198: 1151.92849 | H198: 4.133531599 | I198: Cumple | J198: 4.133531599 | K198: 1337.9635 | L198: 290.88237 | M198: 1047.08113 | N198: Cumple
A199: 191 | B199: 021403 | C199: ANCASH | D199: MUNICIPALIDAD DISTRITAL DE CAJAMARQUILLA | E199: 29.57175 | F199: 602.0812075 | G199: 283.60981 | H199: 4.911588276 | I199: Cumple | J199: 4.911588276 | K199: 578.81998 | L199: 227.0904 | M199: 351.72958 | N199: Cumple
A200: 192 | B200: 021404 | C200: ANCASH | D200: MUNICIPALIDAD DISTRITAL DE CARHUAPAMPA | E200: 92.5674 | F200: 1013.055282 | G200: 1017.10422 | H200: 9.101073241 | I200: Cumple | J200: 9.101073241 | K200: 1171.78936 | L200: 335.89629 | M200: 835.89307 | N200: Cumple
A201: 193 | B201: 021405 | C201: ANCASH | D201: MUNICIPALIDAD DISTRITAL DE COCHAS | E201: 382.29109 | F201: 1269.778075 | G201: 1193.18132 | H201: 30.10692164 | I201: Cumple | J201: 30.10692164 | K201: 1398.10866 | L201: 534.58907 | M201: 863.51959 | N201: Cumple
A202: 194 | B202: 021406 | C202: ANCASH | D202: MUNICIPALIDAD DISTRITAL DE CONGAS | E202: 11.931 | F202: 1048.268635 | G202: 1226.88148 | H202: 0.9724655718 | I202: Cumple | J202: 0.9724655718 | K202: 1326.62832 | L202: 282.65854 | M202: 1043.96978 | N202: Cumple
... 1684 more rows

Sheet DPTO (hidden)
A1: -------------------- | B1: CODI_DEP | C1: DESC_DEP
A2: 01:AMAZONAS | B2: 01 | C2: AMAZONAS
A3: 02:ANCASH | B3: 02 | C3: ANCASH
A4: 03:APURIMAC | B4: 03 | C4: APURIMAC
A5: 04:AREQUIPA | B5: 04 | C5: AREQUIPA
A6: 05:AYACUCHO | B6: 05 | C6: AYACUCHO
A7: 06:CAJAMARCA | B7: 06 | C7: CAJAMARCA
A8: 07:PROV CONSTIT DEL CALLAO | B8: 07 | C8: PROV CONSTIT DEL CALLAO
A9: 08:CUSCO | B9: 08 | C9: CUSCO
A10: 09:HUANCAVELICA | B10: 09 | C10: HUANCAVELICA
A11: 10:HUANUCO | B11: 10 | C11: HUANUCO
A12: 11:ICA | B12: 11 | C12: ICA
A13: 12:JUNIN | B13: 12 | C13: JUNIN
A14: 13:LA LIBERTAD | B14: 13 | C14: LA LIBERTAD
A15: 14:LAMBAYEQUE | B15: 14 | C15: LAMBAYEQUE
A16: 15:LIMA | B16: 15 | C16: LIMA
A17: 16:LORETO | B17: 16 | C17: LORETO
A18: 17:MADRE DE DIOS | B18: 17 | C18: MADRE DE DIOS
A19: 18:MOQUEGUA | B19: 18 | C19: MOQUEGUA
A20: 19:PASCO | B20: 19 | C20: PASCO
A21: 20:PIURA | B21: 20 | C21: PIURA
A22: 21:PUNO | B22: 21 | C22: PUNO
A23: 22:SAN MARTIN | B23: 22 | C23: SAN MARTIN
A24: 23:TACNA | B24: 23 | C24: TACNA
A25: 24:TUMBES | B25: 24 | C25: TUMBES
A26: 25:UCAYALI | B26: 25 | C26: UCAYALI

Sheet PROV (hidden)
A1: PROV | B1: CODI_DEP | C1: CODI_PRO | D1: DESC_PRO
A2: 0101:CHACHAPOYAS | B2: 01 | C2: 01 | D2: CHACHAPOYAS
A3: 0102:BAGUA | B3: 01 | C3: 02 | D3: BAGUA
A4: 0103:BONGARA | B4: 01 | C4: 03 | D4: BONGARA
A5: 0104:CONDORCANQUI | B5: 01 | C5: 04 | D5: CONDORCANQUI
A6: 0105:LUYA | B6: 01 | C6: 05 | D6: LUYA
A7: 0106:RODRIGUEZ DE MENDOZA | B7: 01 | C7: 06 | D7: RODRIGUEZ DE MENDOZA
A8: 0107:UCTUBAMBA | B8: 01 | C8: 07 | D8: UCTUBAMBA
A9: 0201:HUARAZ | B9: 02 | C9: 01 | D9: HUARAZ
A10: 0202:AIJA | B10: 02 | C10: 02 | D10: AIJA
A11: 0203:ANTONIO RAIMONDI | B11: 02 | C11: 03 | D11: ANTONIO RAIMONDI
A12: 0204:ASUNCION | B12: 02 | C12: 04 | D12: ASUNCION
A13: 0205:BOLOGNESI | B13: 02 | C13: 05 | D13: BOLOGNESI
A14: 0206:CARHUAZ | B14: 02 | C14: 06 | D14: CARHUAZ
A15: 0207:CARLOS FERMIN FITZCARRALD | B15: 02 | C15: 07 | D15: CARLOS FERMIN FITZCARRALD
A16: 0208:CASMA | B16: 02 | C16: 08 | D16: CASMA
A17: 0209:CORONGO | B17: 02 | C17: 09 | D17: CORONGO
A18: 0210:HUARI | B18: 02 | C18: 10 | D18: HUARI
A19: 0211:HUARMEY | B19: 02 | C19: 11 | D19: HUARMEY
A20: 0212:HUAYLAS | B20: 02 | C20: 12 | D20: HUAYLAS
A21: 0213:MARISCAL LUZURIAGA | B21: 02 | C21: 13 | D21: MARISCAL LUZURIAGA
A22: 0214:OCROS | B22: 02 | C22: 14 | D22: OCROS
A23: 0215:PALLASCA | B23: 02 | C23: 15 | D23: PALLASCA
A24: 0216:POMABAMBA | B24: 02 | C24: 16 | D24: POMABAMBA
A25: 0217:RECUAY | B25: 02 | C25: 17 | D25: RECUAY
A26: 0218:SANTA | B26: 02 | C26: 18 | D26: SANTA
A27: 0219:SIHUAS | B27: 02 | C27: 19 | D27: SIHUAS
A28: 0220:YUNGAY | B28: 02 | C28: 20 | D28: YUNGAY
A29: 0301:ABANCAY | B29: 03 | C29: 01 | D29: ABANCAY
A30: 0302:ANDAHUAYLAS | B30: 03 | C30: 02 | D30: ANDAHUAYLAS
A31: 0303:ANTABAMBA | B31: 03 | C31: 03 | D31: ANTABAMBA
A32: 0304:AYMARAES | B32: 03 | C32: 04 | D32: AYMARAES
A33: 0305:COTABAMBA | B33: 03 | C33: 05 | D33: COTABAMBA
A34: 0306:CHINCHEROS | B34: 03 | C34: 06 | D34: CHINCHEROS
A35: 0307:GRAU | B35: 03 | C35: 07 | D35: GRAU
A36: 0401:AREQUIPA | B36: 04 | C36: 01 | D36: AREQUIPA
A37: 0402:CAMANA | B37: 04 | C37: 02 | D37: CAMANA
A38: 0403:CARAVELI | B38: 04 | C38: 03 | D38: CARAVELI
A39: 0404:CASTILLA | B39: 04 | C39: 04 | D39: CASTILLA
A40: 0405:CAYLLOMA | B40: 04 | C40: 05 | D40: CAYLLOMA
A41: 0406:CONDESUYOS | B41: 04 | C41: 06 | D41: CONDESUYOS
A42: 0407:ISLAY | B42: 04 | C42: 07 | D42: ISLAY
A43: 0408:LA UNION | B43: 04 | C43: 08 | D43: LA UNION
A44: 0501:HUAMANGA | B44: 05 | C44: 01 | D44: HUAMANGA
A45: 0502:CANGALLO | B45: 05 | C45: 02 | D45: CANGALLO
A46: 0503:HUANCA SANCOS | B46: 05 | C46: 03 | D46: HUANCA SANCOS
A47: 0504:HUANTA | B47: 05 | C47: 04 | D47: HUANTA
A48: 0505:LA MAR | B48: 05 | C48: 05 | D48: LA MAR
A49: 0506:LUCANAS | B49: 05 | C49: 06 | D49: LUCANAS
A50: 0507:PARINACOCHAS | B50: 05 | C50: 07 | D50: PARINACOCHAS
A51: 0508:PAUCAR DEL SARA SARA | B51: 05 | C51: 08 | D51: PAUCAR DEL SARA SARA
A52: 0509:SUCRE | B52: 05 | C52: 09 | D52: SUCRE
A53: 0510:VICTOR FAJARDO | B53: 05 | C53: 10 | D53: VICTOR FAJARDO
A54: 0511:VILCASHUAMAN | B54: 05 | C54: 11 | D54: VILCASHUAMAN
A55: 0601:CAJAMARCA | B55: 06 | C55: 01 | D55: CAJAMARCA
A56: 0602:CAJABAMBA | B56: 06 | C56: 02 | D56: CAJABAMBA
A57: 0603:CELENDIN | B57: 06 | C57: 03 | D57: CELENDIN
A58: 0604:CHOTA | B58: 06 | C58: 04 | D58: CHOTA
A59: 0605:CONTUMAZA | B59: 06 | C59: 05 | D59: CONTUMAZA
A60: 0606:CUTERVO | B60: 06 | C60: 06 | D60: CUTERVO
A61: 0607:HUALGAYOC | B61: 06 | C61: 07 | D61: HUALGAYOC
A62: 0608:JAEN | B62: 06 | C62: 08 | D62: JAEN
A63: 0609:SAN IGNACIO | B63: 06 | C63: 09 | D63: SAN IGNACIO
A64: 0610:SAN MARCOS | B64: 06 | C64: 10 | D64: SAN MARCOS
A65: 0611:SAN MIGUEL | B65: 06 | C65: 11 | D65: SAN MIGUEL
A66: 0612:SAN PABLO | B66: 06 | C66: 12 | D66: SAN PABLO
A67: 0613:SANTA CRUZ | B67: 06 | C67: 13 | D67: SANTA CRUZ
A68: 0701:PROV. CALLAO | B68: 07 | C68: 01 | D68: PROV. CALLAO
A69: 0801:CUSCO | B69: 08 | C69: 01 | D69: CUSCO
A70: 0802:ACOMAYO | B70: 08 | C70: 02 | D70: ACOMAYO
A71: 0803:ANTA | B71: 08 | C71: 03 | D71: ANTA
A72: 0804:CALCA | B72: 08 | C72: 04 | D72: CALCA
A73: 0805:CANAS | B73: 08 | C73: 05 | D73: CANAS
A74: 0806:CANCHIS | B74: 08 | C74: 06 | D74: CANCHIS
A75: 0807:CHUMBIVILCAS | B75: 08 | C75: 07 | D75: CHUMBIVILCAS
A76: 0808:ESPINAR | B76: 08 | C76: 08 | D76: ESPINAR
A77: 0809:LA CONVENCION | B77: 08 | C77: 09 | D77: LA CONVENCION
A78: 0810:PARURO | B78: 08 | C78: 10 | D78: PARURO
A79: 0811:PAUCARTAMBO | B79: 08 | C79: 11 | D79: PAUCARTAMBO
A80: 0812:QUISPICANCHIS | B80: 08 | C80: 12 | D80: QUISPICANCHIS
A81: 0813:URUBAMBA | B81: 08 | C81: 13 | D81: URUBAMBA
A82: 0901:HUANCAVELICA | B82: 09 | C82: 01 | D82: HUANCAVELICA
A83: 0902:ACOBAMBA | B83: 09 | C83: 02 | D83: ACOBAMBA
A84: 0903:ANGARAES | B84: 09 | C84: 03 | D84: ANGARAES
A85: 0904:CASTROVIRREYNA | B85: 09 | C85: 04 | D85: CASTROVIRREYNA
A86: 0905:CHURCAMPA | B86: 09 | C86: 05 | D86: CHURCAMPA
A87: 0906:HUAYTARA | B87: 09 | C87: 06 | D87: HUAYTARA
A88: 0907:TAYACAJA | B88: 09 | C88: 07 | D88: TAYACAJA
A89: 1001:HUANUCO | B89: 10 | C89: 01 | D89: HUANUCO
A90: 1002:AMBO | B90: 10 | C90: 02 | D90: AMBO
A91: 1003:DOS DE MAYO | B91: 10 | C91: 03 | D91: DOS DE MAYO
A92: 1004:HUACAYBAMBA | B92: 10 | C92: 04 | D92: HUACAYBAMBA
A93: 1005:HUAMALIES | B93: 10 | C93: 05 | D93: HUAMALIES
A94: 1006:LEONCIO PRADO | B94: 10 | C94: 06 | D94: LEONCIO PRADO
A95: 1007:MARANON | B95: 10 | C95: 07 | D95: MARANON
A96: 1008:PACHITEA | B96: 10 | C96: 08 | D96: PACHITEA
A97: 1009:PUERTO INCA | B97: 10 | C97: 09 | D97: PUERTO INCA
A98: 1010:LAURICOCHA | B98: 10 | C98: 10 | D98: LAURICOCHA
A99: 1011:YAROWILCA | B99: 10 | C99: 11 | D99: YAROWILCA
A100: 1101:ICA | B100: 11 | C100: 01 | D100: ICA
A101: 1102:CHINCHA | B101: 11 | C101: 02 | D101: CHINCHA
A102: 1103:NAZCA | B102: 11 | C102: 03 | D102: NAZCA
A103: 1104:PALPA | B103: 11 | C103: 04 | D103: PALPA
A104: 1105:PISCO | B104: 11 | C104: 05 | D104: PISCO
A105: 1201:HUANCAYO | B105: 12 | C105: 01 | D105: HUANCAYO
A106: 1202:CONCEPCION | B106: 12 | C106: 02 | D106: CONCEPCION
A107: 1203:CHANCHAMAYO | B107: 12 | C107: 03 | D107: CHANCHAMAYO
A108: 1204:JAUJA | B108: 12 | C108: 04 | D108: JAUJA
A109: 1205:JUNIN | B109: 12 | C109: 05 | D109: JUNIN
A110: 1206:SATIPO | B110: 12 | C110: 06 | D110: SATIPO
A111: 1207:TARMA | B111: 12 | C111: 07 | D111: TARMA
A112: 1208:YAULI | B112: 12 | C112: 08 | D112: YAULI
A113: 1209:CHUPACA | B113: 12 | C113: 09 | D113: CHUPACA
A114: 1301:TRUJILLO | B114: 13 | C114: 01 | D114: TRUJILLO
A115: 1302:ASCOPE | B115: 13 | C115: 02 | D115: ASCOPE
A116: 1303:BOLIVAR | B116: 13 | C116: 03 | D116: BOLIVAR
A117: 1304:CHEPEN | B117: 13 | C117: 04 | D117: CHEPEN
A118: 1305:JULCAN | B118: 13 | C118: 05 | D118: JULCAN
A119: 1306:OTUZCO | B119: 13 | C119: 06 | D119: OTUZCO
A120: 1307:PACASMAYO | B120: 13 | C120: 07 | D120: PACASMAYO
A121: 1308:PATAZ | B121: 13 | C121: 08 | D121: PATAZ
A122: 1309:SANCHEZ CARRION | B122: 13 | C122: 09 | D122: SANCHEZ CARRION
A123: 1310:SANTIAGO DE CHUCO | B123: 13 | C123: 10 | D123: SANTIAGO DE CHUCO
A124: 1311:GRAN CHIMU | B124: 13 | C124: 11 | D124: GRAN CHIMU
A125: 1312:VIRU | B125: 13 | C125: 12 | D125: VIRU
A126: 1401:CHICLAYO | B126: 14 | C126: 01 | D126: CHICLAYO
A127: 1402:FERRENAFE | B127: 14 | C127: 02 | D127: FERRENAFE
A128: 1403:LAMBAYEQUE | B128: 14 | C128: 03 | D128: LAMBAYEQUE
A129: 1501:LIMA | B129: 15 | C129: 01 | D129: LIMA
A130: 1502:BARRANCA | B130: 15 | C130: 02 | D130: BARRANCA
A131: 1503:CAJATAMBO | B131: 15 | C131: 03 | D131: CAJATAMBO
A132: 1504:CANTA | B132: 15 | C132: 04 | D132: CANTA
A133: 1505:CAÑETE | B133: 15 | C133: 05 | D133: CAÑETE
A134: 1506:HUARAL | B134: 15 | C134: 06 | D134: HUARAL
A135: 1507:HUAROCHIRI | B135: 15 | C135: 07 | D135: HUAROCHIRI
A136: 1508:HUAURA | B136: 15 | C136: 08 | D136: HUAURA
A137: 1509:OYON | B137: 15 | C137: 09 | D137: OYON
A138: 1510:YAUYOS | B138: 15 | C138: 10 | D138: YAUYOS
A139: 1601:MAYNAS | B139: 16 | C139: 01 | D139: MAYNAS
A140: 1602:ALTO AMAZONAS | B140: 16 | C140: 02 | D140: ALTO AMAZONAS
A141: 1603:LORETO | B141: 16 | C141: 03 | D141: LORETO
A142: 1604:RAMON CASTILLA | B142: 16 | C142: 04 | D142: RAMON CASTILLA
A143: 1605:REQUENA | B143: 16 | C143: 05 | D143: REQUENA
A144: 1606:UCAYALI | B144: 16 | C144: 06 | D144: UCAYALI
A145: 1607:DATEM DEL MARAÑON | B145: 16 | C145: 07 | D145: DATEM DEL MARAÑON
A146: 1608:PUTUMAYO | B146: 16 | C146: 08 | D146: PUTUMAYO
A147: 1701:TAMBOPATA | B147: 17 | C147: 01 | D147: TAMBOPATA
A148: 1702:MANU | B148: 17 | C148: 02 | D148: MANU
A149: 1703:TAHUAMANU | B149: 17 | C149: 03 | D149: TAHUAMANU
A150: 1801:MARISCAL NIETO | B150: 18 | C150: 01 | D150: MARISCAL NIETO
A151: 1802:GENERAL SANCHEZ CERRO | B151: 18 | C151: 02 | D151: GENERAL SANCHEZ CERRO
A152: 1803:ILO | B152: 18 | C152: 03 | D152: ILO
A153: 1901:PASCO | B153: 19 | C153: 01 | D153: PASCO
A154: 1902:DANIEL A. CARRION | B154: 19 | C154: 02 | D154: DANIEL A. CARRION
A155: 1903:OXAPAMPA | B155: 19 | C155: 03 | D155: OXAPAMPA
A156: 2001:PIURA | B156: 20 | C156: 01 | D156: PIURA
A157: 2002:AYABACA | B157: 20 | C157: 02 | D157: AYABACA
A158: 2003:HUANCABAMBA | B158: 20 | C158: 03 | D158: HUANCABAMBA
A159: 2004:MORROPON | B159: 20 | C159: 04 | D159: MORROPON
A160: 2005:PAITA | B160: 20 | C160: 05 | D160: PAITA
A161: 2006:SULLANA | B161: 20 | C161: 06 | D161: SULLANA
A162: 2007:TALARA | B162: 20 | C162: 07 | D162: TALARA
A163: 2008:SECHURA | B163: 20 | C163: 08 | D163: SECHURA
A164: 2101:PUNO | B164: 21 | C164: 01 | D164: PUNO
A165: 2102:AZANGARO | B165: 21 | C165: 02 | D165: AZANGARO
A166: 2103:CARABAYA | B166: 21 | C166: 03 | D166: CARABAYA
A167: 2104:CHUCUITO | B167: 21 | C167: 04 | D167: CHUCUITO
A168: 2105:EL COLLAO | B168: 21 | C168: 05 | D168: EL COLLAO
A169: 2106:HUANCANE | B169: 21 | C169: 06 | D169: HUANCANE
A170: 2107:LAMPA | B170: 21 | C170: 07 | D170: LAMPA
A171: 2108:MELGAR | B171: 21 | C171: 08 | D171: MELGAR
A172: 2109:MOHO | B172: 21 | C172: 09 | D172: MOHO
A173: 2110:SAN ANTONIO DE PUTINA | B173: 21 | C173: 10 | D173: SAN ANTONIO DE PUTINA
A174: 2111:SAN ROMAN | B174: 21 | C174: 11 | D174: SAN ROMAN
A175: 2112:SANDIA | B175: 21 | C175: 12 | D175: SANDIA
A176: 2113:YUNGUYO | B176: 21 | C176: 13 | D176: YUNGUYO
A177: 2201:MOYOBAMBA | B177: 22 | C177: 01 | D177: MOYOBAMBA
A178: 2202:BELLAVISTA | B178: 22 | C178: 02 | D178: BELLAVISTA
A179: 2203:EL DORADO | B179: 22 | C179: 03 | D179: EL DORADO
A180: 2204:HUALLAGA | B180: 22 | C180: 04 | D180: HUALLAGA
A181: 2205:LAMAS | B181: 22 | C181: 05 | D181: LAMAS
A182: 2206:MARISCAL CACERES | B182: 22 | C182: 06 | D182: MARISCAL CACERES
A183: 2207:PICOTA | B183: 22 | C183: 07 | D183: PICOTA
A184: 2208:RIOJA | B184: 22 | C184: 08 | D184: RIOJA
A185: 2209:SAN MARTIN | B185: 22 | C185: 09 | D185: SAN MARTIN
A186: 2210:TOCACHE | B186: 22 | C186: 10 | D186: TOCACHE
A187: 2301:TACNA | B187: 23 | C187: 01 | D187: TACNA
A188: 2302:CANDARAVE | B188: 23 | C188: 02 | D188: CANDARAVE
A189: 2303:JORGE BASADRE | B189: 23 | C189: 03 | D189: JORGE BASADRE
A190: 2304:TARATA | B190: 23 | C190: 04 | D190: TARATA
A191: 2401:TUMBES | B191: 24 | C191: 01 | D191: TUMBES
A192: 2402:CONTRALMIRANTE VILLAR | B192: 24 | C192: 02 | D192: CONTRALMIRANTE VILLAR
A193: 2403:ZARUMILLA | B193: 24 | C193: 03 | D193: ZARUMILLA
A194: 2501:CORONEL PORTILLO | B194: 25 | C194: 01 | D194: CORONEL PORTILLO
A195: 2502:ATALAYA | B195: 25 | C195: 02 | D195: ATALAYA
A196: 2503:PADRE ABAD | B196: 25 | C196: 03 | D196: PADRE ABAD
A197: 2504:PURUS | B197: 25 | C197: 04 | D197: PURUS

Sheet ENTIDAD (hidden)
A1: ENTIDADES
A2: 010000 : GOBIERNO REGIONAL DE AMAZONAS
A3: 020000 : GOBIERNO REGIONAL DE ANCASH
A4: 030000 : GOBIERNO REGIONAL DE APURIMAC
A5: 040000 : GOBIERNO REGIONAL DE AREQUIPA
A6: 050000 : GOBIERNO REGIONAL DE AYACUCHO
A7: 060000 : GOBIERNO REGIONAL DE CAJAMARCA
A8: 070000 : GOBIERNO REGIONAL DEL CALLAO
A9: 080000 : GOBIERNO REGIONAL DE CUSCO
A10: 090000 : GOBIERNO REGIONAL DE HUANCAVELICA
A11: 100000 : GOBIERNO REGIONAL DE HUANUCO
A12: 110000 : GOBIERNO REGIONAL DE ICA
A13: 120000 : GOBIERNO REGIONAL DE JUNIN
A14: 130000 : GOBIERNO REGIONAL DE LA LIBERTAD
A15: 140000 : GOBIERNO REGIONAL DE LAMBAYEQUE
A16: 150000 : GOBIERNO REGIONAL DE LIMA
A17: 160000 : GOBIERNO REGIONAL DE LORETO
A18: 170000 : GOBIERNO REGIONAL DE MADRE DE DIOS
A19: 180000 : GOBIERNO REGIONAL DE MOQUEGUA
A20: 190000 : GOBIERNO REGIONAL DE PASCO
A21: 200000 : GOBIERNO REGIONAL DE PIURA
A22: 210000 : GOBIERNO REGIONAL DE PUNO
A23: 220000 : GOBIERNO REGIONAL DE SAN MARTIN
A24: 230000 : GOBIERNO REGIONAL DE TACNA
A25: 240000 : GOBIERNO REGIONAL DE TUMBES
A26: 250000 : GOBIERNO REGIONAL DE UCAYALI
A27: 260000 : REGION LIMA METROPOLITANA
A28: 010101 : MP DE CHACHAPOYAS
A29: 010102 : MD DE ASUNCION
A30: 010103 : MD DE BALSAS
A31: 010104 : MD DE CHETO
A32: 010105 : MD DE CHILIQUIN
A33: 010106 : MD DE CHUQUIBAMBA
A34: 010107 : MD DE GRANADA
A35: 010108 : MD DE HUANCAS
A36: 010109 : MD DE JALCA GRANDE
A37: 010110 : MD DE LEIMEBAMBA
A38: 010111 : MD DE LEVANTO
A39: 010112 : MD DE MAGDALENA
A40: 010113 : MD DE MARISCAL CASTILLA
A41: 010114 : MD DE MOLINOPAMPA
A42: 010115 : MD DE MONTEVIDEO
A43: 010116 : MD DE OLLEROS
A44: 010117 : MD DE QUINJALCA
A45: 010118 : MD DE SAN FRANCISCO DE DAGUAS
A46: 010119 : MD DE SAN ISIDRO DE MAYNO
A47: 010120 : MD DE SOLOCO
A48: 010121 : MD DE SONCHE
A49: 010201 : MP DE BAGUA - LA PECA
A50: 010202 : MD DE ARAMANGO
A51: 010203 : MD DE COPALLIN
A52: 010204 : MD DE EL PARCO
A53: 010205 : MD DE IMAZA
A54: 010206 : MD DE LA PECA
A55: 010301 : MP DE BONGARA - JUMBILLA
A56: 010302 : MD DE CHISQUILLA
A57: 010303 : MD DE CHURUJA
A58: 010304 : MD DE COROSHA
A59: 010305 : MD DE CUISPES
A60: 010306 : MD DE FLORIDA
A61: 010307 : MD DE JAZAN
A62: 010308 : MD DE RECTA
A63: 010309 : MD DE SAN CARLOS
A64: 010310 : MD DE SHIPASBAMBA
A65: 010311 : MD DE VALERA
A66: 010312 : MD DE YAMBRASBAMBA
A67: 010401 : MP DE CONDORCANQUI - NIEVA
A68: 010402 : MD DE EL CENEPA
A69: 010403 : MD DE RIO SANTIAGO
A70: 010501 : MP DE LUYA - LAMUD
A71: 010502 : MD DE CAMPORREDONDO
A72: 010503 : MD DE COCABAMBA
A73: 010504 : MD DE COLCAMAR
A74: 010505 : MD DE CONILA
A75: 010506 : MD DE INGUILPATA
A76: 010507 : MD DE LONGUITA
A77: 010508 : MD DE LONYA CHICO
A78: 010509 : MD DE LUYA
A79: 010510 : MD DE LUYA VIEJO
A80: 010511 : MD DE MARIA
A81: 010512 : MD DE OCALLI
A82: 010513 : MD DE OCUMAL
A83: 010514 : MD DE PIZUQUIA
A84: 010515 : MD DE PROVIDENCIA
A85: 010516 : MD DE SAN CRISTOBAL DE OLTO
A86: 010517 : MD DE SAN FRANCISCO DE YESO
A87: 010518 : MD DE SAN JERONIMO DE PACLAS
A88: 010519 : MD DE SAN JUAN DE LOPECANCHA
A89: 010520 : MD DE SANTA CATALINA
A90: 010521 : MD DE SANTO TOMAS
A91: 010522 : MD DE TINGO
A92: 010523 : MD DE TRITA
A93: 010601 : MP DE RODRIGUEZ DE MENDOZA - SAN NICOLAS
A94: 010602 : MD DE CHIRIMOTO
A95: 010603 : MD DE COCHAMAL
A96: 010604 : MD DE HUAMBO
A97: 010605 : MD DE LIMABAMBA
A98: 010606 : MD DE LONGAR
A99: 010607 : MD DE MARISCAL BENAVIDES
A100: 010608 : MD DE MILPUC
A101: 010609 : MD DE OMIA
A102: 010610 : MD DE SANTA ROSA
A103: 010611 : MD DE TOTORA
A104: 010612 : MD DE VISTA ALEGRE
A105: 010701 : MP DE UTCUBAMBA - BAGUA GRANDE
A106: 010702 : MD DE CAJARURO
A107: 010703 : MD DE CUMBA
A108: 010704 : MD DE EL MILAGRO
A109: 010705 : MD DE JAMALCA
A110: 010706 : MD DE LONYA GRANDE
A111: 010707 : MD DE YAMON
A112: 020101 : MP DE HUARAZ
A113: 020102 : MD DE COCHABAMBA
A114: 020103 : MD DE COLCABAMBA
A115: 020104 : MD DE HUANCHAY
A116: 020105 : MD DE INDEPENDENCIA
A117: 020106 : MD DE JANGAS
A118: 020107 : MD DE LA LIBERTAD
A119: 020108 : MD DE OLLEROS
A120: 020109 : MD DE PAMPAS
A121: 020110 : MD DE PARIACOTO
A122: 020111 : MD DE PIRA
A123: 020112 : MD DE TARICA
A124: 020201 : MP DE AIJA
A125: 020202 : MD DE CORIS
A126: 020203 : MD DE HUACLLAN
A127: 020204 : MD DE LA MERCED
A128: 020205 : MD DE SUCCHA
A129: 020301 : MP DE ANTONIO RAYMONDI - LLAMELLIN
A130: 020302 : MD DE ACSO
A131: 020303 : MD DE CHACCHO
A132: 020304 : MD DE CHINGAS
A133: 020305 : MD DE MIRGAS
A134: 020306 : MD DE SAN JUAN DE RONTOY
A135: 020401 : MP DE ASUNCION - CHACAS
A136: 020402 : MD DE ACOCHACA
A137: 020501 : MP DE BOLOGNESI - CHIQUIAN
A138: 020502 : MD DE ABELARDO PARDO LAZAMETA
A139: 020503 : MD DE ANTONIO RAYMONDI
A140: 020504 : MD DE AQUIA
A141: 020505 : MD DE CAJACAY
A142: 020506 : MD DE CANIS
A143: 020507 : MD DE COLQUIOC
A144: 020508 : MD DE HUALLANCA
A145: 020509 : MD DE HUASTA
A146: 020510 : MD DE HUAYLLACAYAN
A147: 020511 : MD DE LA PRIMAVERA
A148: 020512 : MD DE MANGAS
A149: 020513 : MD DE PACLLON
A150: 020514 : MD DE SAN MIGUEL DE CORPANQUI
A151: 020515 : MD DE TICLLOS
A152: 020601 : MP DE CARHUAZ
A153: 020602 : MD DE ACOPAMPA
A154: 020603 : MD DE AMASHCA
A155: 020604 : MD DE ANTA
A156: 020605 : MD DE ATAQUERO
A157: 020606 : MD DE MARCARA
A158: 020607 : MD DE PARIAHUANCA
A159: 020608 : MD DE SAN MIGUEL DE ACO
A160: 020609 : MD DE SHILLA
A161: 020610 : MD DE TINCO
A162: 020611 : MD DE YUNGAR
A163: 020701 : MP DE CARLOS FERMIN FITZCARRALD
A164: 020702 : MD DE SAN NICOLAS
A165: 020703 : MD DE YAUYA
A166: 020801 : MP DE CASMA
A167: 020802 : MD DE BUENA VISTA ALTA
A168: 020803 : MD DE COMANDANTE NOEL
A169: 020804 : MD DE YAUTAN
A170: 020901 : MP DE CORONGO
A171: 020902 : MD DE ACO
A172: 020903 : MD DE BAMBAS
A173: 020904 : MD DE CUSCA
A174: 020905 : MD DE LA PAMPA
A175: 020906 : MD DE YANAC
A176: 020907 : MD DE YUPAN
A177: 021001 : MP DE HUARI
A178: 021002 : MD DE ANRA
A179: 021003 : MD DE CAJAY
A180: 021004 : MD DE CHAVIN DE HUANTAR
A181: 021005 : MD DE HUACACHI
A182: 021006 : MD DE HUACCHIS
A183: 021007 : MD DE HUACHIS
A184: 021008 : MD DE HUANTAR
A185: 021009 : MD DE MASIN
A186: 021010 : MD DE PAUCAS
A187: 021011 : MD DE PONTO
A188: 021012 : MD DE RAHUAPAMPA
A189: 021013 : MD DE RAPAYAN
A190: 021014 : MD DE SAN MARCOS
A191: 021015 : MD DE SAN PEDRO DE CHANA
A192: 021016 : MD DE UCO
A193: 021101 : MP DE HUARMEY
A194: 021102 : MD DE COCHAPETI
A195: 021103 : MD DE CULEBRAS
A196: 021104 : MD DE HUAYAN
A197: 021105 : MD DE MALVAS
A198: 021201 : MP DE HUAYLAS - CARAZ
A199: 021202 : MD DE HUALLANCA
A200: 021203 : MD DE HUATA
... 1701 more rows

Sheet GRS (hidden)
A1: -----------------------------------------------
A2: 010000 : GOBIERNO REGIONAL DE AMAZONAS
A3: 020000 : GOBIERNO REGIONAL DE ANCASH
A4: 030000 : GOBIERNO REGIONAL DE APURIMAC
A5: 040000 : GOBIERNO REGIONAL DE AREQUIPA
A6: 050000 : GOBIERNO REGIONAL DE AYACUCHO
A7: 060000 : GOBIERNO REGIONAL DE CAJAMARCA
A8: 070000 : GOBIERNO REGIONAL DEL CALLAO
A9: 080000 : GOBIERNO REGIONAL DE CUSCO
A10: 090000 : GOBIERNO REGIONAL DE HUANCAVELICA
A11: 100000 : GOBIERNO REGIONAL DE HUANUCO
A12: 110000 : GOBIERNO REGIONAL DE ICA
A13: 120000 : GOBIERNO REGIONAL DE JUNIN
A14: 130000 : GOBIERNO REGIONAL DE LA LIBERTAD
A15: 140000 : GOBIERNO REGIONAL DE LAMBAYEQUE
A16: 150000 : GOBIERNO REGIONAL DE LIMA
A17: 160000 : GOBIERNO REGIONAL DE LORETO
A18: 170000 : GOBIERNO REGIONAL DE MADRE DE DIOS
A19: 180000 : GOBIERNO REGIONAL DE MOQUEGUA
A20: 190000 : GOBIERNO REGIONAL DE PASCO
A21: 200000 : GOBIERNO REGIONAL DE PIURA
A22: 210000 : GOBIERNO REGIONAL DE PUNO
A23: 220000 : GOBIERNO REGIONAL DE SAN MARTIN
A24: 230000 : GOBIERNO REGIONAL DE TACNA
A25: 240000 : GOBIERNO REGIONAL DE TUMBES
A26: 250000 : GOBIERNO REGIONAL DE UCAYALI
A27: 260000 : REGION LIMA METROPOLITANA

Sheet TIPOGOB (hidden)
A1: TIPOGOB
A2: Gobiernos Locales
A3: Gobiernos Regionales
A6: No Cumple
A7: Si Cumple
